Department,Entity, Transaction Date, Expense Type, Expense Area, Supplier Name,Transaction number, Amount, Invoice Description
DFID,DFID,01/03/2017,Air fares ,East and Central Africa ,Corporate Travel Provider ,100016-107 ,"1,912.50",
DFID,DFID,01/03/2017,Air fares ,East and Central Africa ,Corporate Travel Provider ,100016-107 ,"2,941.47",
DFID,DFID,01/03/2017,Hotels - Accommodation only ,Research and Evidence Division ,Corporate Travel Provider ,100039-101 ,"1,309.64",
DFID,DFID,01/03/2017,Air fares ,Research and Evidence Division ,Corporate Travel Provider ,100039-108 ,536.57,
DFID,DFID,01/03/2017,Air fares ,Research and Evidence Division ,Corporate Travel Provider ,100039-108 ,"1,433.57",
DFID,DFID,01/03/2017,Hotels - Accommodation only ,Research and Evidence Division ,Corporate Travel Provider ,100039-108 ,525.00,
DFID,DFID,01/03/2017,Air fares ,Research and Evidence Division ,Corporate Travel Provider ,100039-110 ,764.04,
DFID,DFID,01/03/2017,Air fares ,Research and Evidence Division ,Corporate Travel Provider ,100039-111 ,"3,392.37",
DFID,DFID,01/03/2017,Air fares ,Conflict  Humanitarian  Security & Stabilisation Division ,Corporate Travel Provider ,100049-102 ,538.97,
DFID,DFID,01/03/2017,Air fares ,Conflict  Humanitarian  Security & Stabilisation Division ,Corporate Travel Provider ,100049-102 ,645.07,
DFID,DFID,21/03/2017,Training - Course Fees ,Conflict  Humanitarian  Security & Stabilisation Division ,Foreign & Commonwealth Office ,100049-133 ,641.13,
DFID,DFID,01/03/2017,Air fares ,Conflict  Humanitarian  Security & Stabilisation Division ,Corporate Travel Provider ,100049-134 ,"1,858.77",
DFID,DFID,01/03/2017,Air fares ,West and Southern Africa ,Corporate Travel Provider ,100068-101 ,882.40,
DFID,DFID,01/03/2017,Air fares ,West and Southern Africa ,Corporate Travel Provider ,100068-101 ,517.90,
DFID,DFID,10/03/2017,Training - Travel & Subsistence ,East and Central Africa ,Foreign & Commonwealth Office ,100082-101 ,958.25,
DFID,DFID,01/03/2017,Air fares ,Asia  Caribbean and Overseas Territories ,Corporate Travel Provider ,100084-101 ,557.60,
DFID,DFID,01/03/2017,Air fares ,Asia  Caribbean and Overseas Territories ,Corporate Travel Provider ,100084-101 ,"1,093.07",
DFID,DFID,01/03/2017,Air fares ,International Relations Division ,Corporate Travel Provider ,100086-101 ,502.00,
DFID,DFID,01/03/2017,Hotels - Accommodation only ,West and Southern Africa ,Corporate Travel Provider ,100097-101 ,748.00,
DFID,DFID,01/03/2017,Air fares ,Global Funds ,Corporate Travel Provider ,100098-101 ,702.90,
DFID,DFID,01/03/2017,Air fares ,Global Funds ,Corporate Travel Provider ,100098-101 ,"1,352.74",
DFID,DFID,01/03/2017,Hotels - Accommodation only ,Global Funds ,Corporate Travel Provider ,100098-101 ,"1,362.81",
DFID,DFID,01/03/2017,Air fares ,Global Funds ,Corporate Travel Provider ,100098-101 ,716.00,
DFID,DFID,31/03/2017,Training - Course Fees ,Group Operations ,Kelvin College  Glasgow ,100106-101 ,504.00,
DFID,DFID,01/03/2017,Hotels - Accommodation only ,Economic Development Division ,Corporate Travel Provider ,100111-101 ,933.26,
DFID,DFID,01/03/2017,Air fares ,Economic Development Division ,Corporate Travel Provider ,100111-101 ,837.37,
DFID,DFID,01/03/2017,Air fares ,Economic Development Division ,Corporate Travel Provider ,100111-101 ,"1,658.30",
DFID,DFID,01/03/2017,Air fares ,Economic Development Division ,Corporate Travel Provider ,100111-101 ,854.40,
DFID,DFID,01/03/2017,Hotels - Accommodation only ,Economic Development Division ,Corporate Travel Provider ,100111-101 ,568.95,
DFID,DFID,01/03/2017,Air fares ,Economic Development Division ,Corporate Travel Provider ,100111-101 ,"1,125.37",
DFID,DFID,01/03/2017,Hotels - Accommodation only ,Internal Audit ,Corporate Travel Provider ,100121-101 ,503.40,
DFID,DFID,31/03/2017,Auditors Remuneration & Expenses - Cash ,Internal Audit ,Institute for Internal Auditors  ,100121-101 ,810.00,
DFID,DFID,31/03/2017,Hotels - Accommodation only ,Internal Audit ,Institute for Internal Auditors,100121-101 ,690.00,
DFID,DFID,01/03/2017,Air fares ,Economic Development Division ,Corporate Travel Provider ,100124-101 ,"1,097.77",
DFID,DFID,01/03/2017,Air fares ,Communications Division ,Corporate Travel Provider ,100138-101 ,"1,292.80",
DFID,DFID,01/03/2017,Air fares ,Communications Division ,Corporate Travel Provider ,100138-101 ,537.07,
DFID,DFID,01/03/2017,Air fares ,Communications Division ,Corporate Travel Provider ,100138-101 ,674.17,
DFID,DFID,01/03/2017,Hotels - Accommodation only ,Middle East and North Africa Division ,Corporate Travel Provider ,100146-101 ,731.14,
DFID,DFID,01/03/2017,Hotels - Accommodation only ,Middle East and North Africa Division ,Corporate Travel Provider ,100146-101 ,568.39,
DFID,DFID,01/03/2017,Air fares ,Middle East and North Africa Division ,Corporate Travel Provider ,100146-101 ,523.97,
DFID,DFID,01/03/2017,Air fares ,Policy Division ,Corporate Travel Provider ,100191-101 ,832.80,
DFID,DFID,01/03/2017,Air fares ,Communications Division ,Corporate Travel Provider ,100197-101 ,536.80,
DFID,DFID,01/03/2017,Air fares ,Communications Division ,Corporate Travel Provider ,100197-101 ,"1,030.97",
DFID,DFID,01/03/2017,Air fares ,Top Management Group ,Corporate Travel Provider ,100232-102 ,"3,031.57",
DFID,DFID,01/03/2017,Air fares ,Top Management Group ,Corporate Travel Provider ,100232-102 ,"2,696.67",
DFID,DFID,01/03/2017,Air fares ,Top Management Group ,Corporate Travel Provider ,100232-102 ,"2,696.67",
DFID,DFID,01/03/2017,Air fares ,Top Management Group ,Corporate Travel Provider ,100232-102 ,"2,265.90",
DFID,DFID,01/03/2017,Air fares ,Top Management Group ,Corporate Travel Provider ,100232-102 ,"2,265.90",
DFID,DFID,01/03/2017,Air fares ,Top Management Group ,Corporate Travel Provider ,100232-102 ,"2,265.90",
DFID,DFID,01/03/2017,Air fares ,Top Management Group ,Corporate Travel Provider ,100232-103 ,"2,696.67",
DFID,DFID,01/03/2017,Air fares ,Top Management Group ,Corporate Travel Provider ,100232-103 ,"3,031.57",
DFID,DFID,01/03/2017,Air fares ,Top Management Group ,Corporate Travel Provider ,100232-103 ,"2,485.67",
DFID,DFID,01/03/2017,Air fares ,Top Management Group ,Corporate Travel Provider ,100232-103 ,574.77,
DFID,DFID,01/03/2017,Air fares ,Top Management Group ,Corporate Travel Provider ,100232-103 ,"1,280.10",
DFID,DFID,01/03/2017,Air fares ,Top Management Group ,Corporate Travel Provider ,100232-103 ,610.90,
DFID,DFID,01/03/2017,Air fares ,Top Management Group ,Corporate Travel Provider ,100232-105 ,"1,555.30",
DFID,DFID,01/03/2017,Air fares ,Top Management Group ,Corporate Travel Provider ,100232-105 ,"1,434.50",
DFID,DFID,01/03/2017,Air fares ,Top Management Group ,Corporate Travel Provider ,100232-105 ,"1,142.67",
DFID,DFID,01/03/2017,Air fares ,Top Management Group ,Corporate Travel Provider ,100232-105 ,"1,142.67",
DFID,DFID,01/03/2017,Air fares ,Top Management Group ,Corporate Travel Provider ,100232-105 ,"1,434.50",
DFID,DFID,01/03/2017,Air fares ,Top Management Group ,Corporate Travel Provider ,100232-108 ,"3,996.01",
DFID,DFID,01/03/2017,Air fares ,Top Management Group ,Corporate Travel Provider ,100232-108 ,"2,301.25",
DFID,DFID,01/03/2017,Air fares ,Top Management Group ,Corporate Travel Provider ,100232-108 ,"2,311.97",
DFID,DFID,01/03/2017,Air fares ,Top Management Group ,Corporate Travel Provider ,100232-108 ,"1,888.90",
DFID,DFID,01/03/2017,Air fares ,Top Management Group ,Corporate Travel Provider ,100232-108 ,"2,237.30",
DFID,DFID,01/03/2017,Air fares ,Top Management Group ,Corporate Travel Provider ,100232-108 ,"2,311.97",
DFID,DFID,01/03/2017,Air fares ,Top Management Group ,Corporate Travel Provider ,100232-108 ,718.10,
DFID,DFID,01/03/2017,Air fares ,Top Management Group ,Corporate Travel Provider ,100232-108 ,978.00,
DFID,DFID,07/03/2017,Office equipment - Rental ,International Relations Division ,Foreign & Commonwealth Office ,100236-101 ,718.47,
DFID,DFID,09/03/2017,Office Equipment - Maintenance ,International Relations Division ,Foreign & Commonwealth Office ,100238-101 ,"2,403.52",
DFID,DFID,01/03/2017,Hotels - Accommodation only ,International Relations Division ,Corporate Travel Provider ,100240-101 ,814.80,
DFID,DFID,01/03/2017,Hotels - Accommodation only ,Group Operations ,Corporate Travel Provider ,100270-102 ,670.53,
DFID,DFID,01/03/2017,Air fares ,Policy Division ,Corporate Travel Provider ,100274-111 ,894.82,
DFID,DFID,01/03/2017,Hotels - Accommodation only ,Policy Division ,Corporate Travel Provider ,100274-111 ,716.22,
DFID,DFID,01/03/2017,Hotels - Accommodation only ,Policy Division ,Corporate Travel Provider ,100274-111 ,716.22,
DFID,DFID,01/03/2017,Hotels - Accommodation only ,Policy Division ,Corporate Travel Provider ,100274-111 ,589.02,
DFID,DFID,01/03/2017,Air fares ,Policy Division ,Corporate Travel Provider ,100274-111 ,625.34,
DFID,DFID,01/03/2017,Air fares ,Policy Division ,Corporate Travel Provider ,100274-111 ,580.57,
DFID,DFID,01/03/2017,Air fares ,Policy Division ,Corporate Travel Provider ,100274-111 ,782.30,
DFID,DFID,01/03/2017,Air fares ,Economic Development Division ,Corporate Travel Provider ,100276-101 ,"1,696.08",
DFID,DFID,01/03/2017,Hotels - Accommodation only ,Economic Development Division ,Corporate Travel Provider ,100276-101 ,"1,126.13",
DFID,DFID,01/03/2017,Air fares ,Economic Development Division ,Corporate Travel Provider ,100276-101 ,564.57,
DFID,DFID,01/03/2017,Air fares ,Policy Division ,Corporate Travel Provider ,100277-101 ,823.27,
DFID,DFID,01/03/2017,Air fares ,Policy Division ,Corporate Travel Provider ,100277-101 ,823.27,
DFID,DFID,01/03/2017,Air fares ,Policy Division ,Corporate Travel Provider ,100277-101 ,781.52,
DFID,DFID,01/03/2017,Hotels - Accommodation only ,Policy Division ,Corporate Travel Provider ,100277-101 ,551.00,
DFID,DFID,01/03/2017,Air fares ,Policy Division ,Corporate Travel Provider ,100277-101 ,748.27,
DFID,DFID,01/03/2017,Air fares ,Policy Division ,Corporate Travel Provider ,100277-101 ,636.07,
DFID,DFID,01/03/2017,Air fares ,Asia  Caribbean and Overseas Territories ,Corporate Travel Provider ,101601-110 ,857.93,
DFID,DFID,01/03/2017,Air fares ,Asia  Caribbean and Overseas Territories ,Corporate Travel Provider ,101601-110 ,543.47,
DFID,DFID,01/03/2017,Air fares ,Asia  Caribbean and Overseas Territories ,Corporate Travel Provider ,101601-110 ,"1,696.65",
DFID,DFID,01/03/2017,Air fares ,Asia  Caribbean and Overseas Territories ,Corporate Travel Provider ,101601-110 ,597.27,
DFID,DFID,01/03/2017,Air fares ,Asia  Caribbean and Overseas Territories ,Corporate Travel Provider ,101601-110 ,"1,313.90",
DFID,DFID,01/03/2017,Air fares ,Asia  Caribbean and Overseas Territories ,Corporate Travel Provider ,101601-110 ,857.93,
DFID,DFID,01/03/2017,Air fares ,Asia  Caribbean and Overseas Territories ,Corporate Travel Provider ,101601-110 ,"1,857.93",
DFID,DFID,01/03/2017,Air fares ,Asia  Caribbean and Overseas Territories ,Corporate Travel Provider ,101601-110 ,"1,745.40",
DFID,DFID,01/03/2017,Air fares ,Asia  Caribbean and Overseas Territories ,Corporate Travel Provider ,101601-110 ,"1,619.34",
DFID,DFID,01/03/2017,Air fares ,Asia  Caribbean and Overseas Territories ,Corporate Travel Provider ,101603-101 ,708.67,
DFID,DFID,01/03/2017,Air fares ,Asia  Caribbean and Overseas Territories ,Corporate Travel Provider ,101603-101 ,569.37,
DFID,DFID,01/03/2017,Air fares ,Asia  Caribbean and Overseas Territories ,Corporate Travel Provider ,101603-101 ,656.96,
DFID,DFID,01/03/2017,Air fares ,Asia  Caribbean and Overseas Territories ,Corporate Travel Provider ,101603-102 ,"1,114.51",
DFID,DFID,01/03/2017,Hotels - Accommodation only ,Asia  Caribbean and Overseas Territories ,Corporate Travel Provider ,101603-102 ,529.24,
DFID,DFID,07/03/2017,Air fares ,Asia  Caribbean and Overseas Territories ,Foreign & Commonwealth Office ,101604-101 ,710.76,
DFID,DFID,07/03/2017,Air fares ,Asia  Caribbean and Overseas Territories ,Foreign & Commonwealth Office ,101604-101 ,"2,254.69",
DFID,DFID,01/03/2017,Air fares ,Asia  Caribbean and Overseas Territories ,Corporate Travel Provider ,101604-101 ,"2,267.40",
DFID,DFID,01/03/2017,Air fares ,Asia  Caribbean and Overseas Territories ,Corporate Travel Provider ,101605-101 ,"1,990.90",
DFID,DFID,10/03/2017,Hotels - Accommodation only ,Asia  Caribbean and Overseas Territories ,Foreign & Commonwealth Office ,101605-101 ,"2,908.97",
DFID,DFID,10/03/2017,Hotels - Accommodation only ,Asia  Caribbean and Overseas Territories ,Foreign & Commonwealth Office ,101605-101 ,613.40,
DFID,DFID,01/03/2017,Air fares ,Asia  Caribbean and Overseas Territories ,Corporate Travel Provider ,101605-101 ,985.77,
DFID,DFID,01/03/2017,Hotels - Accommodation only ,Asia  Caribbean and Overseas Territories ,Corporate Travel Provider ,101605-101 ,518.00,
DFID,DFID,01/03/2017,Hotels - Accommodation only ,Asia  Caribbean and Overseas Territories ,Corporate Travel Provider ,101605-101 ,502.65,
DFID,DFID,01/03/2017,Air fares ,West and Southern Africa ,Corporate Travel Provider ,101610-101 ,"1,306.04",
DFID,DFID,01/03/2017,Air fares ,West and Southern Africa ,Corporate Travel Provider ,101610-101 ,"1,633.10",
DFID,DFID,01/03/2017,Air fares ,West and Southern Africa ,Corporate Travel Provider ,101610-101 ,"1,005.00",
DFID,DFID,01/03/2017,Air fares ,West and Southern Africa ,Corporate Travel Provider ,101610-101 ,954.60,
DFID,DFID,01/03/2017,Hotels - Accommodation only ,West and Southern Africa ,Corporate Travel Provider ,101610-101 ,"1,213.02",
DFID,DFID,01/03/2017,Air fares ,East and Central Africa ,Corporate Travel Provider ,101612-101 ,651.87,
DFID,DFID,01/03/2017,Air fares ,East and Central Africa ,Corporate Travel Provider ,101612-101 ,505.37,
DFID,DFID,01/03/2017,Air fares ,East and Central Africa ,Corporate Travel Provider ,101612-101 ,504.07,
DFID,DFID,01/03/2017,Air fares ,West and Southern Africa ,Corporate Travel Provider ,101613-101 ,"1,517.90",
DFID,DFID,01/03/2017,Air fares ,East and Central Africa ,Corporate Travel Provider ,101616-101 ,541.60,
DFID,DFID,01/03/2017,Hotels - Accommodation only ,Middle East and North Africa Division ,Corporate Travel Provider ,101619-101 ,941.41,
DFID,DFID,01/03/2017,Air fares ,West and Southern Africa ,Corporate Travel Provider ,101620-101 ,"1,136.17",
DFID,DFID,01/03/2017,Air fares ,West and Southern Africa ,Corporate Travel Provider ,101620-101 ,743.40,
DFID,DFID,01/03/2017,Air fares ,West and Southern Africa ,Corporate Travel Provider ,101620-101 ,507.20,
DFID,DFID,01/03/2017,Air fares ,West and Southern Africa ,Corporate Travel Provider ,101620-101 ,564.70,
DFID,DFID,10/03/2017,Office Equipment - Maintenance ,West and Southern Africa ,Foreign & Commonwealth Office ,101620-101 ,"1,215.71",
DFID,DFID,01/03/2017,Air fares ,West and Southern Africa ,Corporate Travel Provider ,101620-101 ,710.09,
DFID,DFID,01/03/2017,Air fares ,West and Southern Africa ,Corporate Travel Provider ,101620-101 ,894.77,
DFID,DFID,01/03/2017,Air fares ,West and Southern Africa ,Corporate Travel Provider ,101620-101 ,900.17,
DFID,DFID,01/03/2017,Air fares ,West and Southern Africa ,Corporate Travel Provider ,101620-101 ,900.17,
DFID,DFID,01/03/2017,Air fares ,West and Southern Africa ,Corporate Travel Provider ,101620-101 ,884.10,
DFID,DFID,01/03/2017,Air fares ,West and Southern Africa ,Corporate Travel Provider ,101620-101 ,884.10,
DFID,DFID,01/03/2017,Hotels - Accommodation only ,West and Southern Africa ,Corporate Travel Provider ,101620-101 ,584.00,
DFID,DFID,01/03/2017,Air fares ,West and Southern Africa ,Corporate Travel Provider ,101620-102 ,"1,113.59",
DFID,DFID,01/03/2017,Air fares ,West and Southern Africa ,Supplier Name withheld ,101622-105 ,"1,901.07",
DFID,DFID,01/03/2017,Air fares ,West and Southern Africa ,Supplier Name withheld ,101622-106 ,892.97,
DFID,DFID,01/03/2017,Air fares ,West and Southern Africa ,Supplier Name withheld ,101622-106 ,596.47,
DFID,DFID,31/03/2017,Training Providers/Facilitation Services ,West and Southern Africa ,Association of Chartered Certified Accountants (ACCA  UK) ,101622-106 ,"1,589.00",
DFID,DFID,01/03/2017,Air fares ,West and Southern Africa ,Supplier Name withheld ,101622-106 ,"1,240.32",
DFID,DFID,01/03/2017,Air fares ,West and Southern Africa ,Supplier Name withheld ,101622-106 ,"1,885.37",
DFID,DFID,01/03/2017,Air fares ,West and Southern Africa ,Supplier Name withheld ,101622-106 ,"1,719.97",
DFID,DFID,01/03/2017,Air fares ,West and Southern Africa ,Supplier Name withheld ,101622-106 ,889.87,
DFID,DFID,24/03/2017,Hotels - Accommodation only ,West and Southern Africa ,Supplier Name withheld ,101622-102 ,699.83,
DFID,DFID,01/03/2017,Air fares ,Asia  Caribbean and Overseas Territories ,Corporate Travel Provider ,101624-101 ,778.60,
DFID,DFID,01/03/2017,Air fares ,East and Central Africa ,Corporate Travel Provider ,101625-101 ,884.12,
DFID,DFID,01/03/2017,Air fares ,East and Central Africa ,Corporate Travel Provider ,101625-101 ,884.12,
DFID,DFID,01/03/2017,Air fares ,East and Central Africa ,Corporate Travel Provider ,101625-102 ,837.37,
DFID,DFID,01/03/2017,Air fares ,East and Central Africa ,Corporate Travel Provider ,101625-102 ,765.40,
DFID,DFID,01/03/2017,Air fares ,East and Central Africa ,Corporate Travel Provider ,101625-107 ,507.40,
DFID,DFID,01/03/2017,Air fares ,East and Central Africa ,Corporate Travel Provider ,101625-107 ,559.71,
DFID,DFID,01/03/2017,Hotels - Accommodation only ,East and Central Africa ,Corporate Travel Provider ,101625-108 ,601.90,
DFID,DFID,01/03/2017,Air fares ,East and Central Africa ,Corporate Travel Provider ,101625-108 ,930.40,
DFID,DFID,01/03/2017,Air fares ,East and Central Africa ,Corporate Travel Provider ,101625-108 ,513.60,
DFID,DFID,01/03/2017,Air fares ,East and Central Africa ,Corporate Travel Provider ,101625-108 ,690.02,
DFID,DFID,01/03/2017,Air fares ,East and Central Africa ,Corporate Travel Provider ,101625-108 ,"1,372.10",
DFID,DFID,01/03/2017,Air fares ,East and Central Africa ,Corporate Travel Provider ,101625-108 ,644.00,
DFID,DFID,01/03/2017,Air fares ,East and Central Africa ,Corporate Travel Provider ,101625-108 ,611.20,
DFID,DFID,01/03/2017,Air fares ,East and Central Africa ,Corporate Travel Provider ,101625-108 ,555.90,
DFID,DFID,01/03/2017,Air fares ,East and Central Africa ,Corporate Travel Provider ,101625-104 ,"1,150.87",
DFID,DFID,01/03/2017,Air fares ,West and Southern Africa ,Corporate Travel Provider ,101629-101 ,952.00,
DFID,DFID,01/03/2017,Air fares ,West and Southern Africa ,Corporate Travel Provider ,101629-101 ,"1,284.90",
DFID,DFID,01/03/2017,Air fares ,West and Southern Africa ,Corporate Travel Provider ,101629-101 ,643.40,
DFID,DFID,01/03/2017,Air fares ,West and Southern Africa ,Corporate Travel Provider ,101629-101 ,"1,159.24",
DFID,DFID,01/03/2017,Air fares ,West and Southern Africa ,Corporate Travel Provider ,101629-101 ,"2,590.54",
DFID,DFID,01/03/2017,Air fares ,West and Southern Africa ,Corporate Travel Provider ,101629-101 ,"1,003.40",
DFID,DFID,01/03/2017,Air fares ,West and Southern Africa ,Corporate Travel Provider ,101629-101 ,714.80,
DFID,DFID,01/03/2017,Air fares ,West and Southern Africa ,Corporate Travel Provider ,101629-101 ,653.70,
DFID,DFID,01/03/2017,Air fares ,West and Southern Africa ,Corporate Travel Provider ,101629-101 ,858.50,
DFID,DFID,01/03/2017,Air fares ,East and Central Africa ,Corporate Travel Provider ,101630-101 ,939.77,
DFID,DFID,01/03/2017,Air fares ,East and Central Africa ,Corporate Travel Provider ,101630-102 ,562.50,
DFID,DFID,01/03/2017,Air fares ,West and Southern Africa ,Corporate Travel Provider ,101631-101 ,"1,637.27",
DFID,DFID,01/03/2017,Hotels - Accommodation only ,West and Southern Africa ,Corporate Travel Provider ,101631-101 ,961.00,
DFID,DFID,01/03/2017,Air fares ,East and Central Africa ,Corporate Travel Provider ,101633-101 ,628.87,
DFID,DFID,01/03/2017,Air fares ,East and Central Africa ,Corporate Travel Provider ,101633-101 ,654.90,
DFID,DFID,01/03/2017,Air fares ,East and Central Africa ,Corporate Travel Provider ,101634-101 ,814.07,
DFID,DFID,01/03/2017,Air fares ,East and Central Africa ,Corporate Travel Provider ,101635-101 ,"1,151.26",
DFID,DFID,01/03/2017,Air fares ,East and Central Africa ,Corporate Travel Provider ,101635-101 ,776.86,
DFID,DFID,01/03/2017,Air fares ,East and Central Africa ,Corporate Travel Provider ,101635-101 ,572.23,
DFID,DFID,01/03/2017,Hotels - Accommodation only ,East and Central Africa ,Corporate Travel Provider ,101635-101 ,894.00,
DFID,DFID,01/03/2017,Hotels - Accommodation only ,East and Central Africa ,Corporate Travel Provider ,101635-101 ,894.00,
DFID,DFID,01/03/2017,Hotels - Accommodation only ,East and Central Africa ,Corporate Travel Provider ,101635-101 ,894.00,
DFID,DFID,01/03/2017,Air fares ,West and Southern Africa ,Corporate Travel Provider ,101637-101 ,756.21,
DFID,DFID,01/03/2017,Air fares ,West and Southern Africa ,Corporate Travel Provider ,101637-101 ,944.20,
DFID,DFID,01/03/2017,Air fares ,West and Southern Africa ,Corporate Travel Provider ,101638-101 ,"1,032.96",
DFID,DFID,01/03/2017,Hotels - Accommodation only ,Business Solutions Division Level ,Corporate Travel Provider ,200001-101 ,595.00,
DFID,DFID,01/03/2017,Hotels - Accommodation only ,Business Solutions Division Level ,Corporate Travel Provider ,200001-101 ,546.25,
DFID,DFID,01/03/2017,Hotels - Accommodation only ,Business Solutions Division Level ,Corporate Travel Provider ,200001-101 ,503.40,
DFID,DFID,01/03/2017,Air fares ,Business Solutions Division Level ,Corporate Travel Provider ,200001-101 ,761.80,
DFID,DFID,01/03/2017,Air fares ,Business Solutions Division Level ,Corporate Travel Provider ,200001-101 ,"1,011.27",
DFID,DFID,01/03/2017,Hotels - Accommodation only ,Business Solutions Division Level ,Corporate Travel Provider ,200001-101 ,556.00,
DFID,DFID,01/03/2017,Hotels - Accommodation only ,Business Solutions Division Level ,Corporate Travel Provider ,200001-101 ,556.00,
DFID,DFID,31/03/2017,Hardware -monitors ,Business Solutions Division Level ,Insight PLC,200001-101 ,"2,045.38",
DFID,DFID,31/03/2017,Training - Course Fees ,Business Solutions Division Level ,Indicia Training,200001-101 ,"1,800.00",
DFID,DFID,31/03/2017,Subscriptions ,Business Solutions Division Level ,Pluralsight,200001-101 ,"1,504.43",
DFID,DFID,07/03/2017,Data Network - land lines ,Business Solutions Division Level ,Foreign & Commonwealth Office ,200002-121 ,531.05,
DFID,DFID,09/03/2017,Data network- remote working ,Business Solutions Division Level ,Foreign & Commonwealth Office ,200002-121 ,563.86,
DFID,DFID,09/03/2017,Data Network - land lines ,Business Solutions Division Level ,Foreign & Commonwealth Office ,200002-121 ,965.38,
DFID,DFID,07/03/2017,Data network- remote working ,Business Solutions Division Level ,Foreign & Commonwealth Office ,200002-121 ,563.86,
DFID,DFID,31/03/2017,Hardware -Laptop PCs ,Business Solutions Division Level ,SBL Ltd,200002-153 ,"3,520.80",
DFID,DFID,31/03/2017,Hardware - PDAs ,Business Solutions Division Level ,Amazon,200002-153 ,799.98,
DFID,DFID,31/03/2017,Hardware -Laptop PCs ,Business Solutions Division Level ,SBL Ltd,200002-154 ,914.35,
DFID,DFID,31/03/2017,Hardware -monitors ,Business Solutions Division Level ,SBL Ltd,200003-133 ,760.61,
DFID,DFID,01/03/2017,Air fares ,Middle East and North Africa Division ,Corporate Travel Provider ,201701-101 ,523.97,
DFID,DFID,01/03/2017,Air fares ,Middle East and North Africa Division ,Corporate Travel Provider ,201701-101 ,523.87,
DFID,DFID,01/03/2017,Hotels - Accommodation only ,Middle East and North Africa Division ,Corporate Travel Provider ,201701-101 ,526.13,
DFID,DFID,01/03/2017,Air fares ,Middle East and North Africa Division ,Corporate Travel Provider ,201701-101 ,550.07,
DFID,DFID,01/03/2017,Air fares ,Middle East and North Africa Division ,Corporate Travel Provider ,201701-101 ,524.07,
DFID,DFID,01/03/2017,Air fares ,Middle East and North Africa Division ,Corporate Travel Provider ,201701-101 ,523.97,
DFID,DFID,01/03/2017,Air fares ,Middle East and North Africa Division ,Corporate Travel Provider ,201701-101 ,523.97,
DFID,DFID,01/03/2017,Air fares ,Middle East and North Africa Division ,Corporate Travel Provider ,201701-101 ,523.27,
DFID,DFID,01/03/2017,Air fares ,Middle East and North Africa Division ,Corporate Travel Provider ,201701-101 ,523.87,
DFID,DFID,10/03/2017,Telephone Usage & services ,Middle East and North Africa Division ,Foreign & Commonwealth Office ,201705-101 ,"1,434.64",
DFID,DFID,01/03/2017,Air fares ,International Relations Division ,Corporate Travel Provider ,201711-101 ,923.39,
DFID,DFID,01/03/2017,Air fares ,International Relations Division ,Corporate Travel Provider ,201711-101 ,923.39,
DFID,DFID,01/03/2017,Air fares ,International Relations Division ,Corporate Travel Provider ,201711-101 ,"1,003.39",
DFID,DFID,01/03/2017,Air fares ,Economic Development Division ,Corporate Travel Provider ,201723-102 ,722.28,
DFID,DFID,01/03/2017,Hotels - Accommodation only ,Economic Development Division ,Corporate Travel Provider ,201723-102 ,762.51,
DFID,DFID,01/03/2017,Air fares ,Economic Development Division ,Corporate Travel Provider ,202259-101 ,559.07,
DFID,DFID,01/03/2017,Hotels - Accommodation only ,Economic Development Division ,Corporate Travel Provider ,202259-101 ,604.80,
DFID,DFID,01/03/2017,Air fares ,Research and Evidence Division ,Corporate Travel Provider ,202331-101 ,640.90,
DFID,DFID,01/03/2017,Air fares ,Research and Evidence Division ,Corporate Travel Provider ,202331-101 ,640.90,
DFID,DFID,01/03/2017,Hotels - Accommodation only ,Research and Evidence Division ,Corporate Travel Provider ,202348-103 ,720.00,
DFID,DFID,01/03/2017,Hotels - Accommodation only ,Economic Development Division ,Corporate Travel Provider ,202373-101 ,"1,319.94",
DFID,DFID,01/03/2017,Hotels - Accommodation only ,Economic Development Division ,Corporate Travel Provider ,202373-101 ,906.12,
DFID,DFID,01/03/2017,Air fares ,Economic Development Division ,Corporate Travel Provider ,202373-101 ,527.70,
DFID,DFID,01/03/2017,Air fares ,Economic Development Division ,Corporate Travel Provider ,202373-101 ,818.16,
DFID,DFID,01/03/2017,Air fares ,Economic Development Division ,Corporate Travel Provider ,202373-101 ,522.80,
DFID,DFID,01/03/2017,Air fares ,Economic Development Division ,Corporate Travel Provider ,202373-101 ,628.41,
DFID,DFID,01/03/2017,Air fares ,Economic Development Division ,Corporate Travel Provider ,202373-101 ,830.57,
DFID,DFID,01/03/2017,Air fares ,Research and Evidence Division ,Corporate Travel Provider ,202392-101 ,512.67,
DFID,DFID,01/03/2017,Hotels - Accommodation only ,Research and Evidence Division ,Corporate Travel Provider ,202392-102 ,888.93,
DFID,DFID,01/03/2017,Air fares ,Research and Evidence Division ,Corporate Travel Provider ,202392-102 ,740.97,
DFID,DFID,01/03/2017,Air fares ,Research and Evidence Division ,Corporate Travel Provider ,202392-102 ,"1,381.37",
DFID,DFID,01/03/2017,Air fares ,Research and Evidence Division ,Corporate Travel Provider ,202392-102 ,"1,313.03",
DFID,DFID,01/03/2017,Air fares ,Research and Evidence Division ,Corporate Travel Provider ,202392-102 ,536.77,
DFID,DFID,01/03/2017,Hotels - Accommodation only ,Research and Evidence Division ,Corporate Travel Provider ,202392-103 ,527.31,
DFID,DFID,01/03/2017,Air fares ,Research and Evidence Division ,Corporate Travel Provider ,202392-103 ,741.27,
DFID,DFID,01/03/2017,Air fares ,Research and Evidence Division ,Corporate Travel Provider ,202392-103 ,622.47,
DFID,DFID,01/03/2017,Air fares ,Research and Evidence Division ,Corporate Travel Provider ,202392-103 ,"1,315.97",
DFID,DFID,01/03/2017,Air fares ,Research and Evidence Division ,Corporate Travel Provider ,202392-113 ,757.27,
DFID,DFID,01/03/2017,Air fares ,Research and Evidence Division ,Corporate Travel Provider ,202392-113 ,"1,386.57",
DFID,DFID,01/03/2017,Air fares ,Research and Evidence Division ,Corporate Travel Provider ,202392-113 ,531.57,
DFID,DFID,01/03/2017,Air fares ,Research and Evidence Division ,Corporate Travel Provider ,202392-105 ,924.06,
DFID,DFID,01/03/2017,Air fares ,Research and Evidence Division ,Corporate Travel Provider ,202392-106 ,811.27,
DFID,DFID,01/03/2017,Air fares ,Research and Evidence Division ,Corporate Travel Provider ,202392-110 ,677.96,
DFID,DFID,01/03/2017,Hotels - Accommodation only ,Research and Evidence Division ,Corporate Travel Provider ,202392-110 ,"1,141.01",
DFID,DFID,01/03/2017,Air fares ,Policy Division ,Corporate Travel Provider ,202402-107 ,652.90,
DFID,DFID,01/03/2017,Air fares ,Policy Division ,Corporate Travel Provider ,202402-107 ,701.57,
DFID,DFID,01/03/2017,Air fares ,Policy Division ,Corporate Travel Provider ,202402-107 ,"1,033.42",
DFID,DFID,01/03/2017,Air fares ,Policy Division ,Corporate Travel Provider ,202402-107 ,879.22,
DFID,DFID,01/03/2017,Air fares ,Policy Division ,Corporate Travel Provider ,202402-107 ,564.57,
DFID,DFID,01/03/2017,Air fares ,Policy Division ,Corporate Travel Provider ,202402-107 ,715.30,
DFID,DFID,01/03/2017,Air fares ,Policy Division ,Corporate Travel Provider ,202402-107 ,513.57,
DFID,DFID,01/03/2017,Air fares ,Policy Division ,Corporate Travel Provider ,202402-107 ,660.67,
DFID,DFID,31/03/2017,Computer Software Licenses ,Conflict  Humanitarian  Security & Stabilisation Division ,Tableau International U.C.,202410-101 ,"1,645.54",
DFID,DFID,01/03/2017,Air fares ,Conflict  Humanitarian  Security & Stabilisation Division ,Corporate Travel Provider ,202410-107 ,704.87,
DFID,DFID,01/03/2017,Air fares ,Conflict  Humanitarian  Security & Stabilisation Division ,Corporate Travel Provider ,202410-107 ,597.92,
DFID,DFID,01/03/2017,Air fares ,Conflict  Humanitarian  Security & Stabilisation Division ,Corporate Travel Provider ,202410-107 ,748.50,
DFID,DFID,01/03/2017,Hotels - Accommodation only ,Conflict  Humanitarian  Security & Stabilisation Division ,Corporate Travel Provider ,202410-107 ,836.39,
DFID,DFID,01/03/2017,Hotels - Accommodation only ,Conflict  Humanitarian  Security & Stabilisation Division ,Corporate Travel Provider ,202410-107 ,836.39,
DFID,DFID,01/03/2017,Hotels - Accommodation only ,Conflict  Humanitarian  Security & Stabilisation Division ,Corporate Travel Provider ,202410-108 ,671.29,
DFID,DFID,01/03/2017,Hotels - Accommodation only ,Conflict  Humanitarian  Security & Stabilisation Division ,Corporate Travel Provider ,202410-108 ,671.29,
DFID,DFID,01/03/2017,Air fares ,Conflict  Humanitarian  Security & Stabilisation Division ,Corporate Travel Provider ,202410-108 ,747.37,
DFID,DFID,01/03/2017,Air fares ,Conflict  Humanitarian  Security & Stabilisation Division ,Corporate Travel Provider ,202410-108 ,716.17,
DFID,DFID,01/03/2017,Hotels - Accommodation only ,Conflict  Humanitarian  Security & Stabilisation Division ,Corporate Travel Provider ,202410-108 ,507.60,
DFID,DFID,01/03/2017,Hotels - Accommodation only ,Conflict  Humanitarian  Security & Stabilisation Division ,Corporate Travel Provider ,202410-108 ,950.55,
DFID,DFID,01/03/2017,Hotels - Accommodation only ,Conflict  Humanitarian  Security & Stabilisation Division ,Corporate Travel Provider ,202410-108 ,610.79,
DFID,DFID,01/03/2017,Air fares ,Conflict  Humanitarian  Security & Stabilisation Division ,Corporate Travel Provider ,202410-108 ,"1,907.00",
DFID,DFID,01/03/2017,Air fares ,Policy Division ,Corporate Travel Provider ,202419-101 ,935.50,
DFID,DFID,01/03/2017,Air fares ,Policy Division ,Corporate Travel Provider ,202419-101 ,784.56,
DFID,DFID,01/03/2017,Air fares ,Economic Development Division ,Corporate Travel Provider ,202432-101 ,703.27,
DFID,DFID,01/03/2017,Hotels - Accommodation only ,Economic Development Division ,Corporate Travel Provider ,202432-101 ,539.31,
DFID,DFID,01/03/2017,Air fares ,Economic Development Division ,Corporate Travel Provider ,202432-101 ,990.31,
DFID,DFID,01/03/2017,Air fares ,Economic Development Division ,Corporate Travel Provider ,202432-101 ,798.67,
DFID,DFID,01/03/2017,Air fares ,Economic Development Division ,Corporate Travel Provider ,202432-101 ,905.00,
DFID,DFID,01/03/2017,Hotels - Accommodation only ,Economic Development Division ,Corporate Travel Provider ,202432-101 ,604.80,
DFID,DFID,01/03/2017,Air fares ,Economic Development Division ,Corporate Travel Provider ,202432-101 ,533.17,
DFID,DFID,01/03/2017,Hotels - Accommodation only ,Economic Development Division ,Corporate Travel Provider ,202432-101 ,796.40,
DFID,DFID,01/03/2017,Air fares ,East and Central Africa ,Corporate Travel Provider ,202594-101 ,931.80,
DFID,DFID,01/03/2017,Air fares ,East and Central Africa ,Corporate Travel Provider ,202594-101 ,734.77,
DFID,DFID,01/03/2017,Air fares ,East and Central Africa ,Corporate Travel Provider ,202594-101 ,943.27,
DFID,DFID,01/03/2017,Air fares ,East and Central Africa ,Corporate Travel Provider ,202594-101 ,"1,028.80",
DFID,DFID,01/03/2017,Air fares ,East and Central Africa ,Corporate Travel Provider ,202594-101 ,584.47,
DFID,DFID,01/03/2017,Air fares ,East and Central Africa ,Corporate Travel Provider ,202594-101 ,531.67,
DFID,DFID,01/03/2017,Air fares ,East and Central Africa ,Corporate Travel Provider ,202594-101 ,764.67,
DFID,DFID,01/03/2017,Air fares ,East and Central Africa ,Corporate Travel Provider ,202594-101 ,793.14,
DFID,DFID,01/03/2017,Air fares ,East and Central Africa ,Corporate Travel Provider ,202594-101 ,664.77,
DFID,DFID,01/03/2017,Air fares ,East and Central Africa ,Corporate Travel Provider ,202594-101 ,722.67,
DFID,DFID,01/03/2017,Air fares ,East and Central Africa ,Corporate Travel Provider ,202594-101 ,"1,491.37",
DFID,DFID,01/03/2017,Air fares ,East and Central Africa ,Corporate Travel Provider ,202594-101 ,"1,094.97",
DFID,DFID,01/03/2017,Air fares ,East and Central Africa ,Corporate Travel Provider ,202594-101 ,631.10,
DFID,DFID,01/03/2017,Air fares ,East and Central Africa ,Corporate Travel Provider ,202594-101 ,750.97,
DFID,DFID,01/03/2017,Air fares ,East and Central Africa ,Corporate Travel Provider ,202594-101 ,696.50,
DFID,DFID,01/03/2017,Air fares ,East and Central Africa ,Corporate Travel Provider ,202594-101 ,531.67,
DFID,DFID,01/03/2017,Air fares ,East and Central Africa ,Corporate Travel Provider ,202594-101 ,608.40,
DFID,DFID,01/03/2017,Air fares ,East and Central Africa ,Corporate Travel Provider ,202594-101 ,898.27,
DFID,DFID,01/03/2017,Air fares ,West and Southern Africa ,Corporate Travel Provider ,202656-103 ,986.82,
DFID,DFID,09/03/2017,Data Network - land lines ,Business Solutions Division Level ,Foreign & Commonwealth Office ,203329-102 ,965.37,
DFID,DFID,01/03/2017,Air fares ,Finance and Corporate Performance Division ,Corporate Travel Provider ,203698-102 ,624.60,
DFID,DFID,01/03/2017,Air fares ,Research and Evidence Division ,Corporate Travel Provider ,203874-103 ,"1,021.97",
DFID,DFID,01/03/2017,Air fares ,Research and Evidence Division ,Corporate Travel Provider ,203874-103 ,"1,090.60",
DFID,DFID,01/03/2017,Air fares ,Research and Evidence Division ,Corporate Travel Provider ,203874-103 ,"1,966.37",
DFID,DFID,01/03/2017,Air fares ,West and Southern Africa ,Corporate Travel Provider ,203981-108 ,792.70,
DFID,DFID,01/03/2017,Air fares ,West and Southern Africa ,Corporate Travel Provider ,203981-108 ,960.00,
DFID,DFID,01/03/2017,Air fares ,Asia  Caribbean and Overseas Territories ,Corporate Travel Provider ,204053-101 ,763.87,
DFID,DFID,01/03/2017,Air fares ,Asia  Caribbean and Overseas Territories ,Corporate Travel Provider ,204053-101 ,537.07,
DFID,DFID,01/03/2017,Air fares ,Asia  Caribbean and Overseas Territories ,Corporate Travel Provider ,204053-101 ,537.07,
DFID,DFID,01/03/2017,Air fares ,Middle East and North Africa Division ,Corporate Travel Provider ,204055-101 ,524.07,
DFID,DFID,01/03/2017,Air fares ,Middle East and North Africa Division ,Corporate Travel Provider ,204055-101 ,524.07,
DFID,DFID,01/03/2017,Air fares ,Middle East and North Africa Division ,Corporate Travel Provider ,204055-101 ,516.77,
DFID,DFID,01/03/2017,Air fares ,Middle East and North Africa Division ,Corporate Travel Provider ,204055-101 ,824.37,
DFID,DFID,01/03/2017,Air fares ,Middle East and North Africa Division ,Corporate Travel Provider ,204055-101 ,524.07,
DFID,DFID,07/03/2017,House rentals ,Middle East and North Africa Division ,Foreign & Commonwealth Office ,204055-101 ,"11,028.53",
DFID,DFID,01/03/2017,Air fares ,Middle East and North Africa Division ,Corporate Travel Provider ,204084-101 ,536.80,
DFID,DFID,01/03/2017,Air fares ,Middle East and North Africa Division ,Corporate Travel Provider ,204084-101 ,"1,154.80",
DFID,DFID,31/03/2017,Professional member subscriptions ,Group Operations ,nformation Commissioner's Office.,204284-101 ,500.00,
DFID,DFID,01/03/2017,Hotels - Accommodation only ,Group Operations ,Corporate Travel Provider ,204284-101 ,"2,264.00",
DFID,DFID,01/03/2017,Hotels - Accommodation only ,East and Central Africa ,Corporate Travel Provider ,204323-107 ,798.28,
DFID,DFID,01/03/2017,Hotels - Accommodation only ,Asia  Caribbean and Overseas Territories ,Corporate Travel Provider ,204604-107 ,645.00,
DFID,DFID,21/03/2017,Project delivery costs – supplier services ,Asia  Caribbean and Overseas Territories ,Foreign & Commonwealth Office ,204613-101 ,"1,177.18",
DFID,DFID,01/03/2017,Air fares ,West and Southern Africa ,Corporate Travel Provider ,204643-101 ,528.07,
DFID,DFID,01/03/2017,Air fares ,Research and Evidence Division ,Corporate Travel Provider ,204815-101 ,579.72,
DFID,DFID,01/03/2017,Hotels - Accommodation only ,Research and Evidence Division ,Corporate Travel Provider ,204815-101 ,904.70,
DFID,DFID,01/03/2017,Hotels - Accommodation only ,Research and Evidence Division ,Corporate Travel Provider ,204815-101 ,685.13,
DFID,DFID,01/03/2017,Air fares ,Regional Directorate ,Corporate Travel Provider ,204833-101 ,622.50,
DFID,DFID,01/03/2017,Air fares ,Regional Directorate ,Corporate Travel Provider ,204833-101 ,917.77,
DFID,DFID,01/03/2017,Air fares ,Finance and Corporate Performance Division ,Corporate Travel Provider ,204846-101 ,"1,159.24",
DFID,DFID,31/03/2017,Recruitment costs ,Non-Departmental Public Body ,Guardian Newspaper,204859-104 ,912.00,
DFID,DFID,01/03/2017,Air fares ,West and Southern Africa ,Corporate Travel Provider ,204939-102 ,"1,829.10",
DFID,DFID,10/03/2017,Hotels - Accommodation only,East and Central Africa ,Foreign & Commonwealth Office ,204957-102 ,"1,072.59",
DFID,DFID,10/03/2017,Air fares ,East and Central Africa ,Foreign & Commonwealth Office ,204957-102 ,536.29,
DFID,DFID,01/03/2017,Air fares ,Middle East and North Africa Division ,Corporate Travel Provider ,204978-101 ,517.57,
DFID,DFID,01/03/2017,Air fares ,Middle East and North Africa Division ,Corporate Travel Provider ,204981-101 ,651.17,
DFID,DFID,01/03/2017,Air fares ,PGP Directorate ,Corporate Travel Provider ,205044-101 ,504.77,
DFID,DFID,01/03/2017,Air fares ,International Relations Division ,Corporate Travel Provider ,205081-101 ,"1,124.50",
DFID,DFID,01/03/2017,Air fares ,Policy Division ,Corporate Travel Provider ,205248-102 ,"1,131.90",
DFID,DFID,01/03/2017,Air fares ,Policy Division ,Corporate Travel Provider ,300032-101 ,"1,332.57",
DFID,DFID,01/03/2017,Air fares ,Policy Division ,Corporate Travel Provider ,300032-101 ,590.80,
DFID,DFID,01/03/2017,Air fares ,Policy Division ,Corporate Travel Provider ,300033-101 ,576.30,
DFID,DFID,01/03/2017,Air fares ,Middle East and North Africa Division ,Corporate Travel Provider ,300078-101 ,523.87,
DFID,DFID,01/03/2017,Air fares ,Middle East and North Africa Division ,Corporate Travel Provider ,300078-101 ,613.07,
DFID,DFID,01/03/2017,Air fares ,Middle East and North Africa Division ,Corporate Travel Provider ,300078-101 ,510.10,
DFID,DFID,01/03/2017,Air fares ,Middle East and North Africa Division ,Corporate Travel Provider ,300078-101 ,549.70,
DFID,DFID,01/03/2017,Air fares ,Middle East and North Africa Division ,Corporate Travel Provider ,300080-101 ,519.27,
DFID,DFID,09/03/2017,Aid Programme - Accountable Grant Payments ,Conflict  Humanitarian  Security & Stabilisation Division ,ACTIONAID ,300334-101 ,"314,051.33",
DFID,DFID,17/03/2017,Aid Programme - Accountable Grant Payments ,Conflict  Humanitarian  Security & Stabilisation Division ,ACTIONAID ,300334-101 ,"185,948.67",
DFID,DFID,30/03/2017,Aid Programme - Accountable Grant Payments ,Research and Evidence Division ,ASSOCIATION OF COMMONWEALTH UNIVER ,201871-103 ,"422,326.00",
DFID,DFID,29/03/2017,Project delivery costs – supplier services ,West and Southern Africa ,ADAM SMITH INTERNATIONAL  LTD ,104190-102 ,"444,402.83",
DFID,DFID,27/03/2017,Project delivery costs – supplier services ,Asia  Caribbean and Overseas Territories ,ADAM SMITH INTERNATIONAL  LTD ,201367-103 ,"98,276.22",
DFID,DFID,02/03/2017,Project delivery costs – supplier services ,Asia  Caribbean and Overseas Territories ,ADAM SMITH INTERNATIONAL  LTD ,201367-103 ,"197,566.03",
DFID,DFID,17/03/2017,Project delivery costs – supplier services ,West and Southern Africa ,ADAM SMITH INTERNATIONAL  LTD ,201433-102 ,"658,695.41",
DFID,DFID,17/03/2017,Project delivery costs – supplier services ,West and Southern Africa ,ADAM SMITH INTERNATIONAL  LTD ,201433-102 ,"8,017.75",
DFID,DFID,01/03/2017,Project delivery costs – supplier services ,Asia  Caribbean and Overseas Territories ,Supplier Name withheld ,202112-102 ,"70,532.60",
DFID,DFID,23/03/2017,Project delivery costs – supplier services ,Asia  Caribbean and Overseas Territories ,Supplier Name withheld ,202112-102 ,"82,352.00",
DFID,DFID,16/03/2017,Project delivery costs – supplier services ,Asia  Caribbean and Overseas Territories ,ADAM SMITH INTERNATIONAL  LTD ,202328-102 ,"383,511.97",
DFID,DFID,01/03/2017,Project delivery costs – supplier services ,Asia  Caribbean and Overseas Territories ,ADAM SMITH INTERNATIONAL  LTD ,202328-102 ,"572,062.99",
DFID,DFID,13/03/2017,Project delivery costs – supplier services ,West and Southern Africa ,ADAM SMITH INTERNATIONAL  LTD ,202539-106 ,"34,671.69",
DFID,DFID,15/03/2017,Project delivery costs – supplier services ,West and Southern Africa ,ADAM SMITH INTERNATIONAL  LTD ,202539-106 ,"104,497.09",
DFID,DFID,27/03/2017,Project delivery costs – supplier services ,West and Southern Africa ,ADAM SMITH INTERNATIONAL  LTD ,202539-106 ,"6,925.00",
DFID,DFID,31/03/2017,Project delivery costs – supplier services ,West and Southern Africa ,ADAM SMITH INTERNATIONAL  LTD ,202539-106 ,"115,021.50",
DFID,DFID,30/03/2017,Project delivery costs – supplier services ,West and Southern Africa ,ADAM SMITH INTERNATIONAL  LTD ,202539-108 ,"39,425.80",
DFID,DFID,20/03/2017,Project delivery costs – supplier services ,West and Southern Africa ,ADAM SMITH INTERNATIONAL  LTD ,202539-108 ,"105,998.33",
DFID,DFID,30/03/2017,Project delivery costs – supplier services ,West and Southern Africa ,ADAM SMITH INTERNATIONAL  LTD ,202541-106 ,"256,938.80",
DFID,DFID,23/03/2017,Project delivery costs – supplier services ,West and Southern Africa ,ADAM SMITH INTERNATIONAL  LTD ,202584-106 ,"269,769.13",
DFID,DFID,08/03/2017,Project delivery costs – supplier services ,West and Southern Africa ,ADAM SMITH INTERNATIONAL  LTD ,202584-106 ,"267,861.94",
DFID,DFID,02/03/2017,Project delivery costs – supplier services ,Asia  Caribbean and Overseas Territories ,ADAM SMITH INTERNATIONAL  LTD ,202697-109 ,"115,600.00",
DFID,DFID,29/03/2017,Project delivery costs – supplier services ,Asia  Caribbean and Overseas Territories ,ADAM SMITH INTERNATIONAL  LTD ,202697-109 ,"981,936.00",
DFID,DFID,02/03/2017,Project delivery costs – supplier services ,East and Central Africa ,ADAM SMITH INTERNATIONAL  LTD ,203153-103 ,"290,236.40",
DFID,DFID,31/03/2017,Project delivery costs – supplier services ,East and Central Africa ,ADAM SMITH INTERNATIONAL  LTD ,203153-103 ,"121,584.23",
DFID,DFID,02/03/2017,Project delivery costs – supplier services ,West and Southern Africa ,ADAM SMITH INTERNATIONAL  LTD ,203161-103 ,"505,514.34",
DFID,DFID,24/03/2017,Project delivery costs – supplier services ,West and Southern Africa ,ADAM SMITH INTERNATIONAL  LTD ,203161-103 ,"466,572.65",
DFID,DFID,02/03/2017,Project delivery costs – supplier services ,West and Southern Africa ,ADAM SMITH INTERNATIONAL  LTD ,203666-102 ,"45,984.38",
DFID,DFID,16/03/2017,Project delivery costs – supplier services ,West and Southern Africa ,ADAM SMITH INTERNATIONAL  LTD ,203674-103 ,"90,840.12",
DFID,DFID,16/03/2017,Project delivery costs – supplier services ,West and Southern Africa ,ADAM SMITH INTERNATIONAL  LTD ,203674-102 ,"23,820.43",
DFID,DFID,16/03/2017,Project delivery costs – supplier services ,West and Southern Africa ,ADAM SMITH INTERNATIONAL  LTD ,203674-102 ,"69,230.52",
DFID,DFID,17/03/2017,Project delivery costs – supplier services ,West and Southern Africa ,ADAM SMITH INTERNATIONAL  LTD ,203719-101 ,"227,252.51",
DFID,DFID,20/03/2017,Project delivery costs – supplier services ,West and Southern Africa ,ADAM SMITH INTERNATIONAL  LTD ,203824-103 ,"145,008.35",
DFID,DFID,02/03/2017,Project delivery costs – supplier services ,Asia  Caribbean and Overseas Territories ,Supplier Name withheld ,203951-101 ,"29,149.46",
DFID,DFID,29/03/2017,Project delivery costs – supplier services ,East and Central Africa ,ADAM SMITH INTERNATIONAL  LTD ,204456-105 ,"8,786.36",
DFID,DFID,29/03/2017,Project delivery costs – supplier services ,East and Central Africa ,ADAM SMITH INTERNATIONAL  LTD ,204456-105 ,"15,537.59",
DFID,DFID,31/03/2017,Project delivery costs – supplier services ,Asia  Caribbean and Overseas Territories ,ADAM SMITH INTERNATIONAL  LTD ,204619-104 ,"125,119.31",
DFID,DFID,06/03/2017,Project delivery costs – supplier services ,Asia  Caribbean and Overseas Territories ,ADAM SMITH INTERNATIONAL  LTD ,204619-104 ,"195,353.44",
DFID,DFID,09/03/2017,Project delivery costs – supplier services ,West and Southern Africa ,ADAM SMITH INTERNATIONAL  LTD ,204659-104 ,"232,556.73",
DFID,DFID,08/03/2017,Project delivery costs – supplier services ,Middle East and North Africa Division ,ADAM SMITH INTERNATIONAL  LTD ,205048-102 ,"57,498.52",
DFID,DFID,24/03/2017,Project delivery costs – supplier services ,Middle East and North Africa Division ,ADAM SMITH INTERNATIONAL  LTD ,205048-102 ,"149,552.74",
DFID,DFID,02/03/2017,Project delivery costs – supplier services ,East and Central Africa ,ADAM SMITH INTERNATIONAL  LTD ,205065-103 ,"45,432.74",
DFID,DFID,03/03/2017,Project delivery costs – supplier services ,East and Central Africa ,ADAM SMITH INTERNATIONAL  LTD ,205065-102 ,"220,221.46",
DFID,DFID,01/03/2017,Project delivery costs – supplier services ,East and Central Africa ,ADAM SMITH INTERNATIONAL  LTD ,205065-102 ,"125,840.82",
DFID,DFID,09/03/2017,Project delivery costs – supplier services ,Middle East and North Africa Division ,ADAM SMITH INTERNATIONAL  LTD ,300011-101 ,"101,404.64",
DFID,DFID,03/03/2017,Project delivery costs – supplier services ,Middle East and North Africa Division ,ADAM SMITH INTERNATIONAL  LTD ,300011-101 ,"196,731.53",
DFID,DFID,17/03/2017,Contract & Agency Staff ,Business Solutions Division Level ,ALLEGIS GROUP LIMITED ,200001-101 ,"2,250.00",
DFID,DFID,20/03/2017,Project delivery costs – supplier services ,West and Southern Africa ,BRITISH COUNCIL (UK) ,114161-101 ,"322,428.00",
DFID,DFID,07/03/2017,Aid Programme - Joint programme contribution ,Research and Evidence Division ,Natural Environment Research Council ,203774-103 ,"466,000.00",
DFID,DFID,10/03/2017,Aid Programme - Joint programme contribution ,Research and Evidence Division ,Natural Environment Research Council ,203835-103 ,"823,750.00",
DFID,DFID,07/03/2017,Aid Programme - Voluntary contributions ,East and Central Africa ,BRITISH RED CROSS ,203768-101 ,"102,409.00",
DFID,DFID,20/03/2017,Training Providers/Facilitation Services ,Asia  Caribbean and Overseas Territories ,THE SPRINGFIELD CENTRE ,101605-101 ,"3,600.00",
DFID,DFID,08/03/2017,Telephone Usage & services ,Business Solutions Division Level ,BT BACS PAYMENTS ,200002-130 ,873.53,
DFID,DFID,21/03/2017,Project delivery costs – supplier services ,West and Southern Africa ,BRITISH COUNCIL ,201625-101 ,"34,472.54",
DFID,DFID,30/03/2017,Project delivery costs – supplier services ,West and Southern Africa ,BRITISH COUNCIL ,201625-101 ,"452,643.49",
DFID,DFID,30/03/2017,Project delivery costs – supplier services ,West and Southern Africa ,BRITISH COUNCIL ,201625-109 ,"207,202.00",
DFID,DFID,07/03/2017,Project delivery costs – supplier services ,West and Southern Africa ,BRITISH COUNCIL ,201625-109 ,"59,951.21",
DFID,DFID,23/03/2017,Project delivery costs – supplier services ,West and Southern Africa ,BRITISH COUNCIL ,201625-109 ,"189,386.83",
DFID,DFID,15/03/2017,Project delivery costs – supplier services ,East and Central Africa ,BRITISH COUNCIL ,203396-103 ,"1,016,632.00",
DFID,DFID,22/03/2017,Project delivery costs – supplier services ,West and Southern Africa ,BRITISH COUNCIL ,203816-103 ,"160,000.00",
DFID,DFID,22/03/2017,Project delivery costs – supplier services ,West and Southern Africa ,BRITISH COUNCIL ,203816-102 ,"67,752.19",
DFID,DFID,15/03/2017,Aid Programme - Accountable Grant Payments ,Policy Division ,CAFOD ,203559-138 ,"599,683.00",
DFID,DFID,31/03/2017,Project delivery costs – supplier services ,Asia  Caribbean and Overseas Territories ,CHRISTIAN AID ,113311-101 ,"175,606.15",
DFID,DFID,27/03/2017,Recruitment costs ,East and Central Africa ,Crown Agents. ,101612-101 ,"12,354.28",
DFID,DFID,03/03/2017,Recruitment costs ,East and Central Africa ,Crown Agents. ,101612-101 ,"2,540.00",
DFID,DFID,24/03/2017,Project delivery costs – supplier services ,West and Southern Africa ,Crown Agents. ,101629-101 ,753.28,
DFID,DFID,24/03/2017,Project delivery costs – supplier services ,West and Southern Africa ,Crown Agents. ,101629-101 ,"3,094.00",
DFID,DFID,01/03/2017,Project delivery costs – supplier services ,Asia  Caribbean and Overseas Territories ,Crown Agents. ,113287-102 ,"16,652.42",
DFID,DFID,29/03/2017,Project delivery costs – supplier services ,Policy Division ,Crown Agents. ,200706-102 ,"24,925.60",
DFID,DFID,29/03/2017,Project delivery costs – supplier services ,Policy Division ,Crown Agents. ,200706-102 ,"14,144.74",
DFID,DFID,23/03/2017,Project delivery costs – supplier services ,Policy Division ,Crown Agents. ,200706-102 ,"3,488.20",
DFID,DFID,28/03/2017,Project delivery costs – supplier services ,Policy Division ,Crown Agents. ,200706-102 ,"3,278.62",
DFID,DFID,27/03/2017,Project delivery costs – supplier services ,Policy Division ,Crown Agents. ,200706-102 ,"352,207.14",
DFID,DFID,27/03/2017,Project delivery costs – supplier services ,Policy Division ,Crown Agents. ,200706-102 ,"388,357.38",
DFID,DFID,10/03/2017,Project delivery costs – supplier services ,Policy Division ,Crown Agents. ,200706-102 ,"197,415.00",
DFID,DFID,10/03/2017,Project delivery costs – supplier services ,Policy Division ,Crown Agents. ,200706-102 ,"2,395.00",
DFID,DFID,10/03/2017,Project delivery costs – supplier services ,Policy Division ,Crown Agents. ,200706-102 ,"10,658.60",
DFID,DFID,17/03/2017,Project delivery costs – supplier services ,Asia  Caribbean and Overseas Territories ,Crown Agents. ,201645-105 ,"309,611.97",
DFID,DFID,30/03/2017,Fund monies to be managed and dispersed by the supplier ,Economic Development Division ,Crown Agents. ,202089-102 ,"52,071.56",
DFID,DFID,30/03/2017,Project delivery costs – supplier services ,Conflict  Humanitarian  Security & Stabilisation Division ,Crown Agents. ,202410-108 ,"3,866.92",
DFID,DFID,17/03/2017,Project delivery costs – supplier services ,West and Southern Africa ,Crown Agents. ,202416-120 ,"10,975.20",
DFID,DFID,21/03/2017,Project delivery costs – supplier services ,West and Southern Africa ,Crown Agents. ,202416-115 ,"1,937.77",
DFID,DFID,22/03/2017,Project delivery costs – supplier services ,West and Southern Africa ,Crown Agents. ,202416-115 ,"1,296.21",
DFID,DFID,21/03/2017,Project delivery costs – supplier services ,West and Southern Africa ,Crown Agents. ,202416-115 ,"8,618.40",
DFID,DFID,01/03/2017,Project delivery costs – supplier services ,West and Southern Africa ,Crown Agents. ,202640-102 ,"229,140.43",
DFID,DFID,01/03/2017,Project delivery costs – supplier services ,West and Southern Africa ,Crown Agents. ,202640-102 ,"832,179.16",
DFID,DFID,01/03/2017,Project delivery costs – supplier services ,West and Southern Africa ,Crown Agents. ,202640-103 ,"103,783.53",
DFID,DFID,03/03/2017,Project delivery costs – supplier services ,Conflict  Humanitarian  Security & Stabilisation Division ,Crown Agents. ,202741-107 ,"24,652.56",
DFID,DFID,03/03/2017,Project delivery costs – supplier services ,Conflict  Humanitarian  Security & Stabilisation Division ,Crown Agents. ,202741-107 ,"1,176.86",
DFID,DFID,24/03/2017,Project delivery costs – supplier services ,Conflict  Humanitarian  Security & Stabilisation Division ,Crown Agents. ,202741-106 ,"384,000.00",
DFID,DFID,14/03/2017,Project delivery costs – supplier services ,Conflict  Humanitarian  Security & Stabilisation Division ,Crown Agents. ,202741-106 ,"366,688.80",
DFID,DFID,16/03/2017,Project delivery costs – supplier services ,Conflict  Humanitarian  Security & Stabilisation Division ,Crown Agents. ,202741-107 ,"19,545.60",
DFID,DFID,16/03/2017,Project delivery costs – supplier services ,Conflict  Humanitarian  Security & Stabilisation Division ,Crown Agents. ,202741-107 ,"4,613.98",
DFID,DFID,08/03/2017,Project delivery costs – supplier services ,Conflict  Humanitarian  Security & Stabilisation Division ,Crown Agents. ,202741-104 ,"144,241.20",
DFID,DFID,15/03/2017,Project delivery costs – supplier services ,Conflict  Humanitarian  Security & Stabilisation Division ,Crown Agents. ,202741-104 ,"175,384.80",
DFID,DFID,29/03/2017,Project delivery costs – supplier services ,Conflict  Humanitarian  Security & Stabilisation Division ,Crown Agents. ,202741-104 ,"168,000.00",
DFID,DFID,09/03/2017,Aid Programme - Humanitarian Material Relief Assistance and Services ,Conflict  Humanitarian  Security & Stabilisation Division ,Crown Agents. ,202878-103 ,"14,313.60",
DFID,DFID,28/03/2017,DFID Purchased Relief Supplies ,West and Southern Africa ,Crown Agents. ,202992-102 ,"10,047.92",
DFID,DFID,28/03/2017,DFID Purchased Relief Supplies ,West and Southern Africa ,Crown Agents. ,202992-102 ,"10,047.92",
DFID,DFID,28/03/2017,DFID Purchased Relief Supplies ,West and Southern Africa ,Crown Agents. ,202992-102 ,"15,071.88",
DFID,DFID,28/03/2017,DFID Purchased Relief Supplies ,West and Southern Africa ,Crown Agents. ,202992-102 ,"70,335.45",
DFID,DFID,28/03/2017,Project delivery costs – supplier services ,West and Southern Africa ,Crown Agents. ,202992-102 ,"2,039.73",
DFID,DFID,10/03/2017,DFID Purchased Relief Supplies ,West and Southern Africa ,Crown Agents. ,202992-102 ,"17,583.86",
DFID,DFID,10/03/2017,Project delivery costs – supplier services ,West and Southern Africa ,Crown Agents. ,202992-102 ,509.93,
DFID,DFID,10/03/2017,DFID Purchased Relief Supplies ,West and Southern Africa ,Crown Agents. ,202992-102 ,"14,697.75",
DFID,DFID,10/03/2017,DFID Purchased Relief Supplies ,West and Southern Africa ,Crown Agents. ,202992-102 ,"12,559.90",
DFID,DFID,10/03/2017,DFID Purchased Relief Supplies ,West and Southern Africa ,Crown Agents. ,202992-102 ,"8,755.19",
DFID,DFID,10/03/2017,DFID Purchased Relief Supplies ,West and Southern Africa ,Crown Agents. ,202992-102 ,"8,213.25",
DFID,DFID,10/03/2017,DFID Purchased Relief Supplies ,West and Southern Africa ,Crown Agents. ,202992-102 ,"2,544.42",
DFID,DFID,08/03/2017,Medicines & Drugs ,West and Southern Africa ,Crown Agents. ,202992-102 ,"175,934.33",
DFID,DFID,08/03/2017,Project delivery costs – supplier services ,West and Southern Africa ,Crown Agents. ,202992-102 ,"5,102.10",
DFID,DFID,14/03/2017,Project delivery costs – supplier services ,Asia  Caribbean and Overseas Territories ,Crown Agents. ,203274-101 ,"1,818.00",
DFID,DFID,27/03/2017,Project delivery costs – supplier services ,Asia  Caribbean and Overseas Territories ,Crown Agents. ,203275-102 ,"88,090.82",
DFID,DFID,15/03/2017,Project delivery costs – supplier services ,Conflict  Humanitarian  Security & Stabilisation Division ,Crown Agents. ,203416-102 ,"157,231.50",
DFID,DFID,15/03/2017,Project delivery costs – supplier services ,Conflict  Humanitarian  Security & Stabilisation Division ,Crown Agents. ,203416-102 ,"31,941.94",
DFID,DFID,24/03/2017,Aid Programme - Humanitarian Material Relief Assistance and Services ,Conflict  Humanitarian  Security & Stabilisation Division ,Crown Agents. ,203419-105 ,"6,985.00",
DFID,DFID,31/03/2017,DFID Purchased Relief Supplies ,East and Central Africa ,Crown Agents. ,203539-102 ,"22,199.49",
DFID,DFID,31/03/2017,DFID Purchased Relief Supplies ,East and Central Africa ,Crown Agents. ,203539-102 ,"6,276.60",
DFID,DFID,09/03/2017,DFID Purchased Relief Supplies ,East and Central Africa ,Crown Agents. ,203539-102 ,"129,841.84",
DFID,DFID,08/03/2017,Project delivery costs – supplier services ,Conflict  Humanitarian  Security & Stabilisation Division ,Crown Agents. ,203815-106 ,"14,880.00",
DFID,DFID,08/03/2017,Project delivery costs – supplier services ,Conflict  Humanitarian  Security & Stabilisation Division ,Crown Agents. ,203815-106 ,"3,400.19",
DFID,DFID,13/03/2017,Project delivery costs – supplier services ,Middle East and North Africa Division ,Crown Agents. ,204016-103 ,"3,809.32",
DFID,DFID,13/03/2017,Project delivery costs – supplier services ,Middle East and North Africa Division ,Crown Agents. ,204016-103 ,"1,509.82",
DFID,DFID,09/03/2017,Project delivery costs – supplier services ,East and Central Africa ,Crown Agents. ,204439-103 ,"10,656.00",
DFID,DFID,08/03/2017,Project delivery costs – supplier services ,East and Central Africa ,Crown Agents. ,204439-103 ,"11,188.80",
DFID,DFID,01/03/2017,Project delivery costs – supplier services ,East and Central Africa ,Crown Agents. ,204439-103 ,"24,242.90",
DFID,DFID,14/03/2017,Project delivery costs – supplier services ,East and Central Africa ,Crown Agents. ,204439-103 ,"1,621.51",
DFID,DFID,10/03/2017,Project delivery costs – supplier services ,East and Central Africa ,Crown Agents. ,204439-103 ,"4,135.04",
DFID,DFID,07/03/2017,Project delivery costs – supplier services ,East and Central Africa ,Crown Agents. ,204439-103 ,"1,662.21",
DFID,DFID,08/03/2017,Aid Programme - Humanitarian Material Relief Assistance and Services ,Middle East and North Africa Division ,Crown Agents. ,204516-102 ,"24,524.40",
DFID,DFID,06/03/2017,Aid Programme - Humanitarian Material Relief Assistance and Services ,Middle East and North Africa Division ,Crown Agents. ,204516-102 ,"2,114.16",
DFID,DFID,06/03/2017,Aid Programme - Humanitarian Material Relief Assistance and Services ,Middle East and North Africa Division ,Crown Agents. ,204516-102 ,"16,797.03",
DFID,DFID,08/03/2017,Aid Programme - Humanitarian Material Relief Assistance and Services ,Middle East and North Africa Division ,Crown Agents. ,204516-103 ,"15,648.00",
DFID,DFID,08/03/2017,Aid Programme - Humanitarian Material Relief Assistance and Services ,Middle East and North Africa Division ,Crown Agents. ,204516-103 ,"2,408.73",
DFID,DFID,09/03/2017,Aid Programme - Humanitarian Material Relief Assistance and Services ,Asia  Caribbean and Overseas Territories ,Crown Agents. ,204603-101 ,"9,525.00",
DFID,DFID,14/03/2017,Aid Programme - Humanitarian Material Relief Assistance and Services ,Middle East and North Africa Division ,Crown Agents. ,204968-103 ,648.00,
DFID,DFID,16/03/2017,Aid Programme - Refugee Relief Payments ,East and Central Africa ,Crown Agents. ,205032-105 ,"12,954.00",
DFID,DFID,20/03/2017,Project delivery costs – supplier services ,West and Southern Africa ,Crown Agents. ,205040-102 ,"25,740.00",
DFID,DFID,24/03/2017,Aid Programme - Humanitarian Material Relief Assistance and Services ,Middle East and North Africa Division ,Crown Agents. ,205094-102 ,"26,481.60",
DFID,DFID,16/03/2017,Aid Programme - Humanitarian Material Relief Assistance and Services ,Middle East and North Africa Division ,Crown Agents. ,205094-102 ,"2,003.70",
DFID,DFID,09/03/2017,Aid Programme - Humanitarian Material Relief Assistance and Services ,Middle East and North Africa Division ,Crown Agents. ,205094-102 ,531.97,
DFID,DFID,03/03/2017,Project delivery costs – supplier services ,Middle East and North Africa Division ,Crown Agents. ,205094-103 ,"2,182.00",
DFID,DFID,07/03/2017,Project delivery costs – supplier services ,Middle East and North Africa Division ,Crown Agents. ,205094-103 ,"11,088.00",
DFID,DFID,07/03/2017,Aid Programme - Humanitarian Material Relief Assistance and Services ,Middle East and North Africa Division ,Crown Agents. ,205094-104 ,"1,416.85",
DFID,DFID,07/03/2017,Aid Programme - Humanitarian Material Relief Assistance and Services ,Middle East and North Africa Division ,Crown Agents. ,205094-104 ,"1,127.60",
DFID,DFID,24/03/2017,Aid Programme - Humanitarian Material Relief Assistance and Services ,Middle East and North Africa Division ,Crown Agents. ,205094-104 ,"5,464.80",
DFID,DFID,29/03/2017,Aid Programme - Humanitarian Material Relief Assistance and Services ,Middle East and North Africa Division ,Crown Agents. ,205094-104 ,"1,921.65",
DFID,DFID,28/03/2017,Project delivery costs – supplier services ,West and Southern Africa ,Crown Agents. ,205122-102 ,"3,658.21",
DFID,DFID,28/03/2017,Project delivery costs – supplier services ,West and Southern Africa ,Crown Agents. ,205122-102 ,"1,306.80",
DFID,DFID,24/03/2017,Project delivery costs – supplier services ,West and Southern Africa ,Crown Agents. ,205122-102 ,"1,958.61",
DFID,DFID,07/03/2017,Project delivery costs – supplier services ,Asia  Caribbean and Overseas Territories ,Crown Agents. ,205138-103 ,"1,499.17",
DFID,DFID,21/03/2017,Project delivery costs – supplier services ,Asia  Caribbean and Overseas Territories ,Crown Agents. ,205138-103 ,"17,604.00",
DFID,DFID,21/03/2017,DFID Purchased Relief Supplies ,Conflict  Humanitarian  Security & Stabilisation Division ,Crown Agents. ,205141-106 ,"38,072.00",
DFID,DFID,10/03/2017,Project delivery costs – supplier services ,Conflict  Humanitarian  Security & Stabilisation Division ,Crown Agents. ,205141-104 ,"35,768.40",
DFID,DFID,16/03/2017,Project delivery costs – supplier services ,Conflict  Humanitarian  Security & Stabilisation Division ,Crown Agents. ,205141-104 ,"1,296.49",
DFID,DFID,16/03/2017,Project delivery costs – supplier services ,Conflict  Humanitarian  Security & Stabilisation Division ,Crown Agents. ,205141-104 ,"1,579.52",
DFID,DFID,09/03/2017,Project delivery costs – supplier services ,West and Southern Africa ,Crown Agents. ,205161-103 ,"3,178.00",
DFID,DFID,07/03/2017,DFID Purchased Relief Supplies ,East and Central Africa ,Crown Agents. ,205256-108 ,"14,834.72",
DFID,DFID,14/03/2017,Aid Programme - Accountable Grant Payments ,East and Central Africa ,Crown Agents. ,205256-104 ,"15,170.40",
DFID,DFID,13/03/2017,Aid Programme - Accountable Grant Payments ,East and Central Africa ,Crown Agents. ,205256-104 ,966.95,
DFID,DFID,06/03/2017,Aid Programme - Accountable Grant Payments ,East and Central Africa ,Crown Agents. ,205256-104 ,"1,315.94",
DFID,DFID,06/03/2017,Aid Programme - Humanitarian Material Relief Assistance and Services ,East and Central Africa ,Crown Agents. ,205256-104 ,"2,782.51",
DFID,DFID,15/03/2017,Aid Programme - Humanitarian Material Relief Assistance and Services ,East and Central Africa ,Crown Agents. ,205256-104 ,"14,364.00",
DFID,DFID,07/03/2017,Project delivery costs – supplier services ,East and Central Africa ,Crown Agents. ,205256-108 ,"60,192.59",
DFID,DFID,16/03/2017,Aid Programme - Humanitarian Material Relief Assistance and Services ,East and Central Africa ,Crown Agents. ,205256-104 ,"18,792.00",
DFID,DFID,07/03/2017,Project delivery costs – supplier services ,East and Central Africa ,Crown Agents. ,205286-105 ,"2,302.65",
DFID,DFID,10/03/2017,Project delivery costs – supplier services ,East and Central Africa ,Crown Agents. ,205286-105 ,"5,712.16",
DFID,DFID,22/03/2017,Project delivery costs – supplier services ,East and Central Africa ,Crown Agents. ,205286-105 ,"3,715.37",
DFID,DFID,20/03/2017,Project delivery costs – supplier services ,Conflict  Humanitarian  Security & Stabilisation Division ,Crown Agents. ,300042-101 ,"2,203.20",
DFID,DFID,02/03/2017,Project delivery costs – supplier services ,Middle East and North Africa Division ,Crown Agents. ,300045-102 ,"3,497.90",
DFID,DFID,28/03/2017,Project delivery costs – supplier services ,Middle East and North Africa Division ,Crown Agents. ,300045-102 ,"1,372.00",
DFID,DFID,31/03/2017,Project delivery costs – supplier services ,Middle East and North Africa Division ,Crown Agents. ,300045-102 ,"7,035.00",
DFID,DFID,27/03/2017,Project delivery costs – supplier services ,West and Southern Africa ,Crown Agents. ,300047-102 ,810.88,
DFID,DFID,09/03/2017,Project delivery costs – supplier services ,West and Southern Africa ,Crown Agents. ,300047-102 ,"21,177.00",
DFID,DFID,27/03/2017,Project delivery costs – supplier services ,West and Southern Africa ,Crown Agents. ,300047-102 ,"9,458.41",
DFID,DFID,06/03/2017,Project delivery costs – supplier services ,West and Southern Africa ,Crown Agents. ,300047-102 ,"6,076.10",
DFID,DFID,09/03/2017,Project delivery costs – supplier services ,Asia  Caribbean and Overseas Territories ,Crown Agents. ,300250-106 ,"5,834.40",
DFID,DFID,16/03/2017,Project delivery costs – supplier services ,Asia  Caribbean and Overseas Territories ,Crown Agents. ,300250-106 ,541.00,
DFID,DFID,09/03/2017,Project delivery costs – supplier services ,East and Central Africa ,Crown Agents. ,300270-103 ,"1,552.00",
DFID,DFID,07/03/2017,Project delivery costs – supplier services ,East and Central Africa ,Crown Agents. ,300280-106 ,"1,122.46",
DFID,DFID,15/03/2017,Project delivery costs – supplier services ,East and Central Africa ,Crown Agents. ,300280-106 ,741.77,
DFID,DFID,10/03/2017,Aid Programme - Accountable Grant Payments ,Conflict  Humanitarian  Security & Stabilisation Division ,Crown Agents. ,300334-101 ,"27,128.10",
DFID,DFID,14/03/2017,Aid Programme - Accountable Grant Payments ,Conflict  Humanitarian  Security & Stabilisation Division ,Crown Agents. ,300334-101 ,"25,519.18",
DFID,DFID,21/03/2017,Aid Programme - Accountable Grant Payments ,Conflict  Humanitarian  Security & Stabilisation Division ,Crown Agents. ,300334-101 ,"2,714.96",
DFID,DFID,03/03/2017,Aid Programme - Accountable Grant Payments ,Conflict  Humanitarian  Security & Stabilisation Division ,Crown Agents. ,300334-101 ,"27,324.00",
DFID,DFID,22/03/2017,Aid Programme - Accountable Grant Payments ,Policy Division ,CONCERN WORLDWIDE ,203559-120 ,"221,995.00",
DFID,DFID,22/03/2017,Aid Programme - Accountable Grant Payments ,Policy Division ,CONCERN WORLDWIDE ,203559-150 ,"66,772.00",
DFID,DFID,24/03/2017,AV Conferencing systems -hardware ,Business Solutions Division Level ,COMPUTACENTER (UK) LTD ,200002-153 ,"3,942.98",
DFID,DFID,31/03/2017,AV conferencing systms -service & usage ,Business Solutions Division Level ,COMPUTACENTER (UK) LTD ,200002-135 ,"250,722.34",Annual maintenance and support of DFID's global Video conferencing system. April 2017 to March 2018 
DFID,DFID,15/03/2017,Data Network - land lines ,Business Solutions Division Level ,VODAFONE LIMITED ,200002-185 ,"197,631.43",Telecommunications rental charges for telecommunications links in sites out with European Union for January 2017 
DFID,DFID,30/03/2017,AV Conferencing systems -hardware ,Business Solutions Division Level ,COMPUTACENTER (UK) LTD ,200004-131 ,"86,982.00",
DFID,DFID,13/03/2017,Computer Consumables ,Business Solutions Division Level ,COMPUTACENTER (UK) LTD ,200004-102 ,"7,876.80",
DFID,DFID,28/03/2017,Hardware - desktop PCs ,Business Solutions Division Level ,COMPUTACENTER (UK) LTD ,200004-102 ,"12,595.20",
DFID,DFID,03/03/2017,Aid Programme - Voluntary contributions ,International Relations Division ,COMMONWEALTH SECRETARIAT ,300318-101 ,"4,000,000.00",
DFID,DFID,21/03/2017,Aid Programme - Accountable Grant Payments ,Asia  Caribbean and Overseas Territories ,CARE INTERNATIONAL UK ,202660-110 ,"28,020.49",
DFID,DFID,23/03/2017,Aid Programme - Accountable Grant Payments ,Middle East and North Africa Division ,CARE INTERNATIONAL UK ,203847-103 ,"34,454.39",
DFID,DFID,23/03/2017,Aid Programme - Accountable Grant Payments ,Middle East and North Africa Division ,CARE INTERNATIONAL UK ,203847-103 ,"420,928.00",
DFID,DFID,23/03/2017,Aid Programme - Accountable Grant Payments ,Middle East and North Africa Division ,CARE INTERNATIONAL UK ,203847-103 ,"577,642.00",
DFID,DFID,23/03/2017,Aid Programme - Accountable Grant Payments ,East and Central Africa ,CARE INTERNATIONAL UK ,204142-101 ,"320,519.50",
DFID,DFID,29/03/2017,Aid Programme - Accountable Grant Payments ,Research and Evidence Division ,CENTRE FOR ECONOMIC POLICY RESEARCH ,202835-104 ,"269,013.48",
DFID,DFID,21/03/2017,Training Providers/Facilitation Services ,Finance and Corporate Performance Division ,CRANFIELD MANAGEMENT DEVELOPMENT LTD ,204846-101 ,"6,246.85",
DFID,DFID,21/03/2017,Training Providers/Facilitation Services ,Finance and Corporate Performance Division ,CRANFIELD MANAGEMENT DEVELOPMENT LTD ,204846-101 ,"6,246.85",
DFID,DFID,21/03/2017,Training Providers/Facilitation Services ,Finance and Corporate Performance Division ,CRANFIELD MANAGEMENT DEVELOPMENT LTD ,204846-101 ,"6,246.85",
DFID,DFID,21/03/2017,Training Providers/Facilitation Services ,Finance and Corporate Performance Division ,CRANFIELD MANAGEMENT DEVELOPMENT LTD ,204846-101 ,"6,246.85",
DFID,DFID,16/03/2017,Aid Programme - Voluntary contributions ,International Relations Division ,COMMONWEALTH OF LEARNING ,300318-105 ,"1,300,000.00",
DFID,DFID,08/03/2017,Aid Programme - Core contributions ,Research and Evidence Division ,CABI ,205271-101 ,"966,656.00",
DFID,DFID,15/03/2017,Aid Programme - Accountable Grant Payments ,Policy Division ,COMIC RELIEF ,202197-101 ,"1,245,688.00",
DFID,DFID,15/03/2017,Aid Programme - Accountable Grant Payments ,Policy Division ,COMIC RELIEF ,203873-101 ,"1,340,040.00",
DFID,DFID,17/03/2017,Aid Programme - Accountable Grant Payments ,Policy Division ,COMIC RELIEF ,204912-101 ,"322,294.00",
DFID,DFID,16/03/2017,Aid Programme - Partnership Programme Arrangements ,Policy Division ,COMIC RELIEF ,204961-101 ,"319,409.00",
DFID,DFID,28/03/2017,Project delivery costs – supplier services ,Asia  Caribbean and Overseas Territories ,CARE INTERNATIONAL ,114506-101 ,"264,941.58",
DFID,DFID,01/03/2017,Aid Programme - Accountable Grant Payments ,East and Central Africa ,CARE INTERNATIONAL ,200658-102 ,"341,270.41",
DFID,DFID,28/03/2017,Training - Course Fees ,Human Resources ,CABINET OFFICE ,100269-155 ,"11,419.84",
DFID,DFID,01/03/2017,Training - Course Fees ,Human Resources ,Capita  Business Services ,100266-101 ,"4,653.66",
DFID,DFID,22/03/2017,Training - Course Fees ,Human Resources ,Capita  Business Services ,100269-155 ,"2,606.71",
DFID,DFID,07/03/2017,Training - Course Fees ,Human Resources ,Capita  Business Services ,100269-155 ,"4,682.01",
DFID,DFID,01/03/2017,Training - Course Fees ,Human Resources ,Capita  Business Services ,100269-155 ,"1,050.30",
DFID,DFID,30/03/2017,Training - Course Fees ,Asia  Caribbean and Overseas Territories ,Capita  Business Services ,101603-102 ,"11,707.32",
DFID,DFID,31/03/2017,Training Providers/Facilitation Services ,Asia  Caribbean and Overseas Territories ,Capita  Business Services ,101605-101 ,"2,684.09",
DFID,DFID,14/03/2017,Training - Course Fees ,East and Central Africa ,Capita  Business Services ,101612-101 ,"3,463.46",
DFID,DFID,24/03/2017,Training - Course Fees ,East and Central Africa ,Capita  Business Services ,101612-101 ,"1,104.41",
DFID,DFID,03/03/2017,Training - Course Fees ,East and Central Africa ,Capita  Business Services ,101612-101 ,"1,371.33",
DFID,DFID,01/03/2017,Training Providers/Facilitation Services ,East and Central Africa ,Capita  Business Services ,101612-101 ,"3,128.29",
DFID,DFID,17/03/2017,Training Providers/Facilitation Services ,West and Southern Africa ,Capita  Business Services ,101618-101 ,"2,639.35",
DFID,DFID,02/03/2017,Training Providers/Facilitation Services ,Asia  Caribbean and Overseas Territories ,Capita  Business Services ,101624-101 ,"2,639.35",
DFID,DFID,10/03/2017,Training Providers/Facilitation Services ,Asia  Caribbean and Overseas Territories ,Capita  Business Services ,101624-101 ,"4,649.38",
DFID,DFID,21/03/2017,Training Providers/Facilitation Services ,Asia  Caribbean and Overseas Territories ,Capita  Business Services ,101624-101 ,"1,267.82",
DFID,DFID,15/03/2017,Training Providers/Facilitation Services ,Asia  Caribbean and Overseas Territories ,Capita  Business Services ,101624-101 ,"4,405.49",
DFID,DFID,30/03/2017,Training - Travel & Subsistence ,East and Central Africa ,Capita  Business Services ,101633-101 ,"1,496.69",
DFID,DFID,14/03/2017,Training Providers/Facilitation Services ,East and Central Africa ,Capita  Business Services ,101634-101 ,"3,597.56",
DFID,DFID,03/03/2017,Training - Course Fees ,Business Solutions Division Level ,Capita  Business Services ,200001-101 ,525.00,
DFID,DFID,02/03/2017,Training Providers/Facilitation Services ,Finance and Corporate Performance Division ,Capita  Business Services ,204846-101 ,"13,611.22",
DFID,DFID,21/03/2017,Project delivery costs – supplier services ,Asia  Caribbean and Overseas Territories ,CONCERN WORLDWIDE ,203264-102 ,"258,343.00",
DFID,DFID,31/03/2017,Aid Programme - Accountable Grant Payments ,Economic Development Division ,Royal Institute for Int. Affairs ,204250-110 ,"20,000.00",
DFID,DFID,30/03/2017,Project delivery costs – supplier services ,Asia  Caribbean and Overseas Territories ,Nathan Associates London Ltd ,202180-102 ,"11,249.55",
DFID,DFID,30/03/2017,Project delivery costs – supplier services ,Asia  Caribbean and Overseas Territories ,Nathan Associates London Ltd ,202180-102 ,"4,603.18",
DFID,DFID,02/03/2017,Project delivery costs – supplier services ,East and Central Africa ,Nathan Associates London Ltd ,202844-101 ,"1,720.00",
DFID,DFID,01/03/2017,Training - Course Fees ,Human Resources ,ECA INTERNATIONAL ,100266-106 ,"2,150.00",
DFID,DFID,02/03/2017,Repairs  Maint  Alter - Property & Constrct. Services ,Central Department Division ,FCO SERVICES ,204994-143 ,"175,525.84",The delivery of remedial works required to the DFID properties in multiple overseas locations as part of the 1 HMG consolidation programme
DFID,DFID,10/03/2017,Project delivery costs – supplier services ,West and Southern Africa ,COFFEY INTERNATIONAL DEVELOPMENT LTD ,104190-109 ,"317,087.77",
DFID,DFID,03/03/2017,Project delivery costs – supplier services ,Policy Division ,COFFEY INTERNATIONAL DEVELOPMENT LTD ,201724-130 ,"506,624.91",
DFID,DFID,09/03/2017,Project delivery costs – supplier services ,Policy Division ,COFFEY INTERNATIONAL DEVELOPMENT LTD ,202035-101 ,"13,806.00",
DFID,DFID,09/03/2017,Project delivery costs – supplier services ,Policy Division ,COFFEY INTERNATIONAL DEVELOPMENT LTD ,202194-102 ,529.20,
DFID,DFID,07/03/2017,Project delivery costs – supplier services ,Middle East and North Africa Division ,COFFEY INTERNATIONAL DEVELOPMENT LTD ,202241-103 ,"87,074.39",
DFID,DFID,03/03/2017,Project delivery costs – supplier services ,Asia  Caribbean and Overseas Territories ,COFFEY INTERNATIONAL DEVELOPMENT LTD ,202368-102 ,"49,033.29",
DFID,DFID,14/03/2017,Project delivery costs – supplier services ,Policy Division ,COFFEY INTERNATIONAL DEVELOPMENT LTD ,202372-104 ,"185,503.73",
DFID,DFID,02/03/2017,Project delivery costs – supplier services ,East and Central Africa ,COFFEY INTERNATIONAL DEVELOPMENT LTD ,203008-103 ,"18,065.00",
DFID,DFID,31/03/2017,Project delivery costs – supplier services ,Asia  Caribbean and Overseas Territories ,COFFEY INTERNATIONAL DEVELOPMENT LTD ,203275-104 ,"49,991.00",
DFID,DFID,29/03/2017,Project delivery costs – supplier services ,Asia  Caribbean and Overseas Territories ,COFFEY INTERNATIONAL DEVELOPMENT LTD ,204469-101 ,"12,870.00",
DFID,DFID,30/03/2017,Project delivery costs – supplier services ,East and Central Africa ,COFFEY INTERNATIONAL DEVELOPMENT LTD ,204635-103 ,"59,461.82",
DFID,DFID,16/03/2017,Project delivery costs – supplier services ,West and Southern Africa ,COFFEY INTERNATIONAL DEVELOPMENT LTD ,204640-106 ,"55,712.99",
DFID,DFID,08/03/2017,Project delivery costs – supplier services ,Asia  Caribbean and Overseas Territories ,COFFEY INTERNATIONAL DEVELOPMENT LTD ,205138-103 ,"6,808.49",
DFID,DFID,08/03/2017,Project delivery costs – supplier services ,East and Central Africa ,COFFEY INTERNATIONAL DEVELOPMENT LTD ,205143-103 ,"43,698.00",
DFID,DFID,13/03/2017,Aid Programme - Accountable Grant Payments ,Research and Evidence Division ,ECONOMIC AND SOCIAL RESEARCH COUNCIL ,202168-105 ,"10,000.00",
DFID,DFID,13/03/2017,Aid Programme - Accountable Grant Payments ,Research and Evidence Division ,ECONOMIC AND SOCIAL RESEARCH COUNCIL ,202168-105 ,"732,496.73",
DFID,DFID,01/03/2017,Aid Programme - Accountable Grant Payments ,Research and Evidence Division ,ECONOMIC AND SOCIAL RESEARCH COUNCIL ,202168-106 ,"224,341.21",
DFID,DFID,01/03/2017,Aid Programme - Accountable Grant Payments ,Research and Evidence Division ,ECONOMIC AND SOCIAL RESEARCH COUNCIL ,202168-106 ,"7,000.00",
DFID,DFID,07/03/2017,Aid Programme - Strategic Grant Arrangement payments ,Research and Evidence Division ,ECONOMIC AND SOCIAL RESEARCH COUNCIL ,203545-104 ,"1,070,544.97",
DFID,DFID,07/03/2017,Aid Programme - Strategic Grant Arrangement payments ,Research and Evidence Division ,ECONOMIC AND SOCIAL RESEARCH COUNCIL ,203545-104 ,"6,616.54",
DFID,DFID,30/03/2017,Aid Programme - Accountable Grant Payments ,Research and Evidence Division ,ECONOMIC AND SOCIAL RESEARCH COUNCIL ,203704-112 ,"177,277.82",
DFID,DFID,30/03/2017,Aid Programme - Accountable Grant Payments ,Research and Evidence Division ,ECONOMIC AND SOCIAL RESEARCH COUNCIL ,203704-112 ,"1,333.33",
DFID,DFID,06/03/2017,Aid Programme - Accountable Grant Payments ,Research and Evidence Division ,ECONOMIC AND SOCIAL RESEARCH COUNCIL ,204324-102 ,"584,436.95",
DFID,DFID,06/03/2017,Aid Programme - Accountable Grant Payments ,Research and Evidence Division ,ECONOMIC AND SOCIAL RESEARCH COUNCIL ,204324-102 ,"18,958.92",
DFID,DFID,21/03/2017,Training Providers/Facilitation Services ,Research and Evidence Division ,FACULTY OF PUBLIC HEALTH MEDECI ,202331-102 ,"5,895.00",
DFID,DFID,09/03/2017,Aid Programme - Accountable Grant Payments ,Asia  Caribbean and Overseas Territories ,FACULTY OF PUBLIC HEALTH MEDECI ,203224-103 ,"10,640.00",
DFID,DFID,23/03/2017,Aid Programme - Accountable Grant Payments ,Economic Development Division ,THE FAIRTRADE FOUNDATION ,203448-101 ,"33,250.00",
DFID,DFID,14/03/2017,Courier & Bag Services ,Business Solutions Division Level ,FCO SERVICES ,200001-101 ,774.64,
DFID,DFID,17/03/2017,Repairs  Maint  Alter - Property & Constrct. Services ,Business Solutions Division Level ,FCO SERVICES ,200001-101 ,"18,236.32",
DFID,DFID,01/03/2017,Project delivery costs – supplier services ,Group Operations ,FCO SERVICES ,203716-103 ,"48,844.80",
DFID,DFID,28/03/2017,Project delivery costs – supplier services ,Group Operations ,FCO SERVICES ,203716-103 ,"1,071,024.00",
DFID,DFID,17/03/2017,Repairs  Maint  Alter - Property & Constrct. Services ,Central Department Division ,FCO SERVICES ,204994-143 ,"5,000.00",
DFID,DFID,24/03/2017,Repairs  Maint  Alter - Property & Constrct. Services ,Central Department Division ,FCO SERVICES ,204994-143 ,"5,848.15",
DFID,DFID,31/03/2017,Repairs  Maint  Alter - Property & Constrct. Services ,Central Department Division ,FCO SERVICES ,204994-143 ,"6,187.19",
DFID,DFID,02/03/2017,Repairs  Maint  Alter - Property & Constrct. Services ,Central Department Division ,FCO SERVICES ,204994-143 ,"3,126.86",
DFID,DFID,03/03/2017,Repairs  Maint  Alter - Property & Constrct. Services ,Central Department Division ,FCO SERVICES ,204994-143 ,"133,711.49",The delivery of remedial works required to the DFID properties in multiple overseas locations as part of the 1 HMG consolidation programme
DFID,DFID,17/03/2017,Repairs  Maint  Alter - Property & Constrct. Services ,Central Department Division ,FCO SERVICES ,204994-143 ,"23,681.24",
DFID,DFID,02/03/2017,Repairs  Maint  Alter - Property & Constrct. Services ,Central Department Division ,FCO SERVICES ,204994-143 ,"130,000.00",The delivery of remedial works required to the DFID properties in multiple overseas locations as part of the 1 HMG consolidation programme
DFID,DFID,22/03/2017,Data Network - land lines ,Business Solutions Division Level ,VODAFONE LIMITED ,200002-185 ,"115,593.80",Telecommunications rental charges for telecommunications links in sites out with European Union for February 2017  (1 of 2)
DFID,DFID,03/03/2017,Repairs  Maint  Alter - Property & Constrct. Services ,Central Department Division ,FCO SERVICES ,204994-143 ,"105,000.00",The delivery of remedial works required to the DFID properties in multiple overseas locations as part of the 1 HMG consolidation programme
DFID,DFID,02/03/2017,Data Network - land lines ,Business Solutions Division Level ,VODAFONE LIMITED ,200002-185 ,"98,815.72",Telecommunications rental charges for telecommunications links in sites out with European Union for December 2016  (2 of 2) 
DFID,DFID,02/03/2017,Data Network - land lines ,Business Solutions Division Level ,VODAFONE LIMITED ,203329-103 ,"98,815.71",Telecommunications rental charges for telecommunications links in sites out with European Union for December 2016 (1 of 2)
DFID,DFID,17/03/2017,Repairs  Maint  Alter - Property & Constrct. Services ,Central Department Division ,FCO SERVICES ,204994-143 ,"87,625.44",The delivery of remedial works required to the DFID properties in multiple overseas locations as part of the 1 HMG consolidation programme
DFID,DFID,15/03/2017,Repairs  Maint  Alter - Property & Constrct. Services ,Central Department Division ,FCO SERVICES ,204994-143 ,"15,000.00",
DFID,DFID,02/03/2017,Repairs  Maint  Alter - Property & Constrct. Services ,Central Department Division ,FCO SERVICES ,204994-143 ,"20,000.00",
DFID,DFID,14/03/2017,Repairs  Maint  Alter - Property & Constrct. Services ,Central Department Division ,FCO SERVICES ,204994-143 ,"79,153.31",The delivery of remedial works required to the DFID properties in multiple overseas locations as part of the 1 HMG consolidation programme
DFID,DFID,28/03/2017,Repairs  Maint  Alter - Property & Constrct. Services ,Group Operations ,Interserve Facilities Management Limited ,203717-101 ,"67,563.31",Monthly maintenance service costs for �East Kilbride and Whitehall UK HQ �for February 2017
DFID,DFID,30/03/2017,Repairs  Maint  Alter - Property & Constrct. Services ,Central Department Division ,FCO SERVICES ,204994-143 ,"66,280.72",The delivery of remedial works required to the DFID properties in multiple overseas locations as part of the 1 HMG consolidation programme
DFID,DFID,22/03/2017,Data Network - land lines ,Business Solutions Division Level ,VODAFONE LIMITED ,203329-103 ,"62,912.00",Telecommunications rental charges for telecommunications links in sites out with European Union for February 2017 (2 of 2)
DFID,DFID,27/03/2017,Repairs  Maint  Alter - Property & Constrct. Services ,Central Department Division ,FCO SERVICES ,204994-143 ,"15,000.00",
DFID,DFID,31/03/2017,Repairs  Maint  Alter - Property & Constrct. Services ,Central Department Division ,FCO SERVICES ,204994-143 ,"20,312.11",
DFID,DFID,31/03/2017,Repairs  Maint  Alter - Property & Constrct. Services ,Central Department Division ,FCO SERVICES ,204994-143 ,"55,000.00",The delivery of remedial works required to the DFID properties in multiple overseas locations as part of the 1 HMG consolidation programme
DFID,DFID,31/03/2017,other information and communication technologies ,Business Solutions Division Level ,COMPUTACENTER (UK) LTD ,200002-179 ,"53,604.00",Annual licence and support contract for the security/firewall for internet connectivity April 2017 to March 2018 
DFID,DFID,31/03/2017,Repairs  Maint  Alter - Property & Constrct. Services ,Central Department Division ,FCO SERVICES ,204994-143 ,"15,090.11",
DFID,DFID,31/03/2017,Repairs  Maint  Alter - Property & Constrct. Services ,Central Department Division ,FCO SERVICES ,204994-143 ,"6,731.42",
DFID,DFID,02/03/2017,Recruitment costs ,Human Resources ,HM TREASURY VOTES CASH ACCOUNT ,100269-117 ,"53,058.34", DFID�s annual contribution to the Economist  Fast Stream Programme for 2017
DFID,DFID,10/03/2017,Repairs  Maint  Alter - Property & Constrct. Services ,Central Department Division ,FCO SERVICES ,204994-143 ,"48,981.01",The delivery of remedial works required to the DFID properties in multiple overseas locations as part of the 1 HMG consolidation programme
DFID,DFID,17/03/2017,Repairs  Maint  Alter - Property & Constrct. Services ,Central Department Division ,FCO SERVICES ,204994-143 ,"10,000.00",
DFID,DFID,14/03/2017,Repairs  Maint  Alter - Property & Constrct. Services ,Central Department Division ,FCO SERVICES ,204994-143 ,976.30,
DFID,DFID,17/03/2017,Repairs  Maint  Alter - Property & Constrct. Services ,Central Department Division ,FCO SERVICES ,204994-143 ,"4,000.60",
DFID,DFID,17/03/2017,Repairs  Maint  Alter - Property & Constrct. Services ,Central Department Division ,FCO SERVICES ,204994-143 ,"5,000.00",
DFID,DFID,17/03/2017,Repairs  Maint  Alter - Property & Constrct. Services ,Central Department Division ,FCO SERVICES ,204994-143 ,"15,000.00",
DFID,DFID,17/03/2017,Repairs  Maint  Alter - Property & Constrct. Services ,Central Department Division ,FCO SERVICES ,204994-143 ,"45,000.00",The delivery of remedial works required to the DFID properties in multiple overseas locations as part of the 1 HMG consolidation programme
DFID,DFID,01/03/2017,Repairs  Maint  Alter - Property & Constrct. Services ,Central Department Division ,FCO SERVICES ,204994-143 ,"5,352.72",
DFID,DFID,01/03/2017,Repairs  Maint  Alter - Property & Constrct. Services ,Central Department Division ,FCO SERVICES ,204994-143 ,"1,500.00",
DFID,DFID,06/03/2017,Repairs  Maint  Alter - Property & Constrct. Services ,Central Department Division ,FCO SERVICES ,204994-143 ,"12,000.00",
DFID,DFID,02/03/2017,Repairs  Maint  Alter - Property & Constrct. Services ,Central Department Division ,FCO SERVICES ,204994-143 ,"6,000.00",
DFID,DFID,13/03/2017,Repairs  Maint  Alter - Property & Constrct. Services ,Central Department Division ,FCO SERVICES ,204994-143 ,"42,501.72",The delivery of remedial works required to the DFID properties in multiple overseas locations as part of the 1 HMG consolidation programme
DFID,DFID,14/03/2017,Repairs  Maint  Alter - Property & Constrct. Services ,Central Department Division ,FCO SERVICES ,204994-143 ,"11,856.79",
DFID,DFID,02/03/2017,Repairs  Maint  Alter - Property & Constrct. Services ,Central Department Division ,FCO SERVICES ,204994-143 ,"19,000.00",
DFID,DFID,27/03/2017,Repairs  Maint  Alter - Property & Constrct. Services ,Central Department Division ,FCO SERVICES ,204994-143 ,928.00,
DFID,DFID,14/03/2017,Repairs  Maint  Alter - Property & Constrct. Services ,Central Department Division ,FCO SERVICES ,204994-143 ,"5,065.50",
DFID,DFID,17/03/2017,Repairs  Maint  Alter - Property & Constrct. Services ,Central Department Division ,FCO SERVICES ,204994-143 ,"23,793.73",
DFID,DFID,02/03/2017,Repairs  Maint  Alter - Property & Constrct. Services ,Group Operations ,Interserve Facilities Management Limited ,203717-101 ,"38,064.61",Monthly maintenance service costs for �East Kilbride and Whitehall UK HQ �for March 2017
DFID,DFID,17/03/2017,Repairs  Maint  Alter - Property & Constrct. Services ,Central Department Division ,FCO SERVICES ,204994-143 ,"5,908.39",
DFID,DFID,17/03/2017,Repairs  Maint  Alter - Property & Constrct. Services ,Central Department Division ,FCO SERVICES ,204994-143 ,705.19,
DFID,DFID,30/03/2017,Repairs  Maint  Alter - Property & Constrct. Services ,Central Department Division ,FCO SERVICES ,204994-143 ,"2,938.00",
DFID,DFID,31/03/2017,Repairs  Maint  Alter - Property & Constrct. Services ,Central Department Division ,FCO SERVICES ,204994-143 ,"9,958.75",
DFID,DFID,31/03/2017,Repairs  Maint  Alter - Property & Constrct. Services ,Central Department Division ,FCO SERVICES ,204994-143 ,"2,726.00",
DFID,DFID,30/03/2017,Repairs  Maint  Alter - Property & Constrct. Services ,Central Department Division ,FCO SERVICES ,204994-143 ,"10,162.96",
DFID,DFID,17/03/2017,Repairs  Maint  Alter - Property & Constrct. Services ,Central Department Division ,FCO SERVICES ,204994-143 ,"9,196.00",
DFID,DFID,02/03/2017,Repairs  Maint  Alter - Property & Constrct. Services ,Central Department Division ,FCO SERVICES ,204994-143 ,"37,798.69",The delivery of remedial works required to the DFID properties in multiple overseas locations as part of the 1 HMG consolidation programme
DFID,DFID,17/03/2017,Repairs  Maint  Alter - Property & Constrct. Services ,Central Department Division ,FCO SERVICES ,204994-143 ,"3,122.77",
DFID,DFID,22/03/2017,Project delivery costs – supplier services ,Policy Division ,PALLADIUM ,201724-155 ,"89,150.86",
DFID,DFID,03/03/2017,Project delivery costs – supplier services ,Policy Division ,PALLADIUM ,201724-155 ,"94,006.49",
DFID,DFID,01/03/2017,Project delivery costs – supplier services ,Asia  Caribbean and Overseas Territories ,PALLADIUM ,201851-101 ,"99,424.76",
DFID,DFID,01/03/2017,Project delivery costs – supplier services ,Asia  Caribbean and Overseas Territories ,PALLADIUM ,201851-101 ,"132,400.34",
DFID,DFID,30/03/2017,Project delivery costs – supplier services ,Asia  Caribbean and Overseas Territories ,PALLADIUM ,201851-101 ,"164,462.77",
DFID,DFID,29/03/2017,Project delivery costs – supplier services ,West and Southern Africa ,PALLADIUM ,202098-101 ,"383,245.31",
DFID,DFID,29/03/2017,Project delivery costs – supplier services ,West and Southern Africa ,PALLADIUM ,202098-101 ,"324,378.28",
DFID,DFID,02/03/2017,Project delivery costs – supplier services ,West and Southern Africa ,PALLADIUM ,202370-102 ,"260,186.24",
DFID,DFID,06/03/2017,Project delivery costs – supplier services ,East and Central Africa ,PALLADIUM ,202577-104 ,"247,873.59",
DFID,DFID,31/03/2017,Project delivery costs – supplier services ,East and Central Africa ,PALLADIUM ,202596-108 ,"4,316.18",
DFID,DFID,22/03/2017,Project delivery costs – supplier services ,Policy Division ,PALLADIUM ,202745-104 ,"222,205.79",
DFID,DFID,30/03/2017,Project delivery costs – supplier services ,East and Central Africa ,PALLADIUM ,202900-108 ,"1,227.36",
DFID,DFID,08/03/2017,Project delivery costs – supplier services ,West and Southern Africa ,PALLADIUM ,203429-103 ,"32,282.00",
DFID,DFID,22/03/2017,Project delivery costs – supplier services ,Asia  Caribbean and Overseas Territories ,PALLADIUM ,204613-101 ,"41,839.93",
DFID,DFID,21/03/2017,Project delivery costs – supplier services ,East and Central Africa ,PALLADIUM ,204809-102 ,"154,118.54",
DFID,DFID,13/03/2017,Project delivery costs – supplier services ,West and Southern Africa ,PALLADIUM ,204822-102 ,"170,362.10",
DFID,DFID,22/03/2017,Aid Programme - Accountable Grant Payments ,East and Central Africa ,GOAL ,204019-121 ,"200,000.00",
DFID,DFID,22/03/2017,Aid Programme - Accountable Grant Payments ,East and Central Africa ,GOAL ,204019-128 ,"1,164,719.00",
DFID,DFID,14/03/2017,Aid Programme - Accountable Grant Payments ,Middle East and North Africa Division ,Supplier Name withheld ,204523-101 ,"729,294.00",
DFID,DFID,06/03/2017,Aid Programme - Accountable Grant Payments ,West and Southern Africa ,GOAL ,204838-108 ,"39,251.78",
DFID,DFID,06/03/2017,Aid Programme - Accountable Grant Payments ,West and Southern Africa ,GOAL ,204890-105 ,"473,030.00",
DFID,DFID,02/03/2017,Aid Programme - Accountable Grant Payments ,Asia  Caribbean and Overseas Territories ,GOAL ,205138-104 ,"51,070.00",
DFID,DFID,02/03/2017,Recruitment costs ,Human Resources ,HM TREASURY VOTES CASH ACCOUNT ,100269-117 ,"5,851.83",
DFID,DFID,17/03/2017,Repairs  Maint  Alter - Property & Constrct. Services ,Central Department Division ,FCO SERVICES ,204994-143 ,"36,825.40",The delivery of remedial works required to the DFID properties in multiple overseas locations as part of the 1 HMG consolidation programme
DFID,DFID,15/03/2017,Project delivery costs – supplier services ,Asia  Caribbean and Overseas Territories ,HM TREASURY VOTES CASH ACCOUNT ,204176-101 ,"4,414.82",
DFID,DFID,06/03/2017,Project delivery costs – supplier services ,Non-Departmental Public Body ,HM TREASURY VOTES CASH ACCOUNT ,204859-103 ,"4,281.43",
DFID,DFID,23/03/2017,Project delivery costs – supplier services ,Conflict  Humanitarian  Security & Stabilisation Division ,THE HALO TRUST ,203243-119 ,"122,301.00",
DFID,DFID,30/03/2017,Project delivery costs – supplier services ,West and Southern Africa ,HEALTH PARTNERS INTERNATIONAL ,202694-101 ,"535,859.20",
DFID,DFID,24/03/2017,Project delivery costs – supplier services ,West and Southern Africa ,HEALTH PARTNERS INTERNATIONAL ,202694-101 ,"230,458.43",
DFID,DFID,09/03/2017,Project delivery costs – supplier services ,Asia  Caribbean and Overseas Territories ,HTSPE LTD ,107402-108 ,"59,943.20",
DFID,DFID,01/03/2017,Project delivery costs – supplier services ,East and Central Africa ,HTSPE LTD ,201575-107 ,"31,252.54",
DFID,DFID,29/03/2017,Project delivery costs – supplier services ,East and Central Africa ,HTSPE LTD ,201575-107 ,"35,640.00",
DFID,DFID,22/03/2017,Project delivery costs – supplier services ,Research and Evidence Division ,HTSPE LTD ,201871-104 ,"12,015.00",
DFID,DFID,07/03/2017,Project delivery costs – supplier services ,Research and Evidence Division ,HTSPE LTD ,201884-105 ,"19,110.00",
DFID,DFID,10/03/2017,Project delivery costs – supplier services ,Asia  Caribbean and Overseas Territories ,HTSPE LTD ,202491-102 ,"300,996.78",
DFID,DFID,10/03/2017,Aid Programme - Challenge Fund payments ,Asia  Caribbean and Overseas Territories ,HTSPE LTD ,202491-106 ,"19,601.26",
DFID,DFID,31/03/2017,Project delivery costs – supplier services ,East and Central Africa ,HTSPE LTD ,202900-102 ,"413,000.00",
DFID,DFID,24/03/2017,Project delivery costs – supplier services ,Asia  Caribbean and Overseas Territories ,HTSPE LTD ,203035-106 ,"1,470.00",
DFID,DFID,28/03/2017,Project delivery costs – supplier services ,Asia  Caribbean and Overseas Territories ,HTSPE LTD ,203035-106 ,"1,470.00",
DFID,DFID,30/03/2017,Project delivery costs – supplier services ,Research and Evidence Division ,HTSPE LTD ,203036-106 ,"16,626.74",
DFID,DFID,08/03/2017,Project delivery costs – supplier services ,East and Central Africa ,HTSPE LTD ,203574-103 ,"19,397.95",
DFID,DFID,08/03/2017,Project delivery costs – supplier services ,East and Central Africa ,HTSPE LTD ,203574-109 ,"3,107.20",
DFID,DFID,07/03/2017,Project delivery costs – supplier services ,East and Central Africa ,HTSPE LTD ,203574-109 ,"44,986.00",
DFID,DFID,06/03/2017,Project delivery costs – supplier services ,East and Central Africa ,HTSPE LTD ,203574-109 ,"10,212.84",
DFID,DFID,08/03/2017,Project delivery costs – supplier services ,East and Central Africa ,HTSPE LTD ,203574-112 ,"50,189.52",
DFID,DFID,24/03/2017,Project delivery costs – supplier services ,East and Central Africa ,HTSPE LTD ,203574-112 ,"81,269.66",
DFID,DFID,16/03/2017,Project delivery costs – supplier services ,Asia  Caribbean and Overseas Territories ,HTSPE LTD ,203764-105 ,"10,744.05",
DFID,DFID,16/03/2017,Project delivery costs – supplier services ,Asia  Caribbean and Overseas Territories ,HTSPE LTD ,203764-105 ,"10,744.05",
DFID,DFID,16/03/2017,Project delivery costs – supplier services ,Asia  Caribbean and Overseas Territories ,HTSPE LTD ,203764-105 ,"13,257.11",
DFID,DFID,28/03/2017,Project delivery costs – supplier services ,Asia  Caribbean and Overseas Territories ,HTSPE LTD ,203892-104 ,"24,297.55",
DFID,DFID,09/03/2017,Research and development costs - supplier services ,Research and Evidence Division ,HTSPE LTD ,204046-102 ,"9,616.00",
DFID,DFID,09/03/2017,Research and development costs - supplier services ,Research and Evidence Division ,HTSPE LTD ,204046-102 ,"9,616.00",
DFID,DFID,06/03/2017,Project delivery costs – supplier services ,East and Central Africa ,HTSPE LTD ,204362-101 ,"11,494.19",
DFID,DFID,24/03/2017,Project delivery costs – supplier services ,East and Central Africa ,HTSPE LTD ,204956-103 ,"25,375.00",
DFID,DFID,20/03/2017,Project delivery costs – supplier services ,Asia  Caribbean and Overseas Territories ,HTSPE LTD ,205138-103 ,"119,916.52",
DFID,DFID,02/03/2017,Project delivery costs – supplier services ,West and Southern Africa ,HTSPE LTD ,205188-101 ,"21,957.21",
DFID,DFID,06/03/2017,Project delivery costs – supplier services ,Asia  Caribbean and Overseas Territories ,HTSPE LTD ,205211-102 ,"32,264.60",
DFID,DFID,20/03/2017,Project delivery costs – supplier services ,Economic Development Division ,HTSPE LTD ,205231-102 ,"42,364.39",
DFID,DFID,22/03/2017,Aid Programme - Humanitarian Material Relief Assistance and Services ,Conflict  Humanitarian  Security & Stabilisation Division ,HANDICAP INTERNATIONAL UK ,202878-103 ,"72,759.00",
DFID,DFID,16/03/2017,Aid Programme - Accountable Grant Payments ,Middle East and North Africa Division ,HANDICAP INTERNATIONAL UK ,300229-101 ,"469,984.00",
DFID,DFID,16/03/2017,Contract & Agency Staff ,Finance and Corporate Performance Division ,Hays Specialist Recruitment Ltd ,100201-101 ,695.88,
DFID,DFID,02/03/2017,Contract & Agency Staff ,Finance and Corporate Performance Division ,Hays Specialist Recruitment Ltd ,100201-101 ,"1,159.80",
DFID,DFID,07/03/2017,Contract & Agency Staff ,Finance and Corporate Performance Division ,Hays Specialist Recruitment Ltd ,100201-101 ,"1,159.80",
DFID,DFID,01/03/2017,Contract & Agency Staff ,Finance and Corporate Performance Division ,HUDSON GLOBAL RESOURCES LTD ,100201-101 ,"5,491.58",
DFID,DFID,01/03/2017,Contract & Agency Staff ,Finance and Corporate Performance Division ,HUDSON GLOBAL RESOURCES LTD ,202437-102 ,"4,271.23",
DFID,DFID,02/03/2017,Contract & Agency Staff ,Finance and Corporate Performance Division ,HUDSON GLOBAL RESOURCES LTD ,202437-102 ,"7,636.80",
DFID,DFID,01/03/2017,Project delivery costs – supplier services ,West and Southern Africa ,ITAD LTD ,202482-102 ,"120,183.60",
DFID,DFID,17/03/2017,Project delivery costs – supplier services ,West and Southern Africa ,ITAD LTD ,202482-102 ,"96,450.00",
DFID,DFID,15/03/2017,Project delivery costs – supplier services ,Asia  Caribbean and Overseas Territories ,THE INSTITUTE OF DEVELOPMENT STUDIE ,202975-101 ,"3,176.09",
DFID,DFID,28/03/2017,Project delivery costs – supplier services ,Research and Evidence Division ,THE INSTITUTE OF DEVELOPMENT STUDIE ,204427-102 ,"415,850.38",
DFID,DFID,21/03/2017,Project delivery costs – supplier services ,Research and Evidence Division ,THE INSTITUTE OF DEVELOPMENT STUDIE ,205121-101 ,"72,209.39",
DFID,DFID,16/03/2017,Aid Programme - Accountable Grant Payments ,Policy Division ,ISLAMIC RELIEF ,203559-115 ,"5,141.00",
DFID,DFID,31/03/2017,Research and development costs - supplier services ,Research and Evidence Division ,INASP ,203778-106 ,"243,744.00",
DFID,DFID,22/03/2017,Aid Programme - Voluntary contributions ,Asia  Caribbean and Overseas Territories ,INTER AMERICAN DEVELOPMENT BANK ,203643-102 ,"1,100,000.00",
DFID,DFID,07/03/2017,Aid Programme - Accountable Grant Payments ,Asia  Caribbean and Overseas Territories ,INTERNATIONAL RESCUE COMMITTEE UK ,203400-114 ,"100,000.00",
DFID,DFID,03/03/2017,Aid Programme - Humanitarian Material Relief Assistance and Services ,Conflict  Humanitarian  Security & Stabilisation Division ,INTERNATIONAL RESCUE COMMITTEE UK ,204273-101 ,"32,105.00",
DFID,DFID,24/03/2017,Aid Programme - Humanitarian Material Relief Assistance and Services ,Asia  Caribbean and Overseas Territories ,INTERNATIONAL RESCUE COMMITTEE UK ,204603-106 ,"102,562.00",
DFID,DFID,15/03/2017,Aid Programme - Trust Funds contributions ,Economic Development Division ,IBRD HSBC T ,204255-105 ,"35,921.00",
DFID,DFID,21/03/2017,Aid Programme - Voluntary contributions ,Middle East and North Africa Division ,IBRD HSBC T ,204527-101 ,"275,000.00",
DFID,DFID,22/03/2017,Aid Programme - Trust Funds contributions ,Policy Division ,IBRD HSBC T ,300292-113 ,"500,000.00",
DFID,DFID,17/03/2017,Project delivery costs – supplier services ,Asia  Caribbean and Overseas Territories ,IOD PARC ,202775-105 ,"25,657.57",
DFID,DFID,21/03/2017,Project delivery costs – supplier services ,Research and Evidence Division ,IOD PARC ,205109-101 ,"64,084.18",
DFID,DFID,31/03/2017,Project delivery costs – supplier services ,Research and Evidence Division ,IOD PARC ,205109-101 ,"35,313.83",
DFID,DFID,21/03/2017,Aid Programme - Joint programme contribution ,Asia  Caribbean and Overseas Territories ,INTERNATIONAL TRADE CENTRE ,202762-101 ,"37,150.82",
DFID,DFID,21/03/2017,Aid Programme - Joint programme contribution ,Asia  Caribbean and Overseas Territories ,INTERNATIONAL TRADE CENTRE ,202762-101 ,"409,289.07",
DFID,DFID,23/03/2017,Project delivery costs – supplier services ,Policy Division ,IMPERIAL COLLEGE LONDON ,200706-101 ,"304,730.53",
DFID,DFID,23/03/2017,Project delivery costs – supplier services ,Policy Division ,IMPERIAL COLLEGE LONDON ,200706-101 ,"705,859.38",
DFID,DFID,30/03/2017,Aid Programme - Core contributions ,Global Funds ,IBRD-IFFIm ,111073-101 ,"44,699,300.00",
DFID,DFID,30/03/2017,Aid Programme - Core contributions ,Global Funds ,IBRD-IFFIm ,201185-101 ,"6,022,418.05",
DFID,DFID,10/03/2017,Hostile Environment Training ,Economic Development Division ,KELLOGG BROWN & ROOT LIMITED ,100276-101 ,660.00,
DFID,DFID,10/03/2017,Hostile Environment Training ,Economic Development Division ,KELLOGG BROWN & ROOT LIMITED ,100276-101 ,660.00,
DFID,DFID,15/03/2017,Hostile Environment Training ,Economic Development Division ,KELLOGG BROWN & ROOT LIMITED ,100276-101 ,660.00,
DFID,DFID,06/03/2017,Hostile Environment Training ,Policy Division ,KELLOGG BROWN & ROOT LIMITED ,100277-101 ,606.00,
DFID,DFID,30/03/2017,Hostile Environment Training ,Asia  Caribbean and Overseas Territories ,Supplier Name withheld ,101601-110 ,660.00,
DFID,DFID,16/03/2017,Hostile Environment Training ,Asia  Caribbean and Overseas Territories ,Supplier Name withheld ,101601-110 ,979.20,
DFID,DFID,13/03/2017,Hostile Environment Training ,Asia  Caribbean and Overseas Territories ,KELLOGG BROWN & ROOT LIMITED ,101603-102 ,660.00,
DFID,DFID,07/03/2017,Hostile Environment Training ,West and Southern Africa ,KELLOGG BROWN & ROOT LIMITED ,101610-101 ,606.00,
DFID,DFID,13/03/2017,Hostile Environment Training ,West and Southern Africa ,KELLOGG BROWN & ROOT LIMITED ,101610-101 ,550.00,
DFID,DFID,07/03/2017,Hostile Environment Training ,West and Southern Africa ,KELLOGG BROWN & ROOT LIMITED ,101610-101 ,505.00,
DFID,DFID,10/03/2017,Hostile Environment Training,East and Central Africa ,KELLOGG BROWN & ROOT LIMITED ,101612-101 ,660.00,
DFID,DFID,16/03/2017,Training - Travel & Subsistence ,East and Central Africa ,KELLOGG BROWN & ROOT LIMITED ,101612-101 ,660.00,
DFID,DFID,29/03/2017,Hostile Environment Training ,Asia  Caribbean and Overseas Territories ,KELLOGG BROWN & ROOT LIMITED ,101624-101 ,660.00,
DFID,DFID,14/03/2017,Hostile Environment Training ,Business Solutions Division Level ,KELLOGG BROWN & ROOT LIMITED ,200001-101 ,816.00,
DFID,DFID,13/03/2017,Hostile Environment Training ,Economic Development Division ,KELLOGG BROWN & ROOT LIMITED ,202259-101 ,660.00,
DFID,DFID,10/03/2017,Hostile Environment Training ,Economic Development Division ,KELLOGG BROWN & ROOT LIMITED ,202373-101 ,660.00,
DFID,DFID,14/03/2017,Hostile Environment Training ,Research and Evidence Division ,KELLOGG BROWN & ROOT LIMITED ,202392-113 ,"1,100.00",
DFID,DFID,17/03/2017,Hostile Environment Training ,Research and Evidence Division ,KELLOGG BROWN & ROOT LIMITED ,202392-103 ,"1,100.00",
DFID,DFID,10/03/2017,Hostile Environment Training ,Conflict  Humanitarian  Security & Stabilisation Division ,KELLOGG BROWN & ROOT LIMITED ,202410-107 ,979.20,
DFID,DFID,14/03/2017,Hostile Environment Training ,Conflict  Humanitarian  Security & Stabilisation Division ,KELLOGG BROWN & ROOT LIMITED ,202410-107 ,660.00,
DFID,DFID,10/03/2017,Hostile Environment Training ,Middle East and North Africa Division ,KELLOGG BROWN & ROOT LIMITED ,204055-101 ,660.00,
DFID,DFID,06/03/2017,Research and development costs - supplier services ,Research and Evidence Division ,LIVERPOOL SCHOOL OF TROPICAL MEDICINE ,203089-103 ,"488,751.05",
DFID,DFID,17/03/2017,Training - Course Fees ,Economic Development Division ,LONDON BUSINESS SCHOOL ,202259-101 ,"6,900.00",
DFID,DFID,13/03/2017,Research and development costs - supplier services ,Research and Evidence Division ,London School of Hygiene and Tropical Medicine ,201447-104 ,"353,036.73",
DFID,DFID,02/03/2017,Research and development costs - supplier services ,Research and Evidence Division ,London School of Hygiene and Tropical Medicine ,201889-103 ,"373,756.12",
DFID,DFID,31/03/2017,Project delivery costs – supplier services ,Research and Evidence Division ,London School of Hygiene and Tropical Medicine ,203569-102 ,"149,959.52",
DFID,DFID,09/03/2017,Aid Programme - Accountable Grant Payments ,Research and Evidence Division ,LOUGHBOROUGH UNIVERSITY ,203781-107 ,"20,158.71",
DFID,DFID,09/03/2017,Aid Programme - Accountable Grant Payments ,Research and Evidence Division ,LOUGHBOROUGH UNIVERSITY ,203781-107 ,"20,068.35",
DFID,DFID,16/03/2017,Aid Programme - Core contributions ,Research and Evidence Division ,MEDICAL RESEARCH COUNCIL ,203093-102 ,"210,010.10",
DFID,DFID,22/03/2017,Project delivery costs – supplier services ,Asia  Caribbean and Overseas Territories ,Supplier Name withheld ,202488-107 ,"434,172.51",
DFID,DFID,20/03/2017,Project delivery costs – supplier services ,Asia  Caribbean and Overseas Territories ,Supplier Name withheld ,202488-107 ,"258,852.82",
DFID,DFID,29/03/2017,Project delivery costs – supplier services ,West and Southern Africa ,Supplier Name withheld ,202493-103 ,"827,004.00",
DFID,DFID,15/03/2017,Project delivery costs – supplier services ,West and Southern Africa ,Supplier Name withheld ,202678-101 ,"100,246.52",
DFID,DFID,15/03/2017,Project delivery costs – supplier services ,West and Southern Africa ,Supplier Name withheld ,202678-101 ,"126,565.71",
DFID,DFID,20/03/2017,Project delivery costs – supplier services ,West and Southern Africa ,Supplier Name withheld ,202942-102 ,"186,696.21",
DFID,DFID,21/03/2017,Project delivery costs – supplier services ,West and Southern Africa ,Supplier Name withheld ,203154-103 ,"358,725.00",
DFID,DFID,16/03/2017,Project delivery costs – supplier services ,East and Central Africa ,Supplier Name withheld ,203363-103 ,"532,625.07",
DFID,DFID,15/03/2017,Project delivery costs – supplier services ,East and Central Africa ,Supplier Name withheld ,203641-103 ,"29,378.22",
DFID,DFID,28/03/2017,Project delivery costs – supplier services ,East and Central Africa ,Supplier Name withheld ,203871-102 ,"47,215.69",
DFID,DFID,20/03/2017,Project delivery costs – supplier services ,East and Central Africa ,Supplier Name withheld ,203871-102 ,"54,035.56",
DFID,DFID,20/03/2017,Project delivery costs – supplier services ,East and Central Africa ,Supplier Name withheld ,203871-107 ,"579,971.91",
DFID,DFID,28/03/2017,Project delivery costs – supplier services ,East and Central Africa ,Supplier Name withheld ,203871-107 ,"166,784.46",
DFID,DFID,22/03/2017,Project delivery costs – supplier services ,Asia  Caribbean and Overseas Territories ,Supplier Name withheld ,204023-104 ,"91,652.82",
DFID,DFID,02/03/2017,Project delivery costs – supplier services ,Asia  Caribbean and Overseas Territories ,Supplier Name withheld ,204023-104 ,"54,026.70",
DFID,DFID,17/03/2017,Project delivery costs – supplier services ,Asia  Caribbean and Overseas Territories ,Supplier Name withheld ,204277-102 ,"55,440.00",
DFID,DFID,17/03/2017,Aid Programme - Challenge Fund payments ,Asia  Caribbean and Overseas Territories ,Supplier Name withheld ,204277-104 ,"321,330.89",
DFID,DFID,16/03/2017,Project delivery costs – supplier services ,East and Central Africa ,Supplier Name withheld ,204288-103 ,"122,558.50",
DFID,DFID,01/03/2017,Project delivery costs – supplier services ,West and Southern Africa ,Supplier Name withheld ,205234-102 ,"289,631.83",
DFID,DFID,02/03/2017,Telephone Usage & services ,Business Solutions Division Level ,VODAFONE LIMITED ,200002-185 ,"7,082.23",
DFID,DFID,28/03/2017,Data Network - land lines ,Business Solutions Division Level ,VODAFONE LIMITED ,200002-185 ,"2,219.22",
DFID,DFID,07/03/2017,Telephone Usage & services ,Business Solutions Division Level ,VODAFONE LIMITED ,200002-185 ,"7,082.22",
DFID,DFID,07/03/2017,Data Network - land lines ,Business Solutions Division Level ,VODAFONE LIMITED ,200002-185 ,"7,023.08",
DFID,DFID,03/03/2017,Data Network - land lines ,Business Solutions Division Level ,VODAFONE LIMITED ,200002-185 ,"2,219.22",
DFID,DFID,06/03/2017,Data Network - land lines ,Business Solutions Division Level ,VODAFONE LIMITED ,200002-185 ,"7,023.08",
DFID,DFID,06/03/2017,Data Network - land lines ,Business Solutions Division Level ,VODAFONE LIMITED ,200002-185 ,"2,219.22",
DFID,DFID,30/03/2017,Data Network - land lines ,Business Solutions Division Level ,VODAFONE LIMITED ,200002-185 ,"7,023.08",
DFID,DFID,22/03/2017,Data Network - land lines ,Business Solutions Division Level ,VODAFONE LIMITED ,200002-185 ,"2,004.46",
DFID,DFID,22/03/2017,Data Network - land lines ,Business Solutions Division Level ,VODAFONE LIMITED ,200002-185 ,"7,023.74",
DFID,DFID,14/03/2017,Repairs  Maint  Alter - Property & Constrct. Services ,Central Department Division ,FCO SERVICES ,204994-143 ,"34,708.06",The delivery of remedial works required to the DFID properties in multiple overseas locations as part of the 1 HMG consolidation programme
DFID,DFID,27/03/2017,Telephone Usage & services ,Business Solutions Division Level ,VODAFONE LIMITED ,200002-185 ,"6,921.87",
DFID,DFID,02/03/2017,Professional member subscriptions ,Human Resources ,ECA INTERNATIONAL ,100269-135 ,"31,812.00",Annual subscription for Financial calculation services for overseas allowances for 2017/2018
DFID,DFID,02/03/2017,Repairs  Maint  Alter - Property & Constrct. Services ,Central Department Division ,FCO SERVICES ,204994-143 ,"30,550.00",The delivery of remedial works required to the DFID properties in multiple overseas locations as part of the 1 HMG consolidation programme
DFID,DFID,02/03/2017,Telephone Usage & services ,Business Solutions Division Level ,VODAFONE LIMITED ,200002-168 ,"18,742.54",
DFID,DFID,28/03/2017,Telephone Usage & services ,Business Solutions Division Level ,VODAFONE LIMITED ,200002-168 ,"19,290.15",
DFID,DFID,22/03/2017,Telephone Usage & services ,Business Solutions Division Level ,VODAFONE LIMITED ,200002-168 ,"17,879.20",
DFID,DFID,07/03/2017,Telephone Usage & services ,Business Solutions Division Level ,VODAFONE LIMITED ,200002-168 ,"18,644.30",
DFID,DFID,28/03/2017,Telephone Usage & services ,Business Solutions Division Level ,VODAFONE LIMITED ,200002-185 ,"12,550.20",
DFID,DFID,14/03/2017,Data Network - land lines ,Business Solutions Division Level ,VODAFONE LIMITED ,200002-185 ,"1,203.26",
DFID,DFID,29/03/2017,Repairs  Maintenance and Alterations – Other Building Costs ,Group Operations ,Interserve Facilities Management Limited ,100106-101 ,"30,124.32",Repair and maintencne costs for East Kilbride HQ office boiler
DFID,DFID,16/03/2017,Repairs  Maint  Alter - Property & Constrct. Services ,Central Department Division ,FCO SERVICES ,204994-143 ,"30,000.00",The delivery of remedial works required to the DFID properties in multiple overseas locations as part of the 1 HMG consolidation programme
DFID,DFID,27/03/2017,Telephone Usage & services ,Business Solutions Division Level ,VODAFONE LIMITED ,203329-103 ,"6,921.87",
DFID,DFID,28/03/2017,Telephone Usage & services ,Business Solutions Division Level ,VODAFONE LIMITED ,203329-103 ,"1,615.93",
DFID,DFID,06/03/2017,Data Network - land lines ,Business Solutions Division Level ,VODAFONE LIMITED ,203329-103 ,"7,023.08",
DFID,DFID,03/03/2017,Data Network - land lines ,Business Solutions Division Level ,VODAFONE LIMITED ,203329-103 ,"2,219.22",
DFID,DFID,07/03/2017,Data Network - land lines ,Business Solutions Division Level ,VODAFONE LIMITED ,203329-103 ,"7,023.08",
DFID,DFID,02/03/2017,Telephone Usage & services ,Business Solutions Division Level ,VODAFONE LIMITED ,203329-103 ,"7,082.22",
DFID,DFID,07/03/2017,Telephone Usage & services ,Business Solutions Division Level ,VODAFONE LIMITED ,203329-103 ,"7,082.23",
DFID,DFID,22/03/2017,Data Network - land lines ,Business Solutions Division Level ,VODAFONE LIMITED ,203329-103 ,"7,023.74",
DFID,DFID,30/03/2017,Data Network - land lines ,Business Solutions Division Level ,VODAFONE LIMITED ,203329-103 ,"7,023.09",
DFID,DFID,28/03/2017,Data Network - land lines ,Business Solutions Division Level ,VODAFONE LIMITED ,203329-103 ,"2,219.22",
DFID,DFID,22/03/2017,Data Network - land lines ,Business Solutions Division Level ,VODAFONE LIMITED ,203329-103 ,"2,004.45",
DFID,DFID,06/03/2017,Data Network - land lines ,Business Solutions Division Level ,VODAFONE LIMITED ,203329-103 ,"2,219.22",
DFID,DFID,22/03/2017,Project delivery costs – supplier services ,Asia  Caribbean and Overseas Territories ,MAXWELL STAMP PLC ,107460-104 ,"45,000.00",
DFID,DFID,22/03/2017,Aid Programme - Challenge Fund payments ,Asia  Caribbean and Overseas Territories ,MAXWELL STAMP PLC ,107460-107 ,"269,410.54",
DFID,DFID,29/03/2017,Project delivery costs – supplier services ,East and Central Africa ,MAXWELL STAMP PLC ,202347-101 ,"476,954.00",
DFID,DFID,15/03/2017,Project delivery costs – supplier services ,East and Central Africa ,MAXWELL STAMP PLC ,204626-101 ,"117,302.00",
DFID,DFID,31/03/2017,Project delivery costs – supplier services ,East and Central Africa ,MAXWELL STAMP PLC ,204626-101 ,"430,778.00",
DFID,DFID,31/03/2017,Project delivery costs – supplier services ,East and Central Africa ,MET OFFICE ,204044-102 ,"13,249.01",
DFID,DFID,06/03/2017,Aid Programme - Accountable Grant Payments ,Asia  Caribbean and Overseas Territories ,MERCY CORPS EUROPE ,203106-104 ,"9,872.42",
DFID,DFID,07/03/2017,Aid Programme - Accountable Grant Payments ,Middle East and North Africa Division ,MERCY CORPS EUROPE ,300034-101 ,"1,955,490.00",
DFID,DFID,13/03/2017,Aid Programme - Accountable Grant Payments ,West and Southern Africa ,MERCY CORPS EUROPE ,300309-101 ,"486,943.00",
DFID,DFID,27/03/2017,Office Supplies ,Group Operations ,NEOPOST LIMITED ,100182-101 ,673.20,
DFID,DFID,24/03/2017,Research and development costs - supplier services ,Research and Evidence Division ,ODI ,204584-111 ,"37,500.00",
DFID,DFID,28/03/2017,Aid Programme - Accountable Grant Payments ,West and Southern Africa ,OXFAM INSTITUTIONAL INCOME ACCOUNT ,202909-114 ,"98,390.00",
DFID,DFID,31/03/2017,Project delivery costs – supplier services ,Policy Division ,OXFAM INSTITUTIONAL INCOME ACCOUNT ,203572-101 ,"1,725,223.00",
DFID,DFID,22/03/2017,Aid Programme - Accountable Grant Payments ,Middle East and North Africa Division ,OXFAM INSTITUTIONAL INCOME ACCOUNT ,203847-102 ,"1,829,125.00",
DFID,DFID,24/03/2017,Hotels - Accommodation only ,West and Southern Africa ,FOREIGN AND COMMONWEALTH OFFICE (FCO) ,101620-102 ,"1,353.00",
DFID,DFID,03/03/2017,Vehicle Repairs & Maintenance ,West and Southern Africa ,FOREIGN AND COMMONWEALTH OFFICE (FCO) ,300037-102 ,843.81,
DFID,DFID,10/03/2017,Repairs  Maint  Alter - Property & Constrct. Services ,Middle East and North Africa Division ,FOREIGN AND COMMONWEALTH OFFICE (FCO) ,300080-101 ,750.42,
DFID,DFID,07/03/2017,Computer software maintenance ,Business Solutions Division Level ,ORACLE CORPORATION UK LIMITED ,200002-102 ,"5,113.20",
DFID,DFID,02/03/2017,Repairs  Maint  Alter - Property & Constrct. Services ,Central Department Division ,FCO SERVICES ,204994-143 ,"29,957.91",The delivery of remedial works required to the DFID properties in multiple overseas locations as part of the 1 HMG consolidation programme
DFID,DFID,30/03/2017,Computer Software Licenses ,Business Solutions Division Level ,ORACLE CORPORATION UK LIMITED ,200003-112 ,"12,799.20",
DFID,DFID,16/03/2017,Training - Course Fees ,Finance and Corporate Performance Division ,THE OPEN UNIVERSITY ,100201-101 ,"1,333.00",
DFID,DFID,27/03/2017,Project delivery costs – supplier services ,West and Southern Africa ,OXFORD POLICY MANAGEMENT ,201874-103 ,"116,316.27",
DFID,DFID,28/03/2017,Project delivery costs – supplier services ,West and Southern Africa ,OXFORD POLICY MANAGEMENT ,201874-103 ,"84,010.38",
DFID,DFID,16/03/2017,Project delivery costs – supplier services ,West and Southern Africa ,OXFORD POLICY MANAGEMENT ,201874-103 ,"63,723.38",
DFID,DFID,17/03/2017,Project delivery costs – supplier services ,Asia  Caribbean and Overseas Territories ,OXFORD POLICY MANAGEMENT ,202367-103 ,"440,031.05",
DFID,DFID,20/03/2017,Project delivery costs – supplier services ,East and Central Africa ,OXFORD POLICY MANAGEMENT ,202511-104 ,"15,984.69",
DFID,DFID,17/03/2017,Project delivery costs – supplier services ,East and Central Africa ,OXFORD POLICY MANAGEMENT ,202580-103 ,"43,329.50",
DFID,DFID,20/03/2017,Project delivery costs – supplier services ,East and Central Africa ,OXFORD POLICY MANAGEMENT ,202874-105 ,"18,186.49",
DFID,DFID,29/03/2017,Project delivery costs – supplier services ,West and Southern Africa ,OXFORD POLICY MANAGEMENT ,202978-101 ,"81,195.16",
DFID,DFID,09/03/2017,Project delivery costs – supplier services ,Research and Evidence Division ,OXFORD POLICY MANAGEMENT ,203051-103 ,"798,636.00",
DFID,DFID,31/03/2017,Project delivery costs – supplier services ,Asia  Caribbean and Overseas Territories ,OXFORD POLICY MANAGEMENT ,203186-105 ,"24,160.35",
DFID,DFID,31/03/2017,Project delivery costs – supplier services ,Research and Evidence Division ,OXFORD POLICY MANAGEMENT ,203339-105 ,"12,960.00",
DFID,DFID,24/03/2017,Project delivery costs – supplier services ,Research and Evidence Division ,OXFORD POLICY MANAGEMENT ,203339-105 ,"46,956.00",
DFID,DFID,23/03/2017,Project delivery costs – supplier services ,Research and Evidence Division ,OXFORD POLICY MANAGEMENT ,203339-105 ,"5,637.00",
DFID,DFID,31/03/2017,Project delivery costs – supplier services ,Policy Division ,OXFORD POLICY MANAGEMENT ,203368-101 ,"48,220.37",
DFID,DFID,24/03/2017,Project delivery costs – supplier services ,West and Southern Africa ,OXFORD POLICY MANAGEMENT ,203536-108 ,"5,266.24",
DFID,DFID,30/03/2017,Project delivery costs – supplier services ,West and Southern Africa ,OXFORD POLICY MANAGEMENT ,203536-114 ,"14,257.57",
DFID,DFID,27/03/2017,Project delivery costs – supplier services ,East and Central Africa ,OXFORD POLICY MANAGEMENT ,203539-103 ,"23,029.26",
DFID,DFID,13/03/2017,Project delivery costs – supplier services ,Policy Division ,OXFORD POLICY MANAGEMENT ,203572-102 ,"67,882.20",
DFID,DFID,13/03/2017,Project delivery costs – supplier services ,Policy Division ,OXFORD POLICY MANAGEMENT ,203572-102 ,"58,374.00",
DFID,DFID,23/03/2017,Project delivery costs – supplier services ,Research and Evidence Division ,OXFORD POLICY MANAGEMENT ,203638-104 ,"774,330.09",
DFID,DFID,17/03/2017,Project delivery costs – supplier services ,East and Central Africa ,OXFORD POLICY MANAGEMENT ,204258-102 ,"31,510.17",
DFID,DFID,23/03/2017,Project delivery costs – supplier services ,East and Central Africa ,OXFORD POLICY MANAGEMENT ,204258-102 ,"31,510.17",
DFID,DFID,03/03/2017,Project delivery costs – supplier services ,Research and Evidence Division ,OXFORD POLICY MANAGEMENT ,204322-102 ,"1,088,745.02",
DFID,DFID,24/03/2017,Project delivery costs – supplier services ,West and Southern Africa ,OXFORD POLICY MANAGEMENT ,204330-103 ,"99,076.59",
DFID,DFID,06/03/2017,Project delivery costs – supplier services ,Research and Evidence Division ,OXFORD POLICY MANAGEMENT ,205043-105 ,"31,353.60",
DFID,DFID,20/03/2017,Project delivery costs – supplier services ,West and Southern Africa ,OXFORD POLICY MANAGEMENT ,205126-101 ,"94,451.13",
DFID,DFID,02/03/2017,Project delivery costs – supplier services ,West and Southern Africa ,OXFORD POLICY MANAGEMENT ,205126-101 ,"206,981.00",
DFID,DFID,20/03/2017,Project delivery costs – supplier services ,West and Southern Africa ,OXFORD POLICY MANAGEMENT ,205126-101 ,"73,155.34",
DFID,DFID,16/03/2017,Project delivery costs – supplier services ,West and Southern Africa ,OXFORD POLICY MANAGEMENT ,205182-105 ,"28,851.23",
DFID,DFID,21/03/2017,Project delivery costs – supplier services ,West and Southern Africa ,OXFORD POLICY MANAGEMENT ,205182-105 ,"36,106.00",
DFID,DFID,15/03/2017,Project delivery costs – supplier services ,West and Southern Africa ,OXFORD POLICY MANAGEMENT ,205182-105 ,"36,106.00",
DFID,DFID,22/03/2017,Project delivery costs – supplier services ,Asia  Caribbean and Overseas Territories ,OXFORD POLICY MANAGEMENT ,300238-102 ,"196,867.00",
DFID,DFID,20/03/2017,Project delivery costs – supplier services ,Asia  Caribbean and Overseas Territories ,OXFORD POLICY MANAGEMENT ,300238-102 ,"41,945.20",
DFID,DFID,27/03/2017,Project delivery costs – supplier services ,Middle East and North Africa Division ,OXFORD POLICY MANAGEMENT ,300239-102 ,"80,031.75",
DFID,DFID,15/03/2017,Project delivery costs – supplier services ,West and Southern Africa ,OPTIONS CONSULTANCY SERVICES LIMITED ,202214-103 ,"212,500.00",
DFID,DFID,22/03/2017,Project delivery costs – supplier services ,West and Southern Africa ,OPTIONS CONSULTANCY SERVICES LIMITED ,202214-103 ,"194,445.00",
DFID,DFID,16/03/2017,Project delivery costs – supplier services ,West and Southern Africa ,OPTIONS CONSULTANCY SERVICES LIMITED ,202721-104 ,"47,500.00",
DFID,DFID,16/03/2017,Project delivery costs – supplier services ,West and Southern Africa ,OPTIONS CONSULTANCY SERVICES LIMITED ,202721-104 ,"47,500.00",
DFID,DFID,15/03/2017,Project delivery costs – supplier services ,West and Southern Africa ,OPTIONS CONSULTANCY SERVICES LIMITED ,202721-104 ,"81,428.00",
DFID,DFID,07/03/2017,Project delivery costs – supplier services ,East and Central Africa ,OPTIONS CONSULTANCY SERVICES LIMITED ,203024-103 ,"87,580.85",
DFID,DFID,07/03/2017,Project delivery costs – supplier services ,East and Central Africa ,OPTIONS CONSULTANCY SERVICES LIMITED ,203024-103 ,"81,544.38",
DFID,DFID,10/03/2017,Project delivery costs – supplier services ,Asia  Caribbean and Overseas Territories ,OPTIONS CONSULTANCY SERVICES LIMITED ,203413-103 ,"27,048.00",
DFID,DFID,13/03/2017,Project delivery costs – supplier services ,Asia  Caribbean and Overseas Territories ,OPTIONS CONSULTANCY SERVICES LIMITED ,203413-103 ,"83,400.00",
DFID,DFID,20/03/2017,Project delivery costs – supplier services ,Asia  Caribbean and Overseas Territories ,OPTIONS CONSULTANCY SERVICES LIMITED ,203413-103 ,"70,000.00",
DFID,DFID,13/03/2017,Project delivery costs – supplier services ,Asia  Caribbean and Overseas Territories ,OPTIONS CONSULTANCY SERVICES LIMITED ,203413-103 ,"50,256.00",
DFID,DFID,13/03/2017,Project delivery costs – supplier services ,Asia  Caribbean and Overseas Territories ,OPTIONS CONSULTANCY SERVICES LIMITED ,203413-103 ,"60,000.00",
DFID,DFID,06/03/2017,Project delivery costs – supplier services ,Policy Division ,CENTRE FOR GLOBAL EDUCATION live ,201469-104 ,"16,619.42",
DFID,DFID,13/03/2017,Project delivery costs – supplier services ,Policy Division ,CENTRE FOR GLOBAL EDUCATION live ,201469-104 ,"15,539.98",
DFID,DFID,15/03/2017,Office Equipment - Purchases,Group Operations ,ORANGEBOX LTD ,100007-101 ,"7,396.08",
DFID,DFID,30/03/2017,Office Equipment - Purchases,Group Operations ,ORANGEBOX LTD ,100007-101 ,"8,728.70",
DFID,DFID,01/03/2017,Project delivery costs – supplier services ,Policy Division ,PLAN INTERNATIONAL UK ,203572-101 ,"592,050.76",
DFID,DFID,23/03/2017,Project delivery costs – supplier services ,Economic Development Division ,PRICEWATERHOUSECOOPERS ,114178-104 ,"318,924.52",
DFID,DFID,01/03/2017,Project delivery costs – supplier services ,Economic Development Division ,PRICEWATERHOUSECOOPERS ,114178-104 ,"322,797.13",
DFID,DFID,29/03/2017,Project delivery costs – supplier services ,Policy Division ,PRICEWATERHOUSECOOPERS ,114370-104 ,"1,701,417.56",
DFID,DFID,29/03/2017,Project delivery costs – supplier services ,Policy Division ,PRICEWATERHOUSECOOPERS ,114370-104 ,"98,378.38",
DFID,DFID,30/03/2017,Project delivery costs – supplier services ,Policy Division ,PRICEWATERHOUSECOOPERS ,114370-105 ,"8,912.98",
DFID,DFID,30/03/2017,Project delivery costs – supplier services ,Policy Division ,PRICEWATERHOUSECOOPERS ,114370-105 ,"4,659.32",
DFID,DFID,31/03/2017,Project delivery costs – supplier services ,Policy Division ,PRICEWATERHOUSECOOPERS ,114370-105 ,"5,624.42",
DFID,DFID,31/03/2017,Project delivery costs – supplier services ,Policy Division ,PRICEWATERHOUSECOOPERS ,114370-105 ,"10,695.58",
DFID,DFID,30/03/2017,Project delivery costs – supplier services ,Policy Division ,PRICEWATERHOUSECOOPERS ,114370-105 ,"154,336.22",
DFID,DFID,03/03/2017,Project delivery costs – supplier services ,Policy Division ,PRICEWATERHOUSECOOPERS ,114370-105 ,"23,134.28",
DFID,DFID,02/03/2017,Project delivery costs – supplier services ,Policy Division ,PRICEWATERHOUSECOOPERS ,114370-105 ,"8,400.00",
DFID,DFID,29/03/2017,Project delivery costs – supplier services ,Research and Evidence Division ,PRICEWATERHOUSECOOPERS ,200822-103 ,"120,691.85",
DFID,DFID,29/03/2017,Project delivery costs – supplier services ,Research and Evidence Division ,PRICEWATERHOUSECOOPERS ,200822-103 ,"8,912.98",
DFID,DFID,29/03/2017,Project delivery costs – supplier services ,Research and Evidence Division ,PRICEWATERHOUSECOOPERS ,200822-103 ,"98,378.38",
DFID,DFID,29/03/2017,Project delivery costs – supplier services ,Research and Evidence Division ,PRICEWATERHOUSECOOPERS ,200822-103 ,"1,697,538.64",
DFID,DFID,30/03/2017,Project delivery costs – supplier services ,Research and Evidence Division ,PRICEWATERHOUSECOOPERS ,200822-103 ,"4,659.32",
DFID,DFID,03/03/2017,Project delivery costs – supplier services ,Policy Division ,PRICEWATERHOUSECOOPERS ,202372-102 ,"1,098,438.00",
DFID,DFID,08/03/2017,Project delivery costs – supplier services ,Economic Development Division ,PRICEWATERHOUSECOOPERS ,202648-102 ,"44,824.80",
DFID,DFID,07/03/2017,Project delivery costs – supplier services ,Economic Development Division ,PRICEWATERHOUSECOOPERS ,202648-102 ,"26,821.16",
DFID,DFID,20/03/2017,Project delivery costs – supplier services ,Economic Development Division ,PRICEWATERHOUSECOOPERS ,202648-102 ,"34,168.80",
DFID,DFID,31/03/2017,Project delivery costs – supplier services ,Economic Development Division ,PRICEWATERHOUSECOOPERS ,202939-103 ,"93,337.50",
DFID,DFID,31/03/2017,Project delivery costs – supplier services ,Economic Development Division ,PRICEWATERHOUSECOOPERS ,202939-113 ,"50,996.98",
DFID,DFID,28/03/2017,Project delivery costs – supplier services ,West and Southern Africa ,PRICEWATERHOUSECOOPERS ,203161-104 ,"509,227.00",
DFID,DFID,01/03/2017,Project delivery costs – supplier services ,Asia  Caribbean and Overseas Territories ,PRICEWATERHOUSECOOPERS ,203964-101 ,"32,168.00",
DFID,DFID,23/03/2017,Project delivery costs – supplier services ,Asia  Caribbean and Overseas Territories ,PRICEWATERHOUSECOOPERS ,203964-101 ,"38,000.00",
DFID,DFID,06/03/2017,Project delivery costs – supplier services ,Economic Development Division ,PRICEWATERHOUSECOOPERS ,204250-101 ,"354,477.83",
DFID,DFID,23/03/2017,Project delivery costs – supplier services ,Asia  Caribbean and Overseas Territories ,PRICEWATERHOUSECOOPERS ,204468-111 ,"3,760.00",
DFID,DFID,22/03/2017,Project delivery costs – supplier services ,Asia  Caribbean and Overseas Territories ,PRICEWATERHOUSECOOPERS ,204468-111 ,"39,343.84",
DFID,DFID,21/03/2017,Project delivery costs – supplier services ,Asia  Caribbean and Overseas Territories ,PRICEWATERHOUSECOOPERS ,205093-103 ,"620,116.00",
DFID,DFID,14/03/2017,Project delivery costs – supplier services ,West and Southern Africa ,PRICEWATERHOUSECOOPERS ,205234-106 ,"60,684.00",
DFID,DFID,14/03/2017,Project delivery costs – supplier services ,West and Southern Africa ,PRICEWATERHOUSECOOPERS ,205234-106 ,"93,258.00",
DFID,DFID,06/03/2017,Storage & Distribution costs ,International Relations Division ,PICKFORDS LTD ,100262-101 ,657.14,
DFID,DFID,22/03/2017,Storage & Distribution costs ,Asia  Caribbean and Overseas Territories ,PICKFORDS LTD ,101603-101 ,924.15,
DFID,DFID,03/03/2017,UK Staff overseas - Transfer costs ,Asia  Caribbean and Overseas Territories ,PICKFORDS LTD ,101604-101 ,"1,986.33",
DFID,DFID,22/03/2017,Storage & Distribution costs ,West and Southern Africa ,PICKFORDS LTD ,101610-101 ,651.48,
DFID,DFID,13/03/2017,Relocation costs ,West and Southern Africa ,PICKFORDS LTD ,101610-101 ,"11,336.05",
DFID,DFID,13/03/2017,Relocation costs ,West and Southern Africa ,PICKFORDS LTD ,101610-101 ,"11,336.04",
DFID,DFID,20/03/2017,Storage & Distribution costs ,West and Southern Africa ,PICKFORDS LTD ,101613-101 ,672.50,
DFID,DFID,07/03/2017,Storage & Distribution costs ,West and Southern Africa ,PICKFORDS LTD ,101613-101 ,784.62,
DFID,DFID,24/03/2017,Storage & Distribution costs ,Asia  Caribbean and Overseas Territories ,PICKFORDS LTD ,101621-101 ,732.00,
DFID,DFID,14/03/2017,Storage & Distribution costs ,Asia  Caribbean and Overseas Territories ,PICKFORDS LTD ,101624-101 ,792.00,
DFID,DFID,28/03/2017,Storage & Distribution costs ,Asia  Caribbean and Overseas Territories ,PICKFORDS LTD ,101624-101 ,530.40,
DFID,DFID,03/03/2017,Storage & Distribution costs ,Asia  Caribbean and Overseas Territories ,PICKFORDS LTD ,101624-101 ,757.03,
DFID,DFID,03/03/2017,Storage & Distribution costs ,Asia  Caribbean and Overseas Territories ,PICKFORDS LTD ,101624-101 ,"8,222.59",
DFID,DFID,02/03/2017,Storage & Distribution costs ,Asia  Caribbean and Overseas Territories ,PICKFORDS LTD ,101624-101 ,630.86,
DFID,DFID,24/03/2017,Storage & Distribution costs ,East and Central Africa ,PICKFORDS LTD ,101625-107 ,554.23,
DFID,DFID,03/03/2017,Relocation costs ,West and Southern Africa ,PICKFORDS LTD ,101629-101 ,"3,838.98",
DFID,DFID,22/03/2017,Relocation costs ,West and Southern Africa ,PICKFORDS LTD ,101629-101 ,782.50,
DFID,DFID,06/03/2017,Storage & Distribution costs ,West and Southern Africa ,PICKFORDS LTD ,101629-101 ,"2,701.16",
DFID,DFID,02/03/2017,Storage & Distribution costs ,West and Southern Africa ,PICKFORDS LTD ,101629-101 ,549.70,
DFID,DFID,09/03/2017,Relocation costs ,West and Southern Africa ,PICKFORDS LTD ,101629-101 ,"6,615.33",
DFID,DFID,23/03/2017,Storage & Distribution costs ,West and Southern Africa ,PICKFORDS LTD ,101631-101 ,598.60,
DFID,DFID,15/03/2017,Storage & Distribution costs ,West and Southern Africa ,PICKFORDS LTD ,101631-101 ,666.70,
DFID,DFID,06/03/2017,Storage & Distribution costs ,East and Central Africa ,PICKFORDS LTD ,101634-101 ,"2,410.40",
DFID,DFID,06/03/2017,UK Staff overseas - Transfer costs ,West and Southern Africa ,PICKFORDS LTD ,101637-101 ,"1,950.86",
DFID,DFID,01/03/2017,Storage & Distribution costs ,West and Southern Africa ,PICKFORDS LTD ,101637-101 ,546.74,
DFID,DFID,16/03/2017,Relocation costs ,West and Southern Africa ,PICKFORDS LTD ,101638-101 ,"5,269.75",
DFID,DFID,01/03/2017,Storage & Distribution costs ,West and Southern Africa ,PICKFORDS LTD ,101638-101 ,599.32,
DFID,DFID,16/03/2017,Relocation costs ,Economic Development Division ,PICKFORDS LTD ,202373-101 ,"5,269.76",
DFID,DFID,03/03/2017,Storage & Distribution costs ,Economic Development Division ,PICKFORDS LTD ,202373-101 ,"2,615.22",
DFID,DFID,03/03/2017,Relocation costs ,East and Central Africa ,PICKFORDS LTD ,202594-101 ,"3,838.98",
DFID,DFID,19/03/2017,Storage & Distribution costs ,Middle East and North Africa Division ,PICKFORDS LTD ,204055-101 ,834.34,
DFID,DFID,19/03/2017,Storage & Distribution costs ,Middle East and North Africa Division ,PICKFORDS LTD ,204055-101 ,"1,332.46",
DFID,DFID,02/03/2017,Storage & Distribution costs ,Middle East and North Africa Division ,PICKFORDS LTD ,300078-101 ,"1,631.85",
DFID,DFID,02/03/2017,Relocation costs ,Middle East and North Africa Division ,PICKFORDS LTD ,300080-101 ,"15,152.39",
DFID,DFID,02/03/2017,Storage & Distribution costs ,Middle East and North Africa Division ,PICKFORDS LTD ,300080-101 ,"5,824.63",
DFID,DFID,24/03/2017,Project delivery costs – supplier services ,Asia  Caribbean and Overseas Territories ,POPULATION  SERVICES INTERNATIONAL ,202413-105 ,"1,076,108.28",
DFID,DFID,07/03/2017,Project delivery costs – supplier services ,West and Southern Africa ,POPULATION  SERVICES INTERNATIONAL ,203458-102 ,"174,977.00",
DFID,DFID,07/03/2017,Project delivery costs – supplier services ,West and Southern Africa ,POPULATION  SERVICES INTERNATIONAL ,203458-103 ,"808,717.00",
DFID,DFID,07/03/2017,Project delivery costs – supplier services ,West and Southern Africa ,POPULATION  SERVICES INTERNATIONAL ,203458-104 ,"306,306.00",
DFID,DFID,08/03/2017,Aid Programme - Accountable Grant Payments ,East and Central Africa ,POPULATION  SERVICES INTERNATIONAL ,204903-101 ,"1,215,517.00",
DFID,DFID,07/03/2017,Aid Programme - Accountable Grant Payments ,East and Central Africa ,POPULATION  SERVICES INTERNATIONAL ,204903-102 ,"231,305.00",
DFID,DFID,23/03/2017,Project delivery costs – supplier services ,Policy Division ,THE POLICY PRACTICE LTD ,203950-101 ,"5,670.00",
DFID,DFID,07/03/2017,Aid Programme - Accountable Grant Payments ,East and Central Africa ,PRACTICAL ACTION (UK) ,201575-106 ,"166,681.98",
DFID,DFID,17/03/2017,Training - Course Fees ,East and Central Africa ,RIFT VALLEY INSTITUTE ,101630-101 ,"3,448.78",
DFID,DFID,24/03/2017,Training - Course Fees ,East and Central Africa ,RIFT VALLEY INSTITUTE ,101630-102 ,"3,294.04",
DFID,DFID,28/03/2017,Aid Programme - Accountable Grant Payments ,Policy Division ,SCIAF ,203559-163 ,"26,790.66",
DFID,DFID,10/03/2017,Project delivery costs – supplier services ,West and Southern Africa ,THE SAVE THE CHILDREN FUND ,202623-116 ,"75,000.00",
DFID,DFID,10/03/2017,Project delivery costs – supplier services ,West and Southern Africa ,THE SAVE THE CHILDREN FUND ,202623-116 ,"50,000.00",
DFID,DFID,16/03/2017,Project delivery costs – supplier services ,West and Southern Africa ,THE SAVE THE CHILDREN FUND ,202623-117 ,"340,000.00",
DFID,DFID,28/03/2017,Aid Programme - Accountable Grant Payments ,West and Southern Africa ,THE SAVE THE CHILDREN FUND ,202637-108 ,"33,227.99",
DFID,DFID,20/03/2017,Aid Programme - Accountable Grant Payments ,East and Central Africa ,THE SAVE THE CHILDREN FUND ,203462-102 ,"7,000,000.00",
DFID,DFID,06/03/2017,Aid Programme - Accountable Grant Payments ,Policy Division ,THE SAVE THE CHILDREN FUND ,203559-121 ,"553,366.24",
DFID,DFID,23/03/2017,Aid Programme - Accountable Grant Payments ,Middle East and North Africa Division ,SAVE THE CHILDREN ,203847-101 ,"362,829.78",
DFID,DFID,23/03/2017,Aid Programme - Accountable Grant Payments ,Middle East and North Africa Division ,SAVE THE CHILDREN ,203847-101 ,"163,897.12",
DFID,DFID,30/03/2017,Aid Programme - Humanitarian Material Relief Assistance and Services ,Conflict  Humanitarian  Security & Stabilisation Division ,SAVE THE CHILDREN ,204118-102 ,"7,788,947.00",
DFID,DFID,15/03/2017,Aid Programme - Humanitarian Material Relief Assistance and Services ,Conflict  Humanitarian  Security & Stabilisation Division ,SAVE THE CHILDREN ,204897-101 ,"1,195,298.00",
DFID,DFID,06/03/2017,Aid Programme - Accountable Grant Payments ,Conflict  Humanitarian  Security & Stabilisation Division ,SAVE THE CHILDREN ,300264-110 ,"146,805.58",
DFID,DFID,30/03/2017,Office Equipment - Purchases ,Group Operations ,INTIMUS INTERNATIONAL LTD ,203716-101 ,"3,373.20",
DFID,DFID,08/03/2017,Aid Programme - Accountable Grant Payments ,Policy Division ,SENSE INTERNATIONAL ,203559-144 ,"21,755.00",
DFID,DFID,13/03/2017,Research and development costs - supplier services ,Research and Evidence Division ,SCHOOL OF ORIENTAL & AFRICAN STUDIES (UK) ,203752-104 ,"100,906.00",
DFID,DFID,30/03/2017,Project delivery costs – supplier services ,Policy Division ,Social Development Direct Ltd ,203245-106 ,"25,263.64",
DFID,DFID,07/03/2017,Project delivery costs – supplier services ,West and Southern Africa ,Social Development Direct Ltd ,203823-102 ,"50,000.00",
DFID,DFID,28/03/2017,Project delivery costs – supplier services ,West and Southern Africa ,Social Development Direct Ltd ,203823-102 ,"60,000.00",
DFID,DFID,27/03/2017,Project delivery costs – supplier services ,West and Southern Africa ,Social Development Direct Ltd ,203823-106 ,"44,056.48",
DFID,DFID,08/03/2017,Aid Programme - Accountable Grant Payments ,Policy Division ,SIGHT SAVERS INTERNATIONAL ,203559-127 ,"521,000.00",
DFID,DFID,10/03/2017,Aid Programme - Accountable Grant Payments ,West and Southern Africa ,RESTLESS DEVELOPMENT ,205269-102 ,"157,706.00",
DFID,DFID,28/03/2017,Project delivery costs – supplier services ,Group Operations ,SODEXHO PASS LTD ,204999-104 ,"1,668.52",
DFID,DFID,10/03/2017,Postage Costs ,Group Operations ,TNT Express (UK) Ltd ,100106-101 ,626.40,
DFID,DFID,30/03/2017,Storage & Distribution costs ,Business Solutions Division Level ,TNT Express (UK) Ltd ,200001-101 ,"8,312.75",
DFID,DFID,01/03/2017,Storage & Distribution costs ,Business Solutions Division Level ,TNT Express (UK) Ltd ,200001-101 ,"4,707.51",
DFID,DFID,14/03/2017,Legal costs ,Finance and Corporate Performance Division ,GOVERNMENT LEGAL DEPARTMENT ,100201-101 ,673.10,
DFID,DFID,14/03/2017,Legal costs ,Finance and Corporate Performance Division ,GOVERNMENT LEGAL DEPARTMENT ,100201-101 ,"1,303.40",
DFID,DFID,07/03/2017,Legal costs ,Finance and Corporate Performance Division ,GOVERNMENT LEGAL DEPARTMENT ,100201-101 ,"2,213.88",
DFID,DFID,07/03/2017,Legal costs ,Finance and Corporate Performance Division ,GOVERNMENT LEGAL DEPARTMENT ,100201-101 ,"2,160.96",
DFID,DFID,07/03/2017,Legal costs ,Finance and Corporate Performance Division ,GOVERNMENT LEGAL DEPARTMENT ,100201-101 ,672.40,
DFID,DFID,06/03/2017,Legal costs ,Finance and Corporate Performance Division ,GOVERNMENT LEGAL DEPARTMENT ,100201-101 ,"1,580.64",
DFID,DFID,07/03/2017,Legal costs ,Human Resources ,GOVERNMENT LEGAL DEPARTMENT ,100269-136 ,860.00,
DFID,DFID,14/03/2017,Legal costs ,East and Central Africa ,GOVERNMENT LEGAL DEPARTMENT ,101612-101 ,"1,490.40",
DFID,DFID,14/03/2017,Legal costs ,East and Central Africa ,GOVERNMENT LEGAL DEPARTMENT ,101612-101 ,587.00,
DFID,DFID,14/03/2017,Legal costs ,East and Central Africa ,GOVERNMENT LEGAL DEPARTMENT ,101625-102 ,"1,013.70",
DFID,DFID,07/03/2017,Legal costs ,East and Central Africa ,GOVERNMENT LEGAL DEPARTMENT ,101625-102 ,"2,857.20",
DFID,DFID,07/03/2017,Legal costs ,East and Central Africa ,GOVERNMENT LEGAL DEPARTMENT ,101625-102 ,"3,580.00",
DFID,DFID,16/03/2017,Legal costs ,West and Southern Africa ,GOVERNMENT LEGAL DEPARTMENT ,101629-101 ,634.80,
DFID,DFID,16/03/2017,Legal costs ,West and Southern Africa ,GOVERNMENT LEGAL DEPARTMENT ,101629-101 ,"1,074.96",
DFID,DFID,16/03/2017,Legal costs ,West and Southern Africa ,GOVERNMENT LEGAL DEPARTMENT ,101629-101 ,"2,210.52",
DFID,DFID,07/03/2017,Legal costs ,Economic Development Division ,GOVERNMENT LEGAL DEPARTMENT ,203232-101 ,"3,139.09",
DFID,DFID,07/03/2017,Legal costs ,East and Central Africa ,GOVERNMENT LEGAL DEPARTMENT ,204270-103 ,960.00,
DFID,DFID,07/03/2017,Legal costs ,West and Southern Africa ,GOVERNMENT LEGAL DEPARTMENT ,204391-103 ,"1,217.00",
DFID,DFID,07/03/2017,Legal costs ,West and Southern Africa ,GOVERNMENT LEGAL DEPARTMENT ,204391-103 ,"2,391.50",
DFID,DFID,07/03/2017,other information and communication technologies ,Business Solutions Division Level ,TRUSTMARQUE SOLUTIONS LTD ,200002-187 ,"10,037.50",
DFID,DFID,24/03/2017,Computer Software Licenses ,Business Solutions Division Level ,TRUSTMARQUE SOLUTIONS LTD ,200002-228 ,"4,899.11",
DFID,DFID,10/03/2017,Computer Software Licenses ,Business Solutions Division Level ,TRUSTMARQUE SOLUTIONS LTD ,200002-239 ,"427,511.98","Annual cost of Microsoft Office licences and licence agreement for DFID offices for the period April 2017 �March 2018�
 
"
DFID,DFID,10/03/2017,Computer Software Licenses ,Business Solutions Division Level ,TRUSTMARQUE SOLUTIONS LTD ,200004-106 ,"24,962.04",
DFID,DFID,07/03/2017,Aid Programme - Accountable Grant Payments ,Policy Division ,TROCAIRE (Northern Ireland) ,203559-112 ,"164,744.00",
DFID,DFID,30/03/2017,Project delivery costs – supplier services ,Policy Division ,TROPICAL HEALTH AND EDUCATION TRUST ,202208-101 ,"113,288.10",
DFID,DFID,13/03/2017,Project delivery costs – supplier services ,West and Southern Africa ,TRL LTD ,201433-102 ,"32,463.69",
DFID,DFID,29/03/2017,Training Providers/Facilitation Services ,Group Operations ,THE ROYAL STATISTICAL SOCIETY ,204284-101 ,"2,400.00",
DFID,DFID,07/03/2017,Aid Programme - Accountable Grant Payments ,West and Southern Africa ,THE OPEN UNIVERSITY ,202623-112 ,"67,775.07",
DFID,DFID,07/03/2017,Research and development costs - supplier services ,Research and Evidence Division ,University of Oxford ,201900-105 ,"884,048.24",
DFID,DFID,21/03/2017,Aid Programme - Voluntary contributions ,East and Central Africa ,UNDP CONTRIBUTIONS ACCOUNT ,202821-101 ,"1,443.37",
DFID,DFID,27/03/2017,Aid Programme - Voluntary contributions ,Middle East and North Africa Division ,UNDP CONTRIBUTIONS ACCOUNT ,300045-101 ,"450,000.00",
DFID,DFID,27/03/2017,Aid Programme - Voluntary contributions ,Middle East and North Africa Division ,UNDP CONTRIBUTIONS ACCOUNT ,300045-101 ,"110,000.00",
DFID,DFID,09/03/2017,Aid Programme - Joint programme contribution ,West and Southern Africa ,UNDP CONTRIBUTIONS GBP ,203567-102 ,"70,000.00",
DFID,DFID,24/03/2017,Aid Programme - Joint programme contribution ,Asia  Caribbean and Overseas Territories ,UNDP CONTRIBUTIONS GBP ,204176-102 ,"500,000.00",
DFID,DFID,30/03/2017,Aid Programme - Voluntary contributions ,Middle East and North Africa Division ,UNDP CONTRIBUTIONS GBP ,204397-103 ,"2,131,539.00",
DFID,DFID,30/03/2017,Aid Programme - Voluntary contributions ,Middle East and North Africa Division ,UNDP CONTRIBUTIONS GBP ,204397-104 ,"176,177.00",
DFID,DFID,10/03/2017,Aid Programme - Joint programme contribution ,Conflict  Humanitarian  Security & Stabilisation Division ,UNDP CONTRIBUTIONS GBP ,204795-106 ,"159,856.00",
DFID,DFID,21/03/2017,Aid Programme - Humanitarian Material Relief Assistance and Services ,Asia  Caribbean and Overseas Territories ,UNDP CONTRIBUTIONS GBP ,205138-105 ,"98,840.00",
DFID,DFID,03/03/2017,Research and development costs - supplier services ,Research and Evidence Division ,UNIVERSITY OF LEEDS ,201025-103 ,"482,548.16",
DFID,DFID,07/03/2017,Aid Programme - Voluntary contributions ,Economic Development Division ,UN WOMEN ,205221-101 ,"687,292.34",
DFID,DFID,21/03/2017,Aid Programme - Voluntary contributions ,West and Southern Africa ,UNICEF ,202345-102 ,"327,027.00",
DFID,DFID,31/03/2017,Aid Programme - Humanitarian Material Relief Assistance and Services ,East and Central Africa ,UNICEF ,203462-102 ,"5,000,000.00",
DFID,DFID,21/03/2017,Project delivery costs – supplier services ,East and Central Africa ,UNICEF ,204463-103 ,"200,000.00",
DFID,DFID,24/03/2017,Aid Programme - Voluntary contributions ,West and Southern Africa ,UNICEF ,300036-107 ,"1,500,000.00",
DFID,DFID,28/03/2017,Aid Programme - Voluntary contributions ,Asia  Caribbean and Overseas Territories ,UNICEF ,300051-103 ,"229,481.00",
DFID,DFID,23/03/2017,Aid Programme - Humanitarian Material Relief Assistance and Services ,East and Central Africa ,UNICEF ,300270-101 ,"1,000,000.00",
DFID,DFID,20/03/2017,Project delivery costs – supplier services ,Policy Division ,VOLUNTARY SERVICE OVERSEAS ,204894-101 ,"2,366,006.74",
DFID,DFID,09/03/2017,Telephone Usage & services ,Business Solutions Division Level ,VODAFONE CORPORATE ,200002-170 ,"24,825.20",
DFID,DFID,09/03/2017,Telephone Usage & services ,Business Solutions Division Level ,VODAFONE CORPORATE ,200002-170 ,"8,023.26",
DFID,DFID,03/03/2017,Repairs  Maint  Alter - Property & Constrct. Services ,Central Department Division ,FCO SERVICES ,204994-143 ,"29,895.50",The delivery of remedial works required to the DFID properties in multiple overseas locations as part of the 1 HMG consolidation programme
DFID,DFID,24/03/2017,Telephone Usage & services ,Business Solutions Division Level ,VODAFONE CORPORATE ,200002-170 ,"10,455.38",
DFID,DFID,15/03/2017,Aid Programme - Accountable Grant Payments ,Policy Division ,UNICEF UK ,203559-118 ,"883,356.00",
DFID,DFID,03/03/2017,Training Providers/Facilitation Services ,Group Operations ,VULCAN FIRE TRAINING CO LTD ,203717-101 ,690.00,
DFID,DFID,16/03/2017,Data Network - land lines ,Business Solutions Division Level ,VERIZON UK LIMITED ,200002-126 ,"3,317.88",
DFID,DFID,01/03/2017,Project delivery costs – supplier services ,Human Resources ,THE WHITEHALL & INDUSTRY GROUP ,100269-155 ,"5,820.00",
DFID,DFID,07/03/2017,Training Providers/Facilitation Services ,Policy Division ,THE WHITEHALL & INDUSTRY GROUP ,100274-111 ,540.00,
DFID,DFID,13/03/2017,Project delivery costs – supplier services ,Research and Evidence Division ,WILTON PARK ,204570-108 ,"3,902.00",
DFID,DFID,07/03/2017,Aid Programme - Accountable Grant Payments ,Policy Division ,WATERAID ,203559-116 ,"225,239.00",
DFID,DFID,08/03/2017,Aid Programme - Accountable Grant Payments ,Policy Division ,WATERAID ,203559-157 ,"521,389.00",
DFID,DFID,07/03/2017,Aid Programme - Accountable Grant Payments ,Asia  Caribbean and Overseas Territories ,WESTMINSTER FOUNDATION FOR DEMOCRACY ,203454-106 ,"410,962.00",
DFID,DFID,15/03/2017,Aid Programme - Accountable Grant Payments ,Policy Division ,WESTMINSTER FOUNDATION FOR DEMOCRACY ,204757-101 ,"1,003,230.00",
DFID,DFID,07/03/2017,Air fares ,Asia  Caribbean and Overseas Territories ,Saimon Overseas Ltd ,101603-102 ,983.73,
DFID,DFID,13/03/2017,Air fares ,Asia  Caribbean and Overseas Territories ,Saimon Overseas Ltd ,101603-102 ,"1,129.04",
DFID,DFID,29/03/2017,Air fares ,Asia  Caribbean and Overseas Territories ,Saimon Overseas Ltd ,101603-102 ,"1,116.40",
DFID,DFID,07/03/2017,Air fares ,Asia  Caribbean and Overseas Territories ,Saimon Overseas Ltd ,101603-101 ,960.72,
DFID,DFID,07/03/2017,Air fares ,Asia  Caribbean and Overseas Territories ,Saimon Overseas Ltd ,101603-101 ,"1,112.48",
DFID,DFID,01/03/2017,Air fares ,Business Solutions Division Level ,Saimon Overseas Ltd ,200001-101 ,574.01,
DFID,DFID,16/03/2017,Hotels - Accommodation only ,West and Southern Africa ,Wendels Guest House ,204643-101 ,698.08,
DFID,DFID,17/03/2017,Air fares ,West and Southern Africa ,Mukwa Travel and Tours ,101631-101 ,586.25,
DFID,DFID,13/03/2017,Air fares ,West and Southern Africa ,Mukwa Travel and Tours ,101637-101 ,"1,229.51",
DFID,DFID,07/03/2017,Air fares ,West and Southern Africa ,Mukwa Travel and Tours ,101637-101 ,943.02,
DFID,DFID,17/03/2017,Air fares ,Economic Development Division ,Mukwa Travel and Tours ,202432-101 ,757.72,
DFID,DFID,29/03/2017,Hotels - Accommodation only ,West and Southern Africa ,InterContinental Hotel ,202345-103 ,636.51,
DFID,DFID,30/03/2017,Legal costs ,West and Southern Africa ,Corpus Globe (US $) ,203000-102 ,933.13,
DFID,DFID,17/03/2017,Air fares ,West and Southern Africa ,Jaya Travels & Tours Ltd ,101618-101 ,"1,999.62",
DFID,DFID,17/03/2017,Air fares ,Asia  Caribbean and Overseas Territories ,Jaya Travels & Tours Ltd ,101621-108 ,844.51,
DFID,DFID,17/03/2017,Air fares ,Asia  Caribbean and Overseas Territories ,Jaya Travels & Tours Ltd ,101621-101 ,"1,506.85",
DFID,DFID,31/03/2017,Conferences  Seminars & Meeting/Event Resource ,Research and Evidence Division ,Summit Hotel Pvt Ltd ,202331-101 ,846.90,
DFID,DFID,07/03/2017,Recruitment costs ,Asia  Caribbean and Overseas Territories ,Thompson Nepal Pvt Ltd ,101621-101 ,699.34,
DFID,DFID,31/03/2017,Contract Catering Services,Research and Evidence Division ,Hotel View Bhrikuti ,202331-101 ,"2,207.69",
DFID,DFID,29/03/2017,Hotels - Accommodation only ,Asia  Caribbean and Overseas Territories ,Hotel Himalaya Pvt Ltd ,101621-101 ,"1,039.51",
DFID,DFID,10/03/2017,other information and communication technologies ,Business Solutions Division Level ,Subisu Cable Net Pvt Ltd ,200002-121 ,625.97,
DFID,DFID,15/03/2017,Air fares ,West and Southern Africa ,Jeffery Travels ,101610-101 ,"1,023.83",
DFID,DFID,14/03/2017,Air fares ,West and Southern Africa ,Jeffery Travels ,101610-101 ,"1,023.83",
DFID,DFID,14/03/2017,Air fares ,West and Southern Africa ,Jeffery Travels ,101610-101 ,"1,023.83",
DFID,DFID,13/03/2017,Hotels - Accommodation only ,West and Southern Africa ,Accra City Hotel ,101613-101 ,"1,091.08",
DFID,DFID,23/03/2017,Hotels - Accommodation only ,West and Southern Africa ,Accra City Hotel ,101613-101 ,566.52,
DFID,DFID,16/03/2017,Hotels - Accommodation only ,West and Southern Africa ,Accra City Hotel ,204918-101 ,567.54,
DFID,DFID,22/03/2017,Hotels - Accommodation only ,West and Southern Africa ,Accra City Hotel ,204918-101 ,567.54,
DFID,DFID,21/03/2017,Hotels - Accommodation only ,Policy Division ,Sheraton Hotel ,100274-111 ,983.89,
DFID,DFID,24/03/2017,Hotels - Accommodation only ,East and Central Africa ,Sheraton Hotel ,101635-101 ,710.34,
DFID,DFID,03/03/2017,Hotels - Accommodation only ,East and Central Africa ,Sheraton Hotel ,101635-101 ,"1,018.85",
DFID,DFID,30/03/2017,Aid Programme - Refugee Relief Payments ,East and Central Africa ,Sheraton Hotel ,205032-105 ,"3,106.17",
DFID,DFID,21/03/2017,Aid Programme - Refugee Relief Payments ,East and Central Africa ,Sheraton Hotel ,205032-105 ,"3,248.18",
DFID,DFID,24/03/2017,Training - Travel & Subsistence ,East and Central Africa ,Simbatravelcare Limited ,101635-101 ,"1,036.80",
DFID,DFID,31/03/2017,Training - Travel & Subsistence ,East and Central Africa ,Simbatravelcare Limited ,101635-101 ,"1,103.06",
DFID,DFID,31/03/2017,Training - Travel & Subsistence ,East and Central Africa ,Simbatravelcare Limited ,101635-101 ,516.10,
DFID,DFID,14/03/2017,Air fares ,East and Central Africa ,Simbatravelcare Limited ,101635-101 ,"1,068.20",
DFID,DFID,24/03/2017,Training - Travel & Subsistence ,East and Central Africa ,Simbatravelcare Limited ,101635-101 ,"1,022.40",
DFID,DFID,31/03/2017,Air fares ,East and Central Africa ,Simbatravelcare Limited ,203603-105 ,805.15,
DFID,DFID,01/03/2017,Air fares ,East and Central Africa ,WFP Somalia ,101630-101 ,"1,725.52",
DFID,DFID,22/03/2017,Hotels - Accommodation only ,East and Central Africa ,Fairview Hotel ,101616-101 ,"1,265.02",
DFID,DFID,30/03/2017,Research and development costs - supplier services ,Research and Evidence Division ,The Population Council ,201398-103 ,"454,677.00",
DFID,DFID,29/03/2017,Research and development costs - supplier services ,Research and Evidence Division ,The Population Council ,204329-103 ,"522,213.00",
DFID,DFID,31/03/2017,Hotels - Accommodation only ,East and Central Africa ,SENTINEL EXECUTIVE SUITES CC ,101625-107 ,632.85,
DFID,DFID,14/03/2017,Hotels - Accommodation only ,West and Southern Africa ,Supplier Name withheld ,101622-106 ,"1,176.58",
DFID,DFID,14/03/2017,Hotels - Accommodation only ,West and Southern Africa ,Supplier Name withheld ,101622-106 ,"1,565.17",
DFID,DFID,14/03/2017,Hotels - Accommodation only ,West and Southern Africa ,Supplier Name withheld ,101622-106 ,"1,262.91",
DFID,DFID,20/03/2017,Hotels - Accommodation only ,West and Southern Africa ,Supplier Name withheld ,101622-105 ,"3,259.52",
DFID,DFID,23/03/2017,Hotels - Accommodation only ,West and Southern Africa ,Supplier Name withheld ,101622-105 ,"1,598.32",
DFID,DFID,23/03/2017,Project delivery costs – supplier services ,Asia  Caribbean and Overseas Territories ,ACCESS DEVELOPMENT SERVICES ,114293-103 ,"16,461.83",
DFID,DFID,07/03/2017,Subscriptions ,Research and Evidence Division ,NATURE PUBLISHING GROUP ,202348-105 ,"10,240.80",
DFID,DFID,22/03/2017,Project delivery costs – supplier services ,Policy Division ,Overseas Development Institute ,202921-103 ,"842,803.50",
DFID,DFID,09/03/2017,Project delivery costs – supplier services ,Policy Division ,Overseas Development Institute ,203034-111 ,"10,454.52",
DFID,DFID,17/03/2017,Project delivery costs – supplier services ,Research and Evidence Division ,Overseas Development Institute ,203199-109 ,"165,124.31",
DFID,DFID,08/03/2017,Research and development costs - supplier services ,Research and Evidence Division ,Overseas Development Institute ,203529-106 ,"647,250.82",
DFID,DFID,03/03/2017,Aid Programme - Accountable Grant Payments ,East and Central Africa ,Overseas Development Institute ,204458-109 ,"62,497.08",
DFID,DFID,03/03/2017,Aid Programme - Accountable Grant Payments ,Research and Evidence Division ,Overseas Development Institute ,204584-148 ,"26,620.00",
DFID,DFID,28/03/2017,Aid Programme - Accountable Grant Payments ,Economic Development Division ,ISEAL ALLIANCE ,203448-101 ,"526,923.00",
DFID,DFID,02/03/2017,Aid Programme - Accountable Grant Payments ,Asia  Caribbean and Overseas Territories ,THE ASIA FOUNDATION ,203996-107 ,"123,885.44",
DFID,DFID,27/03/2017,Research and development costs - supplier services ,Research and Evidence Division ,LEONARD CHESHIRE DISABILITY ,204584-143 ,"25,000.00",
DFID,DFID,21/03/2017,Computer Software Licenses ,Group Operations ,CARDINUS LTD ,100106-101 ,"1,860.00",
DFID,DFID,02/03/2017,Project delivery costs – supplier services ,International Relations Division ,ART OF LIVING ,205081-101 ,"1,714.00",
DFID,DFID,01/03/2017,Project delivery costs – supplier services ,International Relations Division ,ART OF LIVING ,205081-101 ,"4,448.96",
DFID,DFID,01/03/2017,Project delivery costs – supplier services ,International Relations Division ,ART OF LIVING ,205081-101 ,"3,060.00",
DFID,DFID,30/03/2017,Project delivery costs – supplier services ,International Relations Division ,ART OF LIVING ,205081-101 ,"1,045.00",
DFID,DFID,28/03/2017,Aid Programme - Humanitarian Material Relief Assistance and Services ,Conflict  Humanitarian  Security & Stabilisation Division ,UN OCHA ,203419-105 ,"39,477.10",
DFID,DFID,14/03/2017,Computer Consumables ,Business Solutions Division Level ,SOFTWARE BOX LTD (SBL) ,200002-197 ,"3,910.86",
DFID,DFID,23/03/2017,Aid Programme - Humanitarian Material Relief Assistance and Services ,East and Central Africa ,FAO ,203462-102 ,"4,680,000.00",
DFID,DFID,24/03/2017,Aid Programme - Voluntary contributions ,East and Central Africa ,FAO ,204888-105 ,"516,303.00",
DFID,DFID,23/03/2017,Aid Programme - Accountable Grant Payments ,Policy Division ,CMI MICHELSEN INSTITUTE ,300292-114 ,"150,000.00",
DFID,DFID,24/03/2017,Aid Programme - Voluntary contributions ,East and Central Africa ,WFP CONTRIBUTIONS UNIT ,203462-102 ,"5,000,000.00",
DFID,DFID,16/03/2017,Aid Programme - Voluntary contributions ,East and Central Africa ,WFP CONTRIBUTIONS UNIT ,204019-117 ,"500,000.00",
DFID,DFID,17/03/2017,Aid Programme - Voluntary contributions ,East and Central Africa ,WFP CONTRIBUTIONS UNIT ,204019-101 ,"2,000,000.00",
DFID,DFID,15/03/2017,Aid Programme - Core contributions ,West and Southern Africa ,WFP CONTRIBUTIONS UNIT ,205161-106 ,"1,327,590.00",
DFID,DFID,13/03/2017,Research and development costs - supplier services ,Research and Evidence Division ,International Food PolicyResearch Institute (IFRI ,201448-104 ,"147,425.00",
DFID,DFID,08/03/2017,Data Network - land lines ,Business Solutions Division Level ,KUBE NETWORKS LTD ,200002-130 ,"1,136.83",
DFID,DFID,17/03/2017,DFID Purchased Relief Supplies ,West and Southern Africa ,IPA-International Procurement Agency (BV) ,202722-103 ,"559,567.92",
DFID,DFID,21/03/2017,DFID Purchased Relief Supplies ,East and Central Africa ,IPA-International Procurement Agency (BV) ,203109-111 ,"175,315.94",
DFID,DFID,30/03/2017,DFID Purchased Relief Supplies ,Policy Division ,IPA-International Procurement Agency (BV) ,203148-102 ,"26,709.92",
DFID,DFID,30/03/2017,DFID Purchased Relief Supplies ,Policy Division ,IPA-International Procurement Agency (BV) ,203148-102 ,787.94,
DFID,DFID,01/03/2017,DFID Purchased Relief Supplies ,East and Central Africa ,IPA-International Procurement Agency (BV) ,204861-101 ,827.63,
DFID,DFID,17/03/2017,Project delivery costs – supplier services ,West and Southern Africa ,IPA-International Procurement Agency (BV) ,204917-106 ,"23,869.88",
DFID,DFID,08/03/2017,Project delivery costs – supplier services ,East and Central Africa ,Kimetrica Limited ,205116-110 ,"31,742.00",
DFID,DFID,07/03/2017,Office Equipment - Purchases ,Group Operations ,EVAC+CHAIR INTERNATIONAL LTD ,100106-101 ,780.00,
DFID,DFID,23/03/2017,Aid Programme - Accountable Grant Payments ,East and Central Africa ,FINANCIAL SECTOR DEEPENING ,204258-104 ,"1,177,303.50",
DFID,DFID,23/03/2017,Aid Programme - Accountable Grant Payments ,East and Central Africa ,FINANCIAL SECTOR DEEPENING ,204258-105 ,"3,531,910.50",
DFID,DFID,30/03/2017,Project delivery costs – supplier services ,Policy Division ,KPMG EAST AFRICA LTD ,201724-102 ,"80,649.00",
DFID,DFID,17/03/2017,Project delivery costs – supplier services ,Policy Division ,KPMG EAST AFRICA LTD ,202921-102 ,"360,055.20",
DFID,DFID,22/03/2017,Project delivery costs – supplier services ,East and Central Africa ,UPPER QUARTILE ,203871-108 ,"65,878.00",
DFID,DFID,24/03/2017,Hotels - Accommodation only ,West and Southern Africa ,The Country Lodge Complex ,100214-101 ,"2,950.76",
DFID,DFID,24/03/2017,Hotels - Accommodation only ,West and Southern Africa ,The Country Lodge Complex ,100214-101 ,"4,540.97",
DFID,DFID,27/03/2017,Hotels - Accommodation only ,West and Southern Africa ,The Country Lodge Complex ,100214-101 ,887.77,
DFID,DFID,20/03/2017,Air fares ,West and Southern Africa ,Premier Travel ,101638-101 ,583.06,
DFID,DFID,24/03/2017,Aid Programme - Voluntary contributions ,West and Southern Africa ,UNFPA ,300036-112 ,"778,815.00",
DFID,DFID,28/03/2017,Aid Programme - Voluntary contributions ,Asia  Caribbean and Overseas Territories ,UNFPA ,300250-104 ,"19,035.00",
DFID,DFID,01/03/2017,Project delivery costs – supplier services ,West and Southern Africa ,Cambridge  Education Limited ,104200-101 ,"148,091.09",
DFID,DFID,14/03/2017,Project delivery costs – supplier services ,Economic Development Division ,KPMG LLP ,202089-103 ,"24,349.00",
DFID,DFID,14/03/2017,Project delivery costs – supplier services ,Economic Development Division ,KPMG LLP ,202647-101 ,"9,916.80",
DFID,DFID,31/03/2017,Project delivery costs – supplier services ,Economic Development Division ,KPMG LLP ,204255-101 ,"253,102.60",
DFID,DFID,09/03/2017,Project delivery costs – supplier services ,Economic Development Division ,KPMG LLP ,204255-101 ,"359,830.43",
DFID,DFID,09/03/2017,Project delivery costs – supplier services ,Economic Development Division ,KPMG LLP ,204255-101 ,"27,972.00",
DFID,DFID,09/03/2017,Project delivery costs – supplier services ,Economic Development Division ,KPMG LLP ,204255-101 ,"196,060.50",
DFID,DFID,02/03/2017,Aid Programme - Pooled/Basket funding ,Research and Evidence Division ,WHO (GENEVA) ,201900-106 ,"86,800.00",
DFID,DFID,24/03/2017,Aid Programme - Core contributions ,Research and Evidence Division ,WHO (GENEVA) ,202769-104 ,"1,000,000.00",
DFID,DFID,23/03/2017,Aid Programme - Voluntary contributions ,Policy Division ,WHO (GENEVA) ,203066-101 ,"135,000.00",
DFID,DFID,06/03/2017,Aid Programme - Voluntary contributions ,West and Southern Africa ,WHO (GENEVA) ,204640-104 ,"146,870.92",
DFID,DFID,06/03/2017,Aid Programme - Voluntary contributions ,West and Southern Africa ,WHO (GENEVA) ,204640-110 ,"15,259.32",
DFID,DFID,06/03/2017,Aid Programme - Voluntary contributions ,West and Southern Africa ,WHO (GENEVA) ,204640-111 ,"28,611.22",
DFID,DFID,16/03/2017,Aid Programme - Voluntary contributions ,East and Central Africa ,WHO (GENEVA) ,204929-105 ,"800,000.00",
DFID,DFID,21/03/2017,Aid Programme - Voluntary contributions ,West and Southern Africa ,WHO (GENEVA) ,205182-102 ,"1,272,689.65",
DFID,DFID,27/03/2017,Aid Programme - Voluntary contributions ,West and Southern Africa ,WHO (GENEVA) ,300036-111 ,"1,387,528.00",
DFID,DFID,27/03/2017,Aid Programme - Voluntary contributions ,West and Southern Africa ,WHO (GENEVA) ,300036-113 ,"401,068.00",
DFID,DFID,10/03/2017,Training - Course Fees ,East and Central Africa ,The World  Bank IBRD ,101612-101 ,"2,062.34",
DFID,DFID,09/03/2017,Hotels - Accommodation only ,Asia  Caribbean and Overseas Territories ,THE INDIAN HOTELS COM. LTD ,204053-101 ,"1,221.00",
DFID,DFID,17/03/2017,Project delivery costs – supplier services ,Middle East and North Africa Division ,CHEMONICS ,205048-101 ,"321,107.00",
DFID,DFID,02/03/2017,Project delivery costs – supplier services ,Middle East and North Africa Division ,CHEMONICS ,205048-101 ,"385,429.00",
DFID,DFID,29/03/2017,Project delivery costs – supplier services ,Research and Evidence Division ,Action Against Hunger UK (ACF-UK) ,203705-130 ,"123,402.00",
DFID,DFID,17/03/2017,Aid Programme - Voluntary contributions ,Conflict  Humanitarian  Security & Stabilisation Division ,IOM ,300264-102 ,"2,500,000.00",
DFID,DFID,14/03/2017,Aid Programme - Accountable Grant Payments ,West and Southern Africa ,SEARCH FOR COMMON GROUND ,202416-114 ,"798,863.00",
DFID,DFID,23/03/2017,Project delivery costs – supplier services ,Asia  Caribbean and Overseas Territories ,BMB MOTT  MACDONALD ,107480-101 ,"158,168.88",
DFID,DFID,07/03/2017,Project delivery costs – supplier services ,Asia  Caribbean and Overseas Territories ,BMB MOTT  MACDONALD ,107480-101 ,"60,253.99",
DFID,DFID,07/03/2017,Project delivery costs – supplier services ,Asia  Caribbean and Overseas Territories ,BMB MOTT  MACDONALD ,107480-101 ,"165,267.37",
DFID,DFID,14/03/2017,Project delivery costs – supplier services ,Asia  Caribbean and Overseas Territories ,IPE Global Ltd. ,114040-101 ,"34,965.76",
DFID,DFID,14/03/2017,Project delivery costs – supplier services ,Asia  Caribbean and Overseas Territories ,IPE Global Ltd. ,114040-101 ,"52,449.20",
DFID,DFID,14/03/2017,Project delivery costs – supplier services ,Asia  Caribbean and Overseas Territories ,IPE Global Ltd. ,114040-101 ,"52,449.20",
DFID,DFID,14/03/2017,Project delivery costs – supplier services ,Asia  Caribbean and Overseas Territories ,IPE Global Ltd. ,114040-101 ,"109,734.16",
DFID,DFID,14/03/2017,Project delivery costs – supplier services ,Asia  Caribbean and Overseas Territories ,IPE Global Ltd. ,114040-101 ,"38,295.00",
DFID,DFID,14/03/2017,Project delivery costs – supplier services ,Asia  Caribbean and Overseas Territories ,IPE Global Ltd. ,114040-101 ,"36,578.06",
DFID,DFID,10/03/2017,Project delivery costs – supplier services ,Asia  Caribbean and Overseas Territories ,IPE Global Ltd. ,202927-101 ,"5,881.10",
DFID,DFID,10/03/2017,Project delivery costs – supplier services ,Asia  Caribbean and Overseas Territories ,IPE Global Ltd. ,202927-101 ,"3,675.40",
DFID,DFID,09/03/2017,Project delivery costs – supplier services ,West and Southern Africa ,IPE Global Ltd. ,203164-102 ,"246,321.00",
DFID,DFID,08/03/2017,Project delivery costs – supplier services ,West and Southern Africa ,IPE Global Ltd. ,203164-102 ,"332,784.40",
DFID,DFID,16/03/2017,Project delivery costs – supplier services ,Asia  Caribbean and Overseas Territories ,IPE Global Ltd. ,204623-113 ,"18,806.00",
DFID,DFID,15/03/2017,Project delivery costs – supplier services ,Asia  Caribbean and Overseas Territories ,IPE Global Ltd. ,204623-113 ,"94,029.00",
DFID,DFID,01/03/2017,Project delivery costs – supplier services ,Asia  Caribbean and Overseas Territories ,IPE Global Ltd. ,204794-103 ,"42,561.50",
DFID,DFID,10/03/2017,Project delivery costs – supplier services ,Asia  Caribbean and Overseas Territories ,IPE Global Ltd. ,204825-106 ,"13,783.44",
DFID,DFID,03/03/2017,Aid Programme - Accountable Grant Payments ,Economic Development Division ,Transparency International Secr ,204252-124 ,"24,355.18",
DFID,DFID,24/03/2017,Aid Programme - Humanitarian Material Relief Assistance and Services ,East and Central Africa ,THE INTERNATIONAL COMMITTEE OF THE RED CROSS (ICRC) ,203462-108 ,"7,000,000.00",
DFID,DFID,29/03/2017,Aid Programme - Voluntary contributions ,West and Southern Africa ,THE INTERNATIONAL COMMITTEE OF THE RED CROSS (ICRC) ,205161-102 ,"9,000,000.00",
DFID,DFID,23/03/2017,Aid Programme - Humanitarian Material Relief Assistance and Services ,East and Central Africa ,THE INTERNATIONAL COMMITTEE OF THE RED CROSS (ICRC) ,300270-102 ,"1,000,000.00",
DFID,DFID,17/03/2017,Aid Programme - Accountable Grant Payments ,East and Central Africa ,MEDAIR ,204019-126 ,"538,092.00",
DFID,DFID,06/03/2017,Aid Programme - Accountable Grant Payments ,West and Southern Africa ,The Carter Center ,105844-107 ,"65,690.00",
DFID,DFID,29/03/2017,Aid Programme - Accountable Grant Payments ,Conflict  Humanitarian  Security & Stabilisation Division ,Internews Europe ,300334-101 ,"134,251.42",
DFID,DFID,29/03/2017,Aid Programme - Accountable Grant Payments ,Middle East and North Africa Division ,Supplier Name withheld ,300089-101 ,"2,719,162.00",
DFID,DFID,02/03/2017,Aid Programme - Accountable Grant Payments ,East and Central Africa ,INTERNATIONAL RESCUE COMMITTEE ,300280-108 ,"179,624.00",
DFID,DFID,30/03/2017,Aid Programme - Core contributions ,International Relations Division ,United Nations General Trust Fund Account ,300322-106 ,"250,000.00",
DFID,DFID,01/03/2017,Aid Programme - Accountable Grant Payments ,East and Central Africa ,Crown Agents Bank ,202619-101 ,"198,706.00",
DFID,DFID,24/03/2017,Aid Programme - Core contributions ,Research and Evidence Division ,Medicines for Malaria Venture ,204066-103 ,"1,510,000.00",
DFID,DFID,24/03/2017,Aid Programme - Core contributions ,Research and Evidence Division ,Medicines for Malaria Venture ,204066-103 ,"256,895.00",
DFID,DFID,30/03/2017,Aid Programme - Core contributions ,Research and Evidence Division ,Medicines for Malaria Venture ,204066-103 ,"10,000.00",
DFID,DFID,30/03/2017,Aid Programme - Core contributions ,Research and Evidence Division ,Medicines for Malaria Venture ,204066-103 ,"1,990,000.00",
DFID,DFID,13/03/2017,Aid Programme - Strategic Grant Arrangement payments ,Research and Evidence Division ,WELLCOME TRUST ,204571-110 ,"3,500,000.00",
DFID,DFID,24/03/2017,Project delivery costs – supplier services ,West and Southern Africa ,United Nassar Motors ,203878-103 ,"1,800.91",
DFID,DFID,09/03/2017,Project delivery costs – supplier services ,Research and Evidence Division ,ECORYS UK Ltd. ,203778-109 ,"332,343.57",
DFID,DFID,28/03/2017,Hotels - Accommodation only ,East and Central Africa ,Southern Sun Hotels(T) Ltd (USD) ,101634-101 ,736.89,
DFID,DFID,13/03/2017,Aid Programme - Joint programme contribution ,Research and Evidence Division ,Engineering & Physical Sciences Research Council ,203781-106 ,"227,837.14",
DFID,DFID,03/03/2017,Conferences  Seminars & Meeting/Event Resource ,Finance and Corporate Performance Division ,Capita Business Serivces Ltd ,100201-101 ,"1,591.47",
DFID,DFID,14/03/2017,Project delivery costs – supplier services ,Business Solutions Division Level ,Capita Business Serivces Ltd ,200001-101 ,"6,726.00",
DFID,DFID,21/03/2017,Aid Programme - Accountable Grant Payments ,Economic Development Division , WORLD RESOURCES INSTITUTE ,204949-101 ,"254,069.00",
DFID,DFID,21/03/2017,Aid Programme - Accountable Grant Payments ,Economic Development Division , WORLD RESOURCES INSTITUTE ,204949-101 ,"396,158.00",
DFID,DFID,10/03/2017,Project delivery costs – supplier services ,East and Central Africa ,BMB  MOTT  MACDONALD ,202511-102 ,"608,601.48",
DFID,DFID,10/03/2017,Project delivery costs – supplier services ,East and Central Africa ,BMB  MOTT  MACDONALD ,202511-102 ,"133,777.42",
DFID,DFID,22/03/2017,Project delivery costs – supplier services ,West and Southern Africa ,BMB  MOTT  MACDONALD ,204242-102 ,"262,887.00",
DFID,DFID,28/03/2017,Project delivery costs – supplier services ,West and Southern Africa ,BMB  MOTT  MACDONALD ,204242-102 ,"108,589.40",
DFID,DFID,22/03/2017,Aid Programme - Strategic Grant Arrangement payments ,Asia  Caribbean and Overseas Territories ,International Water Management Institute (IWMI) ,202775-111 ,"118,162.00",
DFID,DFID,21/03/2017,Aid Programme - Accountable Grant Payments ,Research and Evidence Division ,International Center for Research on Women (ICRW) ,203199-111 ,"4,728.89",
DFID,DFID,21/03/2017,Aid Programme - Accountable Grant Payments ,Research and Evidence Division ,International Center for Research on Women (ICRW) ,203199-104 ,"4,728.89",
DFID,DFID,17/03/2017,Research and development costs - supplier services ,Research and Evidence Division ,ECDPM GBP ,204570-107 ,"6,520.00",
DFID,DFID,29/03/2017,Fund monies to be managed and dispersed by the supplier ,Research and Evidence Division ,CARDNO EMERGING MARKETS (UK) LTD ,203048-105 ,"271,213.06",
DFID,DFID,29/03/2017,Fund monies to be managed and dispersed by the supplier ,Research and Evidence Division ,CARDNO EMERGING MARKETS (UK) LTD ,203048-106 ,"51,018.12",
DFID,DFID,29/03/2017,Research and development costs - supplier services ,Research and Evidence Division ,CARDNO EMERGING MARKETS (UK) LTD ,203048-107 ,"40,765.50",
DFID,DFID,29/03/2017,Research and development costs - supplier services ,Research and Evidence Division ,CARDNO EMERGING MARKETS (UK) LTD ,203048-107 ,"81,877.50",
DFID,DFID,29/03/2017,Research and development costs - supplier services ,Research and Evidence Division ,CARDNO EMERGING MARKETS (UK) LTD ,203048-107 ,"109,170.00",
DFID,DFID,14/03/2017,Aid Programme - Accountable Grant Payments ,Research and Evidence Division ,International Initiative for Impact Evaluation(3ie) ,200135-106 ,"107,325.00",
DFID,DFID,23/03/2017,Aid Programme - Accountable Grant Payments ,Research and Evidence Division ,International Initiative for Impact Evaluation(3ie) ,200135-107 ,"422,015.00",
DFID,DFID,14/03/2017,Aid Programme - Accountable Grant Payments ,Research and Evidence Division ,International Initiative for Impact Evaluation(3ie) ,200135-108 ,"569,845.00",
DFID,DFID,23/03/2017,Aid Programme - Accountable Grant Payments ,Research and Evidence Division ,International Initiative for Impact Evaluation(3ie) ,200135-109 ,"90,947.00",
DFID,DFID,01/03/2017,Aid Programme - Accountable Grant Payments ,East and Central Africa ,International Initiative for Impact Evaluation(3ie) ,200795-109 ,"375,653.00",
DFID,DFID,23/03/2017,Aid Programme - Accountable Grant Payments ,East and Central Africa ,International Initiative for Impact Evaluation(3ie) ,203308-109 ,"494,411.00",
DFID,DFID,21/03/2017,Aid Programme - Accountable Grant Payments ,Research and Evidence Division ,International Initiative for Impact Evaluation(3ie) ,203705-126 ,"68,236.00",
DFID,DFID,06/03/2017,Project delivery costs – supplier services ,Middle East and North Africa Division ,ADAM SMITH INTERNATIONAL ,202241-103 ,"87,074.39",
DFID,DFID,29/03/2017,Aid Programme - Accountable Grant Payments ,Asia  Caribbean and Overseas Territories ,NATIONAL DEMOCRATIC INSTITUTE (NDI) ,204613-102 ,"49,250.00",
DFID,DFID,09/03/2017,Aid Programme - Core contributions ,Research and Evidence Division ,Asian Vegetable Research and Development Center (AVRDC) ,205271-102 ,"500,000.00",
DFID,DFID,31/03/2017,Aid Programme - Accountable Grant Payments ,Economic Development Division ,INTERNATIONAL INSTITUTE FOR SUSTAINABLE DEVELOPMENT ,203525-101 ,"173,693.00",
DFID,DFID,31/03/2017,Aid Programme - Accountable Grant Payments ,Economic Development Division ,INTERNATIONAL INSTITUTE FOR SUSTAINABLE DEVELOPMENT ,203525-101 ,"254,202.00",
DFID,DFID,22/03/2017,Project delivery costs – supplier services ,Asia  Caribbean and Overseas Territories ,RURAL RECONSTRUCTION NEPAL ,203764-104 ,"619,829.00",
DFID,DFID,22/03/2017,Project delivery costs – supplier services ,Asia  Caribbean and Overseas Territories ,RURAL RECONSTRUCTION NEPAL ,203764-110 ,"647,982.00",
DFID,DFID,21/03/2017,Training - Travel & Subsistence ,Asia  Caribbean and Overseas Territories ,BONDS TRAVEL BUREAU ,101624-101 ,807.21,
DFID,DFID,06/03/2017,Training - Travel & Subsistence ,Asia  Caribbean and Overseas Territories ,BONDS TRAVEL BUREAU ,101624-101 ,832.88,
DFID,DFID,13/03/2017,Training - Travel & Subsistence ,Asia  Caribbean and Overseas Territories ,BONDS TRAVEL BUREAU ,101624-101 ,749.66,
DFID,DFID,21/03/2017,Air fares ,Asia  Caribbean and Overseas Territories ,BONDS TRAVEL BUREAU ,101624-101 ,"6,255.85",
DFID,DFID,07/03/2017,Air fares ,Asia  Caribbean and Overseas Territories ,BONDS TRAVEL BUREAU ,101624-101 ,671.30,
DFID,DFID,03/03/2017,Conferences  Seminars & Meeting/Event Resource ,Asia  Caribbean and Overseas Territories ,ISLAMABAD MARRIOTT HOTEL ,204024-106 ,"1,278.70",
DFID,DFID,15/03/2017,Data Network - land lines ,Business Solutions Division Level ,NAYATEL (PVT) LTD ,200002-121 ,738.37,
DFID,DFID,15/03/2017,Data Network - land lines ,Business Solutions Division Level ,NAYATEL (PVT) LTD ,203329-102 ,738.37,
DFID,DFID,21/03/2017,Hotels - Accommodation only ,Asia  Caribbean and Overseas Territories ,Supplier Name withheld ,101624-101 ,747.51,
DFID,DFID,22/03/2017,Hotels - Accommodation only ,Asia  Caribbean and Overseas Territories ,Supplier Name withheld ,101624-101 ,"10,413.78",
DFID,DFID,06/03/2017,Hotels - Accommodation only ,Asia  Caribbean and Overseas Territories ,Supplier Name withheld ,101624-101 ,746.07,
DFID,DFID,20/03/2017,Hotels - Accommodation only ,Asia  Caribbean and Overseas Territories ,Supplier Name withheld ,101624-101 ,"1,248.88",
DFID,DFID,20/03/2017,Hotels - Accommodation only ,Asia  Caribbean and Overseas Territories ,Supplier Name withheld ,101624-101 ,"1,137.08",
DFID,DFID,20/03/2017,Hotels - Accommodation only ,Asia  Caribbean and Overseas Territories ,TOURISM PROMOTION SERVICES / FSH ,101624-101 ,500.06,
DFID,DFID,27/03/2017,Aid Programme - Accountable Grant Payments ,Asia  Caribbean and Overseas Territories ,Supplier Name withheld ,300175-101 ,"198,079.94",
DFID,DFID,27/03/2017,Aid Programme - Accountable Grant Payments ,Asia  Caribbean and Overseas Territories ,Supplier Name withheld ,300175-102 ,"14,151.62",
DFID,DFID,29/03/2017,Project delivery costs – supplier services ,West and Southern Africa ,McKinsey & Co  Inc UK ,205189-102 ,"3,089,232.00",
DFID,DFID,01/03/2017,Aid Programme - Accountable Grant Payments ,Research and Evidence Division ,Practical Action (GBP) ,204343-106 ,"76,811.00",
DFID,DFID,20/03/2017,Aid Programme - Core contributions ,Research and Evidence Division ,The Global Alliance for TB Drug Development ,204086-103 ,"2,000,000.00",
DFID,DFID,21/03/2017,Training Providers/Facilitation Services ,Business Solutions Division Level ,QA Limited ,200001-101 ,"3,867.50",
DFID,DFID,17/03/2017,Training Providers/Facilitation Services ,Business Solutions Division Level ,QA Limited ,200001-101 ,"3,867.50",
DFID,DFID,17/03/2017,Training Providers/Facilitation Services ,Business Solutions Division Level ,QA Limited ,200001-101 ,"3,867.50",
DFID,DFID,20/03/2017,Project delivery costs – supplier services ,Asia  Caribbean and Overseas Territories ,Futures Group Europe ,202488-105 ,"401,862.72",
DFID,DFID,24/03/2017,Project delivery costs – supplier services ,East and Central Africa ,Futures Group Europe ,202547-102 ,"154,022.24",
DFID,DFID,24/03/2017,Project delivery costs – supplier services ,West and Southern Africa ,Futures Group Europe ,202992-101 ,"1,412,855.00",
DFID,DFID,28/03/2017,Project delivery costs – supplier services ,West and Southern Africa ,Futures Group Europe ,202992-101 ,"277,354.08",
DFID,DFID,16/03/2017,Project delivery costs – supplier services ,West and Southern Africa ,Futures Group Europe ,202992-101 ,"829,788.00",
DFID,DFID,28/03/2017,Project delivery costs – supplier services ,West and Southern Africa ,Futures Group Europe ,202992-101 ,"580,264.00",
DFID,DFID,14/03/2017,Aid Programme - Trust Funds contributions ,Policy Division ,International Monetary Fund (GBP) ,300292-111 ,"500,000.00",
DFID,DFID,09/03/2017,Hotels - Accommodation only ,West and Southern Africa ,Marga Van de Water ,101618-101 ,"3,179.03",
DFID,DFID,02/03/2017,Repairs  Maint  Alter - Property & Constrct. Services ,Group Operations ,Interserve Facilities Management Limited ,100161-101 ,"29,498.69",Monthly onsite maintenance charges for DFID East Kilbride HQ for January 2017
DFID,DFID,17/03/2017,Recruitment costs ,Human Resources ,HM REVENUE AND CUSTOMS Acc ,100269-117 ,"17,600.00",
DFID,DFID,17/03/2017,Recruitment costs ,Human Resources ,HM REVENUE AND CUSTOMS Acc ,100269-109 ,"20,000.00",
DFID,DFID,13/03/2017,Aid Programme - Programme Contribution ,West and Southern Africa ,The World Bank (EFO) ,202455-108 ,"60,245.00",
DFID,DFID,16/03/2017,Aid Programme - Voluntary contributions ,Policy Division ,The World Bank (EFO) ,300292-110 ,"250,000.00",
DFID,DFID,02/03/2017,Aid Programme - Voluntary contributions ,Policy Division ,The World Bank (EFO) ,300292-116 ,"100,000.00",
DFID,DFID,22/03/2017,Auditors Remuneration & Expenses - Cash ,West and Southern Africa ,Baker Tilly Nigeria ,201433-104 ,"12,739.28",
DFID,DFID,29/03/2017,Auditors Assurance Service ,West and Southern Africa ,Baker Tilly Nigeria ,202992-103 ,"7,132.11",
DFID,DFID,22/03/2017,Auditors Remuneration & Expenses - Cash ,West and Southern Africa ,Baker Tilly Nigeria ,203674-102 ,"11,584.01",
DFID,DFID,28/03/2017,Further Education costs ,Research and Evidence Division ,The Centre for Development  Environment and Policy ,202392-102 ,"2,100.00",
DFID,DFID,15/03/2017,Hotels - Accommodation only ,Asia  Caribbean and Overseas Territories ,Supplier Name withheld ,101624-101 ,818.04,
DFID,DFID,15/03/2017,Hotels - Accommodation only ,Asia  Caribbean and Overseas Territories ,Supplier Name withheld ,101624-101 ,"1,090.72",
DFID,DFID,21/03/2017,Hotels - Accommodation only ,Asia  Caribbean and Overseas Territories ,Supplier Name withheld ,101624-101 ,"1,473.40",
DFID,DFID,31/03/2017,Office Equipment - Purchases,Group Operations ,Senator International  ,203716-101 ,"2,938.56",
DFID,DFID,23/03/2017,Office Equipment - Purchases,Group Operations ,Senator International  ,203717-101 ,"6,024.00",
DFID,DFID,06/03/2017,Aid Programme - Accountable Grant Payments ,Policy Division ,IIED  ,202834-101 ,"1,642,928.29",
DFID,DFID,29/03/2017,Air fares ,East and Central Africa ,Bon Voyage Travel Centre Ltd(USD) ,101634-101 ,944.22,
DFID,DFID,15/03/2017,Air fares ,East and Central Africa ,Bon Voyage Travel Centre Ltd(USD) ,101634-101 ,846.34,
DFID,DFID,21/03/2017,Air fares ,East and Central Africa ,Bon Voyage Travel Centre Ltd(USD) ,101634-101 ,719.13,
DFID,DFID,29/03/2017,Air fares ,East and Central Africa ,Bon Voyage Travel Centre Ltd(USD) ,101634-101 ,576.10,
DFID,DFID,23/03/2017,Hotels - Accommodation only ,East and Central Africa ,Bon Voyage Travel Centre Ltd(USD) ,101634-101 ,"1,289.45",
DFID,DFID,23/03/2017,Air fares ,East and Central Africa ,Bon Voyage Travel Centre Ltd(USD) ,101634-101 ,"2,109.50",
DFID,DFID,27/03/2017,Air fares ,East and Central Africa ,Bon Voyage Travel Centre Ltd(USD) ,101634-101 ,"1,507.62",
DFID,DFID,14/03/2017,Air fares ,East and Central Africa ,Bon Voyage Travel Centre Ltd(USD) ,202901-102 ,743.63,
DFID,DFID,23/03/2017,Air fares ,East and Central Africa ,Bon Voyage Travel Centre Ltd(USD) ,204334-102 ,"1,755.23",
DFID,DFID,07/03/2017,Research and development costs - supplier services ,Research and Evidence Division ,Tim Leyland ,300361-102 ,"2,543.30",
DFID,DFID,23/03/2017,Aid Programme - Joint programme contribution ,Asia  Caribbean and Overseas Territories ,International Monetary Fund (AFG) ,204176-103 ,"348,360.66",
DFID,DFID,31/03/2017,Aid Programme - Core contributions ,Research and Evidence Division ,The Foundation for Innovative Diagnostics (FIND) ,204074-103 ,"1,700,000.00",
DFID,DFID,10/03/2017,Legal costs ,Policy Division ,Department of Energy and Climate Change (DECC) ,201733-114 ,"3,300.00",
DFID,DFID,29/03/2017,Project delivery costs – supplier services ,West and Southern Africa ,Landell Mills Ltd ,203824-105 ,"81,736.30",
DFID,DFID,03/03/2017,Aid Programme - Accountable Grant Payments ,Policy Division ,Program for Appropriate Technology in Health ,203663-101 ,"282,306.35",
DFID,DFID,21/03/2017,Training Providers/Facilitation Services ,Asia  Caribbean and Overseas Territories ,NSET ,101621-101 ,602.61,
DFID,DFID,14/03/2017,Aid Programme - Voluntary contributions ,West and Southern Africa ,OHCHR ,202416-116 ,"333,334.00",
DFID,DFID,31/03/2017,Aid Programme - Trust Funds contributions ,Policy Division ,United Nations Environment Programme (UNEP) ,201733-113 ,"2,101,000.00",
DFID,DFID,21/03/2017,Aid Programme - Core contributions ,Economic Development Division ,SG HAMBROS BANK & TRUST LTD (USD) ,203232-101 ,"736,140.00",
DFID,DFID,20/03/2017,Aid Programme - Core contributions ,Economic Development Division ,SG HAMBROS BANK & TRUST LTD (USD) ,203232-101 ,"66,106.52",
DFID,DFID,24/03/2017,Aid Programme - Voluntary contributions ,East and Central Africa ,United Nations Office on Drugs and Crime (UNODC) ,205091-101 ,"320,000.00",
DFID,DFID,14/03/2017,Encashment of Promissory Notes ,Global Funds ,The Global Fund to Fight AIDS  Tuberculosis and Malaria ,204389-103 ,"100,000,000.00",
DFID,DFID,21/03/2017,Aid Programme - Accountable Grant Payments ,Middle East and North Africa Division ,DANISH REFUGEE COUNCIL ,300086-101 ,"948,405.96",
DFID,DFID,30/03/2017,Project delivery costs – supplier services ,West and Southern Africa ,DANISH REFUGEE COUNCIL ,300298-107 ,"15,553.51",
DFID,DFID,30/03/2017,Project delivery costs – supplier services ,West and Southern Africa ,DANISH REFUGEE COUNCIL ,300298-107 ,"21,428.39",
DFID,DFID,23/03/2017,Project delivery costs – supplier services ,Asia  Caribbean and Overseas Territories ,SIDBI MUMBAI ,114293-103 ,"31,071.24",
DFID,DFID,23/03/2017,Project delivery costs – supplier services ,Asia  Caribbean and Overseas Territories ,SIDBI MUMBAI ,114293-103 ,"34,639.14",
DFID,DFID,23/03/2017,Project delivery costs – supplier services ,Asia  Caribbean and Overseas Territories ,SIDBI MUMBAI ,114293-103 ,"39,388.91",
DFID,DFID,20/03/2017,Hotels - Accommodation only ,East and Central Africa ,DOUBLE TREE by Hilton ,101634-101 ,531.83,
DFID,DFID,22/03/2017,Conferences  Seminars & Meeting/Event Resource ,East and Central Africa ,DOUBLE TREE by Hilton ,101634-101 ,"1,008.02",
DFID,DFID,14/03/2017,Hotels - Accommodation only ,Research and Evidence Division ,Doubletree by Hilton Dar es Salaam ,203874-103 ,678.72,
DFID,DFID,28/03/2017,Hotels - Accommodation only ,Research and Evidence Division ,Doubletree by Hilton Dar es Salaam ,203874-103 ,868.87,
DFID,DFID,30/03/2017,Office Equipment - Purchases ,Group Operations ,Sitelink Communications Ltd ,203716-101 ,"2,304.00",
DFID,DFID,10/03/2017,Aid Programme - Accountable Grant Payments ,Global Funds ,Clinton Health Access Initiative ,202575-102 ,"1,061,620.00",
DFID,DFID,24/03/2017,Aid Programme - Accountable Grant Payments ,West and Southern Africa ,Clinton Health Access Initiative ,202722-109 ,"258,290.78",
DFID,DFID,24/03/2017,Aid Programme - Accountable Grant Payments ,West and Southern Africa ,Clinton Health Access Initiative ,202722-109 ,"29,463.94",
DFID,DFID,24/03/2017,Aid Programme - Accountable Grant Payments ,West and Southern Africa ,Clinton Health Access Initiative ,202722-109 ,"341,179.18",
DFID,DFID,17/03/2017,Aid Programme - Accountable Grant Payments ,West and Southern Africa ,Clinton Health Access Initiative ,203543-104 ,"148,224.01",
DFID,DFID,17/03/2017,Aid Programme - Accountable Grant Payments ,West and Southern Africa ,Clinton Health Access Initiative ,203543-104 ,"30,596.50",
DFID,DFID,16/03/2017,Aid Programme - Accountable Grant Payments ,Research and Evidence Division ,Clinton Health Access Initiative ,205105-102 ,"207,820.00",
DFID,DFID,24/03/2017,Aid Programme - Accountable Grant Payments ,West and Southern Africa ,Action Against Hunger - USA ,202909-106 ,"96,779.14",
DFID,DFID,21/03/2017,Project delivery costs – supplier services ,Asia  Caribbean and Overseas Territories ,The Asia Foundation (GBP) ,202775-109 ,"444,518.00",
DFID,DFID,21/03/2017,Aid Programme - Accountable Grant Payments ,Asia  Caribbean and Overseas Territories ,The Asia Foundation (GBP) ,203385-103 ,"169,602.00",
DFID,DFID,24/03/2017,Aid Programme - Accountable Grant Payments ,Asia  Caribbean and Overseas Territories ,The Asia Foundation (GBP) ,204623-101 ,"158,278.00",
DFID,DFID,21/03/2017,Project delivery costs – supplier services ,Asia  Caribbean and Overseas Territories ,Pricewaterhousecoopers Pvt. Ltd. ,202765-111 ,"16,956.27",
DFID,DFID,22/03/2017,Aid Programme - Accountable Grant Payments ,Asia  Caribbean and Overseas Territories ,OBSERVER RESEARCH FOUNDATION ,202765-105 ,"23,919.05",
DFID,DFID,23/03/2017,Aid Programme - Accountable Grant Payments ,West and Southern Africa ,NATIONAL DEMOCTRATIC INSTITUTE ,203567-103 ,"62,779.00",
DFID,DFID,23/03/2017,Aid Programme - Accountable Grant Payments ,East and Central Africa ,Norwegian Refugee Council ,203462-102 ,"4,319,149.23",
DFID,DFID,20/03/2017,Aid Programme - Accountable Grant Payments ,Asia  Caribbean and Overseas Territories ,Supplier Name withheld ,203904-108 ,"1,152,426.67",
DFID,DFID,16/03/2017,Aid Programme - Humanitarian Material Relief Assistance and Services ,Conflict  Humanitarian  Security & Stabilisation Division ,Norwegian Refugee Council ,204610-102 ,"231,919.00",
DFID,DFID,16/03/2017,Project delivery costs – supplier services ,East and Central Africa ,Norwegian Refugee Council ,204852-109 ,"25,235.49",
DFID,DFID,08/03/2017,Aid Programme - Accountable Grant Payments ,Research and Evidence Division ,University of Edinburgh - Research Into Results Ltd ,203665-103 ,"58,609.00",
DFID,DFID,15/03/2017,Aid Programme - Accountable Grant Payments ,Research and Evidence Division ,University of Edinburgh - Research Into Results Ltd ,203665-103 ,"25,000.00",
DFID,DFID,31/03/2017,Research and development costs - supplier services ,Research and Evidence Division ,University of Edinburgh - Research Into Results Ltd ,204326-102 ,"409,079.05",
DFID,DFID,13/03/2017,Further Education costs ,West and Southern Africa ,Association of Certified Fraud Examiners ,101637-101 ,902.47,
DFID,DFID,22/03/2017,Air fares ,Asia  Caribbean and Overseas Territories ,Gerry's Travel Agency Private Limited ,101624-101 ,981.96,
DFID,DFID,15/03/2017,Training - Travel & Subsistence ,Asia  Caribbean and Overseas Territories ,Gerry's Travel Agency Private Limited ,101624-101 ,"3,416.34",
DFID,DFID,16/03/2017,Aid Programme - Voluntary contributions ,Middle East and North Africa Division ,THE WORLD BANK ,300307-102 ,"198,000.00",
DFID,DFID,17/03/2017,Aid Programme - Voluntary contributions ,Middle East and North Africa Division ,THE WORLD BANK ,300307-102 ,"100,000.00",
DFID,DFID,27/03/2017,Aid Programme - Accountable Grant Payments ,East and Central Africa ,AgDevCo ,204012-102 ,"226,185.00",
DFID,DFID,27/03/2017,Aid Programme - Accountable Grant Payments ,West and Southern Africa ,AgDevCo ,204270-126 ,"28,000.00",
DFID,DFID,27/03/2017,Aid Programme - Accountable Grant Payments ,West and Southern Africa ,AgDevCo ,204270-128 ,"42,000.00",
DFID,DFID,27/03/2017,Aid Programme - Accountable Grant Payments ,West and Southern Africa ,AgDevCo ,204270-117 ,"86,230.00",
DFID,DFID,27/03/2017,Aid Programme - Accountable Grant Payments ,West and Southern Africa ,AgDevCo ,204270-109 ,"57,487.00",
DFID,DFID,27/03/2017,Aid Programme - Accountable Grant Payments ,West and Southern Africa ,AgDevCo ,204270-111 ,"71,553.20",
DFID,DFID,27/03/2017,Aid Programme - Accountable Grant Payments ,West and Southern Africa ,AgDevCo ,204270-120 ,"107,329.80",
DFID,DFID,27/03/2017,Aid Programme - Accountable Grant Payments ,East and Central Africa ,AgDevCo ,204270-118 ,"59,091.00",
DFID,DFID,27/03/2017,Aid Programme - Accountable Grant Payments ,East and Central Africa ,AgDevCo ,204270-108 ,"39,394.00",
DFID,DFID,27/03/2017,Aid Programme - Accountable Grant Payments ,East and Central Africa ,AgDevCo ,204270-110 ,"305,510.80",
DFID,DFID,27/03/2017,Aid Programme - Accountable Grant Payments ,East and Central Africa ,AgDevCo ,204270-119 ,"458,266.20",
DFID,DFID,27/03/2017,Aid Programme - Accountable Grant Payments ,East and Central Africa ,AgDevCo ,204940-107 ,"112,500.00",
DFID,DFID,27/03/2017,Project delivery costs – supplier services ,Policy Division ,Triple Line Consulting ,205210-102 ,"1,857.50",
DFID,DFID,22/03/2017,Project delivery costs – supplier services ,Research and Evidence Division ,IMC Worldwide Ltd. ,201879-104 ,"299,901.60",
DFID,DFID,22/03/2017,Project delivery costs – supplier services ,Research and Evidence Division ,IMC Worldwide Ltd. ,201879-104 ,"236,967.00",
DFID,DFID,22/03/2017,Project delivery costs – supplier services ,Research and Evidence Division ,IMC Worldwide Ltd. ,201879-106 ,"73,849.00",
DFID,DFID,22/03/2017,Project delivery costs – supplier services ,Research and Evidence Division ,IMC Worldwide Ltd. ,201879-106 ,"25,843.20",
DFID,DFID,13/03/2017,Project delivery costs – supplier services ,Asia  Caribbean and Overseas Territories ,IMC Worldwide Ltd. ,202328-106 ,"13,511.08",
DFID,DFID,09/03/2017,Project delivery costs – supplier services ,Asia  Caribbean and Overseas Territories ,IMC Worldwide Ltd. ,202328-106 ,"1,214,932.00",
DFID,DFID,09/03/2017,Project delivery costs – supplier services ,Asia  Caribbean and Overseas Territories ,IMC Worldwide Ltd. ,202328-107 ,"221,790.05",
DFID,DFID,20/03/2017,Project delivery costs – supplier services ,Asia  Caribbean and Overseas Territories ,IMC Worldwide Ltd. ,202328-107 ,"320,000.00",
DFID,DFID,27/03/2017,Project delivery costs – supplier services ,Asia  Caribbean and Overseas Territories ,IMC Worldwide Ltd. ,202328-107 ,"71,340.34",
DFID,DFID,09/03/2017,Project delivery costs – supplier services ,Policy Division ,IMC Worldwide Ltd. ,202628-102 ,"18,720.00",
DFID,DFID,09/03/2017,Project delivery costs – supplier services ,Asia  Caribbean and Overseas Territories ,IMC Worldwide Ltd. ,202697-104 ,"226,356.28",
DFID,DFID,13/03/2017,Project delivery costs – supplier services ,Asia  Caribbean and Overseas Territories ,IMC Worldwide Ltd. ,202697-104 ,"27,815.08",
DFID,DFID,27/03/2017,Project delivery costs – supplier services ,Asia  Caribbean and Overseas Territories ,IMC Worldwide Ltd. ,202697-104 ,"2,118,508.07",
DFID,DFID,20/03/2017,Project delivery costs – supplier services ,Asia  Caribbean and Overseas Territories ,IMC Worldwide Ltd. ,202697-111 ,"230,000.00",
DFID,DFID,09/03/2017,Project delivery costs – supplier services ,Asia  Caribbean and Overseas Territories ,IMC Worldwide Ltd. ,202697-111 ,"179,065.38",
DFID,DFID,27/03/2017,Project delivery costs – supplier services ,Asia  Caribbean and Overseas Territories ,IMC Worldwide Ltd. ,202697-111 ,"258,606.59",
DFID,DFID,09/03/2017,Project delivery costs – supplier services ,Asia  Caribbean and Overseas Territories ,IMC Worldwide Ltd. ,202697-112 ,"255,999.00",
DFID,DFID,29/03/2017,Project delivery costs – supplier services ,Asia  Caribbean and Overseas Territories ,IMC Worldwide Ltd. ,202927-110 ,"338,645.00",
DFID,DFID,08/03/2017,Project delivery costs – supplier services ,Asia  Caribbean and Overseas Territories ,IMC Worldwide Ltd. ,203186-103 ,"149,530.96",
DFID,DFID,08/03/2017,Project delivery costs – supplier services ,Asia  Caribbean and Overseas Territories ,IMC Worldwide Ltd. ,203186-110 ,"457,334.23",
DFID,DFID,08/03/2017,Project delivery costs – supplier services ,Asia  Caribbean and Overseas Territories ,IMC Worldwide Ltd. ,203186-110 ,"251,865.96",
DFID,DFID,09/03/2017,Project delivery costs – supplier services ,Policy Division ,IMC Worldwide Ltd. ,203516-101 ,"152,638.50",
DFID,DFID,29/03/2017,Project delivery costs – supplier services ,Policy Division ,IMC Worldwide Ltd. ,203516-101 ,"55,912.20",
DFID,DFID,16/03/2017,Project delivery costs – supplier services ,West and Southern Africa ,IMC Worldwide Ltd. ,204643-104 ,"95,104.42",
DFID,DFID,17/03/2017,Project delivery costs – supplier services ,Research and Evidence Division ,IMC Worldwide Ltd. ,204806-106 ,"9,919.20",
DFID,DFID,16/03/2017,Project delivery costs – supplier services ,Asia  Caribbean and Overseas Territories ,DAI Europe ,114433-102 ,"685,779.51",
DFID,DFID,28/03/2017,Fund monies to be managed and dispersed by the supplier ,Middle East and North Africa Division ,DAI Europe ,201828-101 ,"268,456.47",
DFID,DFID,24/03/2017,Project delivery costs – supplier services ,West and Southern Africa ,DAI Europe ,201980-102 ,"122,084.21",
DFID,DFID,24/03/2017,Project delivery costs – supplier services ,West and Southern Africa ,DAI Europe ,201980-102 ,"19,171.49",
DFID,DFID,03/03/2017,Project delivery costs – supplier services ,West and Southern Africa ,DAI Europe ,201980-102 ,"189,228.23",
DFID,DFID,24/03/2017,Project delivery costs – supplier services ,West and Southern Africa ,DAI Europe ,202476-103 ,"317,313.41",
DFID,DFID,03/03/2017,Project delivery costs – supplier services ,East and Central Africa ,DAI Europe ,202580-102 ,"609,162.68",
DFID,DFID,29/03/2017,Project delivery costs – supplier services ,East and Central Africa ,DAI Europe ,202596-105 ,"50,935.00",
DFID,DFID,28/03/2017,Project delivery costs – supplier services ,East and Central Africa ,DAI Europe ,202596-105 ,"215,000.00",
DFID,DFID,28/03/2017,Project delivery costs – supplier services ,East and Central Africa ,DAI Europe ,202596-105 ,"103,678.83",
DFID,DFID,30/03/2017,Project delivery costs – supplier services ,Economic Development Division ,DAI Europe ,202817-105 ,"1,239.05",
DFID,DFID,13/03/2017,Project delivery costs – supplier services ,Asia  Caribbean and Overseas Territories ,DAI Europe ,203186-104 ,"31,209.17",
DFID,DFID,10/03/2017,Project delivery costs – supplier services ,West and Southern Africa ,DAI Europe ,203317-102 ,"57,779.61",
DFID,DFID,21/03/2017,Project delivery costs – supplier services ,West and Southern Africa ,DAI Europe ,203317-102 ,"192,377.71",
DFID,DFID,22/03/2017,Project delivery costs – supplier services ,West and Southern Africa ,DAI Europe ,203317-102 ,"336,490.17",
DFID,DFID,01/03/2017,Project delivery costs – supplier services ,West and Southern Africa ,DAI Europe ,203922-101 ,"204,283.88",
DFID,DFID,24/03/2017,Project delivery costs – supplier services ,West and Southern Africa ,DAI Europe ,203922-101 ,"294,562.39",
DFID,DFID,09/03/2017,Project delivery costs – supplier services ,East and Central Africa ,DAI Europe ,203986-105 ,"117,038.00",
DFID,DFID,09/03/2017,Project delivery costs – supplier services ,Middle East and North Africa Division ,DAI Europe ,204325-102 ,"469,285.97",
DFID,DFID,17/03/2017,Project delivery costs – supplier services ,East and Central Africa ,DAI Europe ,204437-108 ,"16,341.48",
DFID,DFID,13/03/2017,Project delivery costs – supplier services ,Asia  Caribbean and Overseas Territories ,DAI Europe ,204619-103 ,"64,168.09",
DFID,DFID,29/03/2017,Project delivery costs – supplier services ,Asia  Caribbean and Overseas Territories ,DAI Europe ,204672-102 ,"14,103.00",
DFID,DFID,29/03/2017,Project delivery costs – supplier services ,Asia  Caribbean and Overseas Territories ,DAI Europe ,204672-102 ,"64,434.71",
DFID,DFID,08/03/2017,Project delivery costs – supplier services ,West and Southern Africa ,DAI Europe ,204822-101 ,"193,391.10",
DFID,DFID,14/03/2017,Aid Programme - Accountable Grant Payments ,East and Central Africa , Catholic Relief Services ,203387-103 ,"544,971.00",
DFID,DFID,09/03/2017,Hotels - Accommodation only ,Asia  Caribbean and Overseas Territories ,Ramada Multan ,101624-101 ,769.05,
DFID,DFID,30/03/2017,Project delivery costs – supplier services ,Policy Division ,Sightsavers ,203146-103 ,"81,000.00",
DFID,DFID,14/03/2017,Aid Programme - Accountable Grant Payments ,Policy Division ,Sightsavers ,203559-156 ,"153,236.00",
DFID,DFID,01/03/2017,Aid Programme - Accountable Grant Payments ,Policy Division ,Sightsavers ,203559-156 ,"213,764.00",
DFID,DFID,01/03/2017,Aid Programme - Accountable Grant Payments ,Policy Division ,Sightsavers ,204731-103 ,"199,000.00",
DFID,DFID,21/03/2017,Project delivery costs – supplier services ,West and Southern Africa ,Abt Associates ,202342-102 ,"91,674.73",
DFID,DFID,10/03/2017,Project delivery costs – supplier services ,Asia  Caribbean and Overseas Territories ,Marie Stopes International (MSI) ,202413-104 ,"1,121,030.00",
DFID,DFID,21/03/2017,Project delivery costs – supplier services ,East and Central Africa ,Marie Stopes International (MSI) ,202549-105 ,"201,150.40",
DFID,DFID,31/03/2017,Fund monies to be managed and dispersed by the supplier ,East and Central Africa ,Marie Stopes International (MSI) ,202549-105 ,"95,588.85",
DFID,DFID,22/03/2017,Project delivery costs – supplier services ,West and Southern Africa ,Marie Stopes International (MSI) ,202721-103 ,"568,358.00",
DFID,DFID,13/03/2017,Project delivery costs – supplier services ,Policy Division ,PATH ,202676-102 ,"122,897.09",
DFID,DFID,22/03/2017,Project delivery costs – supplier services ,Policy Division ,PATH ,204954-102 ,"18,351.00",
DFID,DFID,03/03/2017,Project delivery costs – supplier services ,Policy Division ,PATH ,204954-102 ,"89,728.98",
DFID,DFID,03/03/2017,Project delivery costs – supplier services ,Policy Division ,PATH ,204954-102 ,586.62,
DFID,DFID,14/03/2017,Aid Programme - Accountable Grant Payments ,Asia  Caribbean and Overseas Territories ,DKT International ,202413-106 ,"507,194.79",
DFID,DFID,15/03/2017,Research and development costs - supplier services ,Research and Evidence Division ,WYG International ,204563-104 ,"131,019.30",
DFID,DFID,24/03/2017,Research and development costs - supplier services ,Research and Evidence Division ,WYG International ,204563-104 ,"103,695.30",
DFID,DFID,02/03/2017,Project delivery costs – supplier services ,Policy Division ,LTS International Ltd. ,201724-135 ,"32,758.89",
DFID,DFID,20/03/2017,Project delivery costs – supplier services ,Policy Division ,LTS International Ltd. ,201724-135 ,"59,501.08",
DFID,DFID,30/03/2017,Project delivery costs – supplier services ,Asia  Caribbean and Overseas Territories ,LTS International Ltd. ,201724-153 ,"69,166.52",
DFID,DFID,02/03/2017,Project delivery costs – supplier services ,Asia  Caribbean and Overseas Territories ,LTS International Ltd. ,201724-153 ,"40,672.69",
DFID,DFID,02/03/2017,Project delivery costs – supplier services ,Asia  Caribbean and Overseas Territories ,LTS International Ltd. ,201724-153 ,"53,739.02",
DFID,DFID,02/03/2017,Project delivery costs – supplier services ,Asia  Caribbean and Overseas Territories ,LTS International Ltd. ,201724-153 ,"68,717.67",
